Workbook

Sheet Instructions
A1: On-site Stormwater Management Calculator
A2: Instructions
A3: Version 05-22-2026
A5: To use the On-Site Stormwater Calculator you must select "Enable Content" when the Security Warning appears.
A6: Note this calculator is designed to work with Microsoft Excel 2010 or newer.
A7: Introduction
A8: This spreadsheet tool helps users implement the On-site Stormwater Management requirements for projects in the
A9: City of Seattle. In addition, this spreadsheet documents the other applicable Stormwater Code requirements for projects
A10: and provides a Site and Drainage Control Summary. Instructions for evaluating, selecting, and sizing on-site best
A11: management practices (BMPs) are provided below.
A13: Note: all projects that require Drainage Review by SDCI must include a Site and Drainage Control Summary Sheet on the
A14: Drainage and Wastewater Control Plan.
A16: Refer to Volume 1, Volume 3 (Section 3.3 and Chapter 5), and Appendix C of the Seattle Stormwater Manual (Seattle 2026) for
A17: On-site Stormwater Management requirements, BMP design requirements and infeasibility criteria.
A19: The "Project Summary" and either the "BMP Sizing" or "BMP Modeling" tabs can be used to provide documentation for
A20: compliance with the On-site List requirement.
A22: How to Use the On-site List Approach Calculator:
B23: Note: The On-site List Approach is the most commonly used method. Refer to instructions at the bottom of this page if
B24: the On-site Performance Standard will be used.
B25: Project Summary Tab:
B26: A. Fill in the light green cells in the "Project Summary" tab.
C28: Step 1: Determine if Dispersion and Infiltration are Feasible
D29: Refer to Section 3.1 and Section 3.2 in Volume 3 of the Seattle Stormwater Manual (Seattle 2026).
C31: Step 2: Calculate Areas by Surface Type
D32: Divide the project area into hard surface areas with distinct drainage pathways and conduct a BMP evaluation
D33: for each surface "sub area". Refer to Figure 1 below for an example. Enter roof and non-roof areas and number
D34: of areas into "Project Summary" tab and hit Enter. Excel tabs will be generated for each individual surface.
D35: Note: Do not create a surface tab for Permeable Pavement Facilities (PPF). PPFs are the only hard surface that
D36: will not have a surface tab. Enter the PPF area on the BMP Sizing tab.
C38: Step 3: Select the On-site List Approach (Pre-sized Approach) Calculator option
D39: Check the box for the “On-site List Approach (Pre-sized Approach) Calculator” on the Summary Tab.
D41: The On-site Lists that indicate the BMPs that must be evaluated and the order in which they must be evaluated
D42: are provided in Volume 1, Section 5.2 for all project type(s). The applicable on-site BMPs are provided in
D43: this calculator in the "Surface" tabs based on information entered in the "Project Summary" tab.
B60: Figure 1. Example Delineation of Hard Surface Areas with Distinct Drainage Pathways for a Parcel or Residential Project.
B78: Figure 2. Example Delineation of Hard Surface Areas for Trail and Sidewalk Projects.
B80: Surface Tab(s):
C81: Step 4: Evaluate BMPs by Category
D82: On each "Surface" tab, select "Infeasible", "Not evaluated", or "Use BMP" for each category. Note: BMPs in each
D83: category may be evaluated in any order. (See detailed information in Steps 5 through 10).
C85: Step 5: Evaluate Feasibility of Category 1 BMPs
D86: Determine feasibility of the BMP(s) in Category 1. The BMP is considered infeasible if one of the following applies:
E87: -The BMP is considered infeasible per the criteria provided in the “Infeasibility Criteria” tab.
E88: -Competing needs (e.g., historic preservation laws, health and safety standards) as provided in
F89: Seattle Municipal Code (SMC), Section 22.805.070 conflict with the BMP.
E90: -The size of the BMP in the "Surface" tab(s) (generated based on "Project Summary" tab inputs)
E91: cannot be met on the site.
C93: Step 6: Select Category 1 BMP(s)
D94: If any of the Category 1 BMPs are feasible for a surface, then a Category 1 BMP must be used to manage
D95: runoff from the surface. Identify the BMP selected for the surface area by selecting "Use BMP" from
D96: the drop down menu. After BMP(s) are selected, the calculator will size the BMP for the surface area
D97: based on the facility information (e.g., ponding depth) entered in the "BMP Sizing" tab.
D98: Note: Facility sizes provided in this tool are the minimum size required. Facilities can be made larger to
D99: meet additional requirements (i.e., flow control and/or water quality treatment standards).
C101: Step 7: Document Infeasibility of Category 1 BMPs (if applicable)
D102: If all the Category 1 BMPs are deemed infeasible, select "Infeasible" and the applicable "infeasibility criteria"
D103: from the drop down menus and proceed to Step 8. If needed for clarity, the applicant shall provide a narrative
D104: description and rationale with substantial evidence sufficient to explain and justify the applicant's conclusion
D105: that On-site BMPs are infeasible.
C107: Step 8: Evaluate/Select Category 2 BMPs
D108: If all of the Category 1 BMPs are deemed infeasible, evaluate the On-site BMPs in Category 2 using the same approach
D109: described in Steps 5 through 7. Once you move to Category 2, you can select any BMP within that Category.
C111: Step 9: Evaluate/Select Category 3 BMPs
D112: If all of the Category 2 BMPs are deemed infeasible, evaluate the On-site BMPs in Category 3 using the same approach
D113: described in Steps 5 through 7. Once you move to Category 3, you can select any BMP within that Category.
C115: Step 10: Evaluate/Select Category 4 BMPs
D116: If all of the Category 3 BMPs are deemed infeasible, evaluate the On-site BMPs in Category 4 using the same approach
D117: described in Steps 5 through 7.
C119: Step 11: Evaluate/Select Category 5 BMPs (if applicable)
D120: If all of the Category 4 BMPs are deemed infeasible, evaluate the On-site BMPs in Category 5 using the same approach
D121: described in Steps 5 through 7.
B123: BMP Sizing Tab:
B124: B. Once a "Surface" tab is completed for each surface, complete the information on the "BMP Sizing" tab
D126: For each surface, select the BMP that the surface drains to. If more than one surface drains to the same BMP,
D127: indicate with the same BMP number. The appropriate sizing will be provided for each BMP based on the area
D128: of the surfaces draining to it. For BMPs with multiple design parameters (i.e., ponding depth, side slopes),
D129: select the design parameters that will be applied to the project.
B131: Project Summary Tab:
B132: C. The "Project Summary" tab summarizes the selected BMPs and BMP sizes by surface.
A134: How to Use this Spreadsheet for the On-site Performance Standard
B135: Project Summary Tab:
B136: A. Fill in the light green cells in the "Project Summary" tab.
C138: Step 1: Determine if Dispersion and Infiltration are Feasible
D139: Refer to Section 3.1 and Section 3.2 in Volume 3 of the Seattle Stormwater Manual (Seattle 2026).
C141: Step 2: Select the On-site Performance Standard Option
D142: Check the box for the “On-site Performance Standard” on the Summary Tab.
D144: When using the Performance Standard, any BMP from the Stormwater Manual may be selected in any order (i.e. the
D145: On-site Lists are not required to be used).
C147: Step 3: Conduct Stormwater Modeling Using an Approved Continuous Runoff Model
D148: Determine which On-site Stormwater Performance goal from Volume 1, Section 5.2.1 is applicable to your project
D149: and use an approved continuous runoff model to demonstrate that this standard is met. See On-site Performance
D150: Standard BMP Design in Appendix F, Section F-4 of the Seattle Stormwater Manual (Seattle 2026).
D152: Submit the calculations and a narrative describing the calculations in a Drainage Report.
C154: Step 4: Calculate Areas Tributary to Each BMP
D155: Divide the hard surface areas of the project into surfaces that are managed with each BMP selected using the
D156: continuous runoff modeling indicated above. If some hard surfaces bypass all BMPs, designate a surface for
D157: these areas to be identified as a “bypass area”.
D159: Enter the number of separate roof and non-roof areas into "Project Summary" tab and hit Enter. Instead of creating
D160: separate surface tabs, the Performance Standard mode will create user inputs for each “surface” in the BMP
D161: Modeling Tab.
C163: Step 5: Document the BMP’s Used in the BMP Modeling Tab
D164: Complete the green input fields in the BMP Modeling Tab to identify which BMP manages each “surface”. Verify that
D165: the summary of these BMPs correctly shows on the Summary tab.

Sheet Project Summary
A1: On-site Stormwater Management Calculator
A2: Site and Drainage Control Summary
A3: =Version -> Version 05-22-2026
A4: To use the On-Site List Calculator you must select "Enable Content" when the Security Warning appears.
A5: Project Information | AR5: Hidden Column
B6: Site Address | V6: SDCI Project Number
B8: Primary Contact | V8: SDOT Project Number | AR8: Type | AS8: Old
B10: Project Type | V10: Primary Contact E-mail or Phone | AR10: =IFERROR(INDEX(Lookup!$L$2:$L$8,MATCH($H$10,Project,0)),"") -> 
B12: Is this project part of a Common Plan of Development or Sale or "Closely-related" to other SDCI permits/projects?
B14: Common Plan of Development or Sale and Closely-Related SDCI Construction Permit Numbers
B16: Is this project associated with a Short Plat or Subdivision? | W16: Yes | Z16: No | AC16: SDCI MUP Number
B18: Was the project lot created or altered in size after Jan 1, 2016? | AR18: Engineer Required | AS18: =OR(S22>5000,S51>5000,AS69,AND(Q60="Yes",NOT(AA60="Simple infiltration test")),Q35="On Site Infiltration (No Off-site Point of Discharge)") -> FALSE | AT18: =IF(AS69,"Submit Continuous Runoff Model in a Drainage Report to demonstrate On-site Performance Standard (Vol. 1, Section 5.2.1) is met.",IF(AND(OR(AR10=Road,AR10=Trail),S22>=2000),"On-site Stormwater Management is required for ≥ 2,000 sf of new plus replaced area.",IF(AND(OR(AR10=Parcel,AR10=Res),W18="Yes",OR(S22>=750,AND(AU32=1,AK26>750))),"On-site Stormater Management is required for ≥ 750 sf of new plus replaced area.",IF(AND(OR(AR10=Parcel,AR10=Res),OR(W18="No",W18=""),OR(S22>=1500,AND(AU32=1,AK26>=1500))),"On-site Stormwater Management required for ≥ 1,500 sf of new plus replaced area.","On-site Stormwater Management is not required.")))) -> On-site Stormwater Management is not required.
B20: Total Site Area | W20: sf | X20: ´ | Y20: =IF(OR(AU32=1,AU33=1),"","") ->  | Z20: Total Common Plan/Closely Related and/or Short Plat/Subdivision Site Area | AO20: sf | AP20: ´ | AR20: On-site Required | AS20: =AT18<>"On-site Stormwater Management is not required." -> FALSE
B22: Total New plus Replaced Hard Surface Area (NPRHS) | W22: sf | X22: ´ | Y22: =IF(OR(AU32=1,AU33=1),"","") -> 
B24: Total New and/or Replaced Lawn/Landscaping | W24: sf | X24: ´
B26: Undisturbed and Protected Site Area | W26: sf | X26: ´ | Z26: Total Common Plan/Closely Related and/or Short Plat/Subdivision NPRHS | AO26: sf | AP26: ´
B28: Total Existing Hard Surface Area To Remain | W28: sf | X28: ´
B30: Total Existing Hard Surface Area (Prior to Project) | W30: sf | X30: ´ | AU30: check boxes
A32: Site Information | G32: =IF(AND(AR10=Res,S22>=5000),"For ≥5,000 sf of NPRHS the project is a Parcel Based project.","") ->  | AV32: Closely related
B33: Note: Reference the Water, Drainage, and Wastewater Availability Certificate (WAC) or Preliminary Assessment Report (PAR) to complete this section. | AV33: Short Plat or Subdivision?
B35: Approved Point of Stormwater Discharge | AV35: Pre-Developed Pasture Standard
D37: Drainage Basin | AR37: Drainage Basin Category | AS37: =IFERROR(INDEX(Lookup!$K$2:$K$19,MATCH(CONCATENATE(Q37,AE39),Lookup!$J$2:$J$19,0)),1) -> 1 | AV37: Peak Control Standard
D39: Is the downstream drainage system considered Capacity Constrained by SPU? | AV39: Pre-Developed Forest Standard
B41: Approved Foundation Drainage Point of Discharge | AV41: Wetland Protection Standard
B43: Required Flow Control Standard | N43: Pre-Developed Pasture | Y43: Pre-Developed Forest | AK43: Peak Control | AV43: Existing Conditions Standard
N45: Wetland Protection | Y45: Existing Conditions | AK45: None | AR45: Flow Control Required | AS45: =IFERROR(OR(AU35:AU43),FALSE) -> FALSE | AV45: None
B47: Project will permanently discharge groundwater? | S47: ´ | AR47: Water Quality | AS47: =IFERROR(OR(AU46:AU53),FALSE) -> FALSE | AV47: oil control
B49: Required Water Quality Treatment Standard | Q49: ´ | S49: Oil Control | Y49: Metals | AC49: Basic | AG49: Phosphorus | AM49: None | AR49: Dispersion Infeasible | AS49: FALSE | AV49: metals
B51: Total Pollution Generating Hard Surface Area | R51: ´ | W51: sf | X51: =IF(OR(AU32=1,AU33=1),"","") ->  | Y51: w/ Common Plan/Closely-Related and/or Short Plat/Subdivsion | AO51: sf | AP51: ´ | AR51: Infiltration Infeasible | AS51: =Q62="No" -> FALSE | AV51: basic
AV52: phosphorus
B54: Total Pollution Generating Pervious Surface Area | R54: ´ | W54: sf | X54: =IF(OR(AU32=1,AU33=1),"","") ->  | Y54: w/ Common Plan/Closely-Related and/or Short Plat/Subdivsion | AO54: sf | AP54: ´ | AR54: Infiltrating Area | AS54: =SUMIF(BD79:BD83,TRUE,W79:W79) -> 0 | AV54: none
B57: Is there soil and/or groundwater contamination on this site? | AB57: Source Control is required | AP57: ´
A59: Infiltration Information | J59: =IF(AND(NOT(AS20),Q35=Lookup!V10),"Infiltration evaluation is required for projects with No Off-site Point of Discharge","") -> 
B60: Is infiltration investigation required? | V60: =IF(Q60="","",IF(Q60="No","Why?","Type of test:")) ->  | AR60: Infiltration Exploration or Mapped | AS60: =OR(Q60="Yes",AND(Q60="No",AA60="Site is mapped as ""infltr. investigation not required""")) -> FALSE
D62: Is infiltration on the site feasible? | V62: =IF(Q62="No","Why?",IF(AND(Q60="No",AA60="Other"),"Explain:","")) ->  | AR62: Measured Infiltration Rate | AS62: =O64 -> 0
D64: Site Measured Infiltration Rate | Q64: x | R64: Infiltration Rate Correction Factor | AF64: = | AG64: =AD64*O64 -> 0 | AJ64: Site Design Inf Rate | AR64: Infiltration Rate (in/hr) | AS64: =IF(Q62="No",0,AG64) -> 0
A66: On-site Stormwater Management (select List Approach or Performance Standard) | AB66: ´ | AC66: =IF(AND(NOT(AS20),Q35<>Lookup!V10,ProjectTypeCell<>"",totalnewreplacedarea<>""),"OSM not required, leave this section blank","") -> 
D67: On-site List Approach (Pre-sized) Calculator -- Complete the Surface tabs and BMP Sizing tabs (Most commonly used) | AR67: List Apporach | AS67: TRUE | AT67: Toggle
D69: On-site Performance Standard -- Stormwater modeling by Civil Engineer | AB69: ´ | AR69: Performance Standard | AS69: FALSE | AT69: 1
D71: Small Projects with No Off-site Point of Discharge | U71: ´ | AR71: Areas | AS71: Sheets | AT71: Old
B73: Number of roof areas | Q73: 0 | U73: =IF(AS69,"",IF(SUM(W79:Z79)>0,IF(ROUND(SUM(W79:Z79)+SUMIF($AT$78:$AT$83,"Permeable Pavement Facility",$BB$78:$BB$83),0)>ROUND(S22,0),"Note total area entered on surface tabs (plus permeable pavement facility area) exceeds the total new plus replaced hard surface area entered above.",IF(ROUND(SUM(W79:Z79)+SUMIF($AT$78:$AT$83,"Permeable Pavement Facility",$BB$78:$BB$83),0)<ROUND(S22,0),"Note total area entered on surface tabs (plus permeable pavement facility area) does not match total new plus replaced hard surface area entered above.","")),IF(SUM(Q73:T75)=0,"Enter number of surface areas and hit Enter",""))) -> Enter number of surface areas and hit Enter | AR73: =SUM(Q73,Q75) -> 0 | AS73: =MAX(AS79:AS84) -> 0 | AT73: 0 | AU73: 0
B75: Number of other surface areas | Q75: 0 | AT75: 0 | AU75: 0
B77: Surface | E77: Surfaces Description | K77: On-site BMP | W77: Contrib. Area (sf) | AA77: Facility Size (sf) | AG77: Facility Configuration | AR77: Sheet Name | AS77: Count | AT77: BMP | AU77: BMP # from Sizing Tab | AV77: Count for BMP # | AW77: List more than 1 BMP | AX77: List Name | AY77: Roof / Non Roof | AZ77: Roof Managed | BA77: Surface Managed | BB77: Facility Size no units | BC77: Vol Managed per Year (gal) | BD77: Infiltrating BMP
AS78: -1 | AU78: 0
B79: =AS79 -> 0 | E79: =IFERROR(IF($AS$69,IF(INDEX('BMP Modeling'!$J:$J,MATCH(B79,'BMP Modeling'!$B:$B,0))="Roof","Roof: ","Surface: ") & INDEX('BMP Modeling'!P:P,MATCH(B79,'BMP Modeling'!$B:$B,0)), IF(INDIRECT("'"&AR79&"'!N9")="","",IF(INDIRECT("'"&AR79&"'!N9")="Roof",INDIRECT("'"&AR79&"'!N9")&":"&INDIRECT("'"&AR79&"'!n11"),"Surface:"&INDIRECT("'"&AR79&"'!n11")))),"") ->  | K79: =IF(AT79="","",IF($AS$69,INDEX('BMP Modeling'!X:X,MATCH(B79,'BMP Modeling'!B:B,0)),IF(AND(AW79,AV79>1),INDEX('BMP Sizing'!$K$7:$K$45,MATCH(AU79,'BMP Sizing'!$AO$7:$AO$45,0)),AT79))) ->  | W79: =IFERROR(IF($AS$69,INDEX('BMP Modeling'!D:D,MATCH(B79,'BMP Modeling'!B:B,0)),INDIRECT("'"&AR79&"'!N13")),"") ->  | AA79: =IF($AS$69,TEXT(INDEX('BMP Modeling'!$AF:$AF,MATCH(B79,'BMP Modeling'!$B:$B,0)),"#,###"),IF(AT79="None Feasible","-",IFERROR(IF(AU79<=MAX($AU$78:AU78),"^",TEXT(INDEX('BMP Sizing'!$AQ$49:$AQ$249,MATCH(AU79,'BMP Sizing'!$AN$49:$AN$249,0)),"#,##0")& " " & INDEX('BMP Sizing'!$AR$49:$AR$249,MATCH(AU79,'BMP Sizing'!$AN$49:$AN$249,0)) ),"-"))) -> - | AG79: =IFERROR(IF($AS$69,"See Plan",IF(AU79<=MAX($AU$78:AU78),"^",INDEX('BMP Sizing'!$AT$49:$AT$249,MATCH(AU79,'BMP Sizing'!$AN$49:$AN$249,0)))),"-") -> - | AR79: =$AR$10&" - Surface "&B79 -> - Surface 0 | AS79: =AS78+1 -> 0 | AT79: =IFERROR(IF($AS$69,"BMP Modeling",INDEX(INDIRECT("'"&AR79&"'!BS:BS"),MATCH(TRUE,INDIRECT("'"&AR79&"'!BX:BX"),0))),"") ->  | AU79: =IFERROR(INDEX('BMP Sizing'!$AO$7:$AO$46,MATCH(AS79,'BMP Sizing'!$B$7:$B$46,0)),"") ->  | AV79: =COUNTIF($AT$78:$AT$80,AT79) -> 3 | AW79: =INDEX(Lookup!$B$70:$B$94,MATCH(AT79,Lookup!$A$70:$A$94,0)) ->  | AX79: =TRIM(SUBSTITUTE(SUBSTITUTE(SUBSTITUTE(AT79," ",""),"-",""),"/","")&IF(AW79,AV79,"")) ->  | AY79: =IFERROR(IF(performancestd,INDEX('BMP Modeling'!J:J,MATCH(B79,'BMP Modeling'!B:B,0)),INDIRECT("'"&AR79&"'!N9")),"") ->  | AZ79: =IF(performancestd,AY79="Roof",IF(OR(AT79="Vegetated Roof System",AND(AT79="Permeable Pavement Facility",AY79="Roof")), BB79>=INT(INDEX('BMP Sizing'!$V$49:$V$249,MATCH(AU79,'BMP Sizing'!$AN$49:$AN$249,0))*INDEX('BMP Sizing'!$AP$49:$AP$249,MATCH(AU79,'BMP Sizing'!$AN$49:$AN$249,0))),AND(AND(AU79>0,AU79<>""),AY79="Roof",BC79>0,BC79<>"-"))) -> FALSE | BA79: =IF(performancestd,AY79="Non-Roof",IF(AND(AT79="Permeable Pavement Facility",AY79="Non-Roof"), BB79>=INDEX('BMP Sizing'!$V$49:$V$249,MATCH(AU79,'BMP Sizing'!$AN$49:$AN$249,0))*INDEX('BMP Sizing'!$AP$49:$AP$249,MATCH(AU79,'BMP Sizing'!$AN$49:$AN$249,0)),AND(AND(AU79>0,AU79<>""),AY79="Non-Roof",BC79>0,BC79<>"-"))) -> FALSE | BB79: =IF($AS$69,0,IF(AT79="None Feasible","-",IFERROR(IF(AU79<=MAX($AU$78:AU78),"^",INDEX('BMP Sizing'!$AQ$49:$AQ$249,MATCH(AU79,'BMP Sizing'!$AN$49:$AN$249,0))),"-"))) -> - | BC79: =IF($AS$69, IFERROR(INDEX('BMP Modeling'!$AL:$AL,MATCH(B79,'BMP Modeling'!$B:$B,0))*7.48052/158,0), IF(AT79="None Feasible","-",IFERROR(IF(AU79<=MAX($AU$78:AU78),"^",INDEX('BMP Sizing'!$AS$49:$AS$249,MATCH(AU79,'BMP Sizing'!$AN$49:$AN$249,0))),"-"))) -> - | BD79: =INDEX(Lookup!$I$70:$I$94,MATCH(AT79,Lookup!$A$70:$A$94,0)) -> 
B81: Total New/Replaced Roof Area | O81: =TEXT(SUMIF($AY$78:$AY$80,"Roof",$W$78:$Z$80),"#,##0")&" sf" -> 0 sf | V81: Total Volume Managed On Site | AI81: =IFERROR(TEXT(SUM($BC$79:$BC$83),"#,##0")&" gal","") -> 0 gal
B83: Total New/Replaced Other Surface Area | O83: =TEXT(SUMIF($AY$78:$AY$80,"Non-Roof",$W$78:$Z$80)+SUMIF($AT$78:$AT$80,"Permeable Pavement Facility",$BB$78:$BB$80),"#,##0") &" sf" -> 0 sf | V83: Estimated compost required for soil amendment | AL83: =IF(S24="",0,S24*0.0062) -> 0 | AO83: cy
X84: Volume of compost will be verified by the Inspector.

Sheet Trail (hidden)
A1: On-site Stormwater Management Calculator - List Approach | BZ1: Column to Use | CB1: Evaluation Required
A2: Surface Identification and BMP Evaluation for Trail and Sidewalk Projects | BS2: None Feasible | BX2: =AND(COUNTIFS(BT19:BT58,"Feasibility",BV19:BV58,TRUE)=COUNTIF(BT19:BT58,"Feasibility"),COUNTIF(BX19:BX58,TRUE)=0) -> FALSE | BZ2: =OFFSET(CA2,0,IF($N$9="Roof",0,3)+'Project Summary'!$AS$37) -> 4 | CB2: 1 | CC2: 2 | CD2: 3 | CE2: 4 | CF2: 5 | CG2: 6
B4: Project No. | N4: ='Project Summary'!$AG$6 -> 0 | CB4: Roof | CC4: Roof | CD4: Roof | CE4: Surface | CF4: Surface | CG4: Surface
B7: Hard Surface Number | BS7: BMP | BT7: Dropdown Lookup | BU7: Grey Out | BV7: Infeasible Selected | BW7: Infeasibility Criteria Selected | BX7: BMP Selected | BY7: Other BMP in Group Selected | BZ7: Evaluation Required | CA7: Infiltration/ DispersionInfeasible | CB7: Not designated receiving water | CC7: Public combined sewer or capacity constrained | CD7: Designated Receiving Water | CE7: Not designated receiving water | CF7: Public combined sewer or capacity constrained | CG7: Designated Receiving Water
B9: Hard Surface Type | W9: ´ | Y9: =IF(COUNTIF(BX19:BX85,TRUE)>1,"More than one Use BMP selected, please select only one. ","") & IF(SUMPRODUCT($BV$19:$BV$86*NOT(BW19:BW86)*NOT(BY19:BY86)) > 0,SUMPRODUCT($BV$19:$BV$86*NOT(BW19:BW86)*NOT(BY19:BY86))&" BMP(s) require infeasibility criteria.","") -> 
B11: Hard Surface Description
B13: Surface Area (sf)
A15: Category 1 (Select 1 BMP from Category 1, order does not matter, or move to Category 2) | BS15: Category 1
B17: BMP | R17: Feasibility | Y17: Infeasibility Criteria
B19: Full Dispersion | BS19: Full Dispersion | BT19: =IF(BZ19,IF(CA19,"Infeasible","Feasibility"),"NoEval") -> Feasibility | BU19: =IF(OR(R19="",BX19),FALSE,OR(NOT(BZ19),BV19)) -> FALSE | BV19: =R19="Infeasible" -> FALSE | BW19: =AND(BV19,NOT(Y19="")) -> FALSE | BX19: =R19="Use BMP" -> FALSE | BY19: FALSE | BZ19: =INDEX(CB19:CG19,MATCH($BZ$2,$CB$2:$CG$2,0)) -> TRUE | CA19: =Dispersion -> FALSE | CB19: FALSE | CC19: FALSE | CD19: FALSE | CE19: TRUE | CF19: TRUE | CG19: TRUE
A22: Category 2 | BS22: Category 2 | BU22: =NOT(AND(BU19:BU21,N9<>"")) -> TRUE
B24: BMP | R24: Feasibility | Y24: Infeasibility Criteria
B26: Rain Garden with or without Tree | BS26: Rain Garden | BT26: =IF(BZ26,IF(CA26,"Infeasible","Feasibility"),"NotRequired") -> Feasibility | BU26: =IF(OR(R26="",BX26),FALSE,OR(NOT(BZ26),BV26)) -> FALSE | BV26: =R26="Infeasible" -> FALSE | BW26: =AND(BV26,NOT(Y26="")) -> FALSE | BX26: =R26="Use BMP" -> FALSE | BY26: =OR(BX35,BX38,BX41,BX29,BX32) -> FALSE | BZ26: =INDEX(CB26:CG26,MATCH($BZ$2,$CB$2:$CG$2,0)) -> TRUE | CA26: =AND(InfExploration,OR(InfiltrationInfeasible,MeasuredInfRate<0.3)) -> FALSE | CB26: TRUE | CC26: TRUE | CD26: FALSE | CE26: TRUE | CF26: =Q13<5000 -> TRUE | CG26: FALSE
C27: =IF($N$9="","",IF(BZ26,"","Evaluation not required.")) -> 
B29: Infiltrating Soil Cell Bioretention with Tree | BS29: Infiltrating Soil Cell Bioretention with Tree | BT29: =IF(CA29,"Infeasible","NotRequired") -> NotRequired | BU29: =IF(OR(R29="",BX29),FALSE,OR(NOT(BZ29),BV29)) -> FALSE | BV29: =R29="Infeasible" -> FALSE | BW29: =AND(BV29,NOT(Y29="")) -> FALSE | BX29: =R29="Use BMP" -> FALSE | BY29: =OR(BX38,BX41,BX35,BX26,BX32) -> FALSE | BZ29: =INDEX(CB29:CG29,MATCH($BZ$2,$CB$2:$CG$2,0)) -> FALSE | CA29: =AND(InfExploration,OR(InfiltrationInfeasible,MeasuredInfRate<0.3)) -> FALSE | CB29: FALSE | CC29: FALSE | CD29: FALSE | CE29: FALSE | CF29: FALSE | CG29: FALSE
C30: =IF($N$9="","",IF(BZ29,"","Evaluation not required but allowed.")) -> 
B32: Infiltrating Soil Cell Bioretention without Tree | BS32: Infiltrating Soil Cell Bioretention without Tree | BT32: =IF(AND(BW29,Y29=Lookup!S386),IF(CA32,"Infeasible","NotRequired"),"NoEval") -> NoEval | BU32: =IF(OR(R32="",BX32),FALSE,OR(NOT(BZ32),BV32)) -> FALSE | BV32: =R32="Infeasible" -> FALSE | BW32: =AND(BV32,NOT(Y32="")) -> FALSE | BX32: =R32="Use BMP" -> FALSE | BY32: =OR(BX41,BX35,BX38,BX29,BX26) -> FALSE | BZ32: =INDEX(CB32:CG32,MATCH($BZ$2,$CB$2:$CG$2,0)) -> FALSE | CA32: =AND(InfExploration,OR(InfiltrationInfeasible,MeasuredInfRate<0.3)) -> FALSE | CB32: FALSE | CC32: FALSE | CD32: FALSE | CE32: FALSE | CF32: FALSE | CG32: FALSE
C33: =IF($N$9="","",IF(BZ32,"","Evaluation not allowed unless tree is infeasible.")) -> 
B35: Permeable Pavement Facility | BS35: Permeable Pavement Facility | BT35: =IF(CA35,"Infeasible",IF(BZ35,"Feasibility","NotRequired")) -> NotRequired | BU35: =IF(OR(R35="",BX35),FALSE,OR(NOT(BZ35),BV35)) -> FALSE | BV35: =R35="Infeasible" -> FALSE | BW35: =AND(BV35,NOT(Y35="")) -> FALSE | BX35: =R35="Use BMP" -> FALSE | BY35: =OR(BX26,BX38,BX41,BX29,BX32) -> FALSE | BZ35: =INDEX(CB35:CG35,MATCH($BZ$2,$CB$2:$CG$2,0)) -> FALSE | CA35: =AND(InfExploration,OR(InfiltrationInfeasible,MeasuredInfRate<0.3)) -> FALSE | CB35: FALSE | CC35: FALSE | CD35: FALSE | CE35: FALSE | CF35: FALSE | CG35: FALSE
C36: =IF(BX35,"Note the surface area ("&N13&" sf) should represent the area contributing to the permeable pavement facility. Facility area will be entered on the BMP Sizing tab.", IF($N$9="","", IF(OR('Project Summary'!Q37=Lookup!I4, 'Project Summary'!Q37=Lookup!I5),"Evaluation not required but allowed if permeable pavement in ROW is greater than 2,000 sf.","Evaluation not required but allowed."))) -> 
B38: Permeable Pavement Surface | BS38: Permeable Pavement Surface | BT38: =IF(CA38,"Infeasible",IF(BZ38,"Feasibility","NotRequired")) -> Feasibility | BU38: =IF(OR(R38="",BX38),FALSE,OR(NOT(BZ38),BV38)) -> FALSE | BV38: =R38="Infeasible" -> FALSE | BW38: =AND(BV38,NOT(Y38="")) -> FALSE | BX38: =R38="Use BMP" -> FALSE | BY38: =OR(BX26,BX35,BX41,BX29,BX32) -> FALSE | BZ38: =INDEX(CB38:CG38,MATCH($BZ$2,$CB$2:$CG$2,0)) -> TRUE | CB38: TRUE | CC38: TRUE | CD38: FALSE | CE38: TRUE | CF38: TRUE | CG38: FALSE
C39: =IF(N9="","", IF(BZ2=5,"Minimum permeable pavement area in ROW is 2,000 sf.", IF(BZ2=6,IF(N13<2000,"Evaluation not allowed in ROW if new plus replaced PGHS is less than 2,000 sf.","Evaluation not required but allowed if permable pavement in ROW is greater than 2,000 sf."),""))) -> 
B41: Sidewalk/Trail Compost-Amended Strip | BS41: Sidewalk/Trail Compost-Amended Strip | BT41: =IF(BZ41,"Feasibility","NotRequired") -> Feasibility | BU41: =IF(OR(R41="",BX41),FALSE,OR(NOT(BZ41),BV41)) -> FALSE | BV41: =R41="Infeasible" -> FALSE | BW41: =AND(BV41,NOT(Y41="")) -> FALSE | BX41: =R41="Use BMP" -> FALSE | BY41: =OR(BX26,BX35,BX38,BX29,BX32) -> FALSE | BZ41: =INDEX(CB41:CG41,MATCH($BZ$2,$CB$2:$CG$2,0)) -> TRUE | CA41: =AND(InfExploration,OR(InfiltrationInfeasible,InfRate<0.15), 'Project Summary'!$AA$60<>Lookup!$R$2) -> FALSE | CB41: TRUE | CC41: TRUE | CD41: FALSE | CE41: TRUE | CF41: TRUE | CG41: FALSE
C42: =IF($N$9="","",IF(BZ41,"","Evaluation not required.")) -> 
A44: Category 3 | BS44: Category 3 | BU44: =NOT(AND(BU19:BU21,BU23:BU42)) -> TRUE
B46: BMP | R46: Feasibility | Y46: Infeasibility Criteria
B48: Sheet Flow Dispersion | BS48: Sheet Flow Dispersion | BT48: =IF(BZ48,IF(CA48,"Infeasible","Feasibility"),"NoEval") -> Feasibility | BU48: =IF(OR(R48="",BX48),FALSE,OR(NOT(BZ48),BV48)) -> FALSE | BV48: =R48="Infeasible" -> FALSE | BW48: =AND(BV48,NOT(Y48="")) -> FALSE | BX48: =R48="Use BMP" -> FALSE | BY48: =BX51 -> FALSE | BZ48: =INDEX(CB48:CG48,MATCH($BZ$2,$CB$2:$CG$2,0)) -> TRUE | CA48: =Dispersion -> FALSE | CB48: FALSE | CC48: FALSE | CD48: FALSE | CE48: TRUE | CF48: TRUE | CG48: TRUE
B51: Concentrated Dispersion | BS51: Concentrated Flow Dispersion | BT51: =IF(BZ51,IF(CA51,"Infeasible","Feasibility"),"NoEval") -> Feasibility | BU51: =IF(OR(R51="",BX51),FALSE,OR(NOT(BZ51),BV51)) -> FALSE | BV51: =R51="Infeasible" -> FALSE | BW51: =AND(BV51,NOT(Y51="")) -> FALSE | BX51: =R51="Use BMP" -> FALSE | BY51: =BX48 -> FALSE | BZ51: =INDEX(CB51:CG51,MATCH($BZ$2,$CB$2:$CG$2,0)) -> TRUE | CA51: =Dispersion -> FALSE | CB51: FALSE | CC51: FALSE | CD51: FALSE | CE51: TRUE | CF51: TRUE | CG51: TRUE
C52: =IF($N$9="Roof","Evaluation not required for roof surfaces.","") -> 
A54: Category 4 | BS54: Category 4 | BU54: =NOT(AND(BU19,BU26:BU41,BU48:BU51)) -> TRUE
B56: BMP | R56: Feasibility | Y56: Infeasibility Criteria
B58: Trees | BS58: Trees | BT58: =IF(BZ58,"Feasibility","NoEval") -> Feasibility | BU58: =IF(OR(R58="",BX58),FALSE,OR(NOT(BZ58),BV58)) -> FALSE | BV58: =R58="Infeasible" -> FALSE | BW58: =AND(BV58,NOT(Y58="")) -> FALSE | BX58: =R58="Use BMP" -> FALSE | BY58: FALSE | BZ58: =INDEX(CB58:CG58,MATCH($BZ$2,$CB$2:$CG$2,0)) -> TRUE | CB58: FALSE | CC58: FALSE | CD58: FALSE | CE58: TRUE | CF58: TRUE | CG58: TRUE
C59: =IF($N$9="Roof","Evaluation not required for roof surfaces.","") -> 

Sheet Road (hidden)
A1: On-site Stormwater Management Calculator - List Approach | BZ1: Column to Use | CB1: Evaluation Required
A2: Surface Identification and BMP Evaluation for Roadway Projects | BS2: None Feasible | BX2: =AND(COUNTIFS(BT19:BT60,"Feasibility",BV19:BV60,TRUE)=COUNTIF(BT19:BT60,"Feasibility"),COUNTIF(BX19:BX60,TRUE)=0) -> FALSE | BZ2: =OFFSET(CA2,0,IF($N$9="Roof",0,3)+'Project Summary'!$AS$37) -> 4 | CB2: 1 | CC2: 2 | CD2: 3 | CE2: 4 | CF2: 5 | CG2: 6
B4: Project No. | N4: ='Project Summary'!$AG$6 -> 0 | CB4: Roof | CC4: Roof | CD4: Roof | CE4: Surface | CF4: Surface | CG4: Surface
B7: Hard Surface Number | BS7: BMP | BT7: Dropdown Lookup | BU7: Grey Out | BV7: Infeasible Selected | BW7: Infeasible Criteria Entered | BX7: BMP Selected | BY7: Other BMP in Group Selected | BZ7: Evaluation Required | CA7: Infiltration /Dispersion Infeasible | CB7: Not designated receiving water | CC7: Public combined sewer or capacity constrained | CD7: Designated Receiving Water | CE7: Not designated receiving water | CF7: Public combined sewer or capacity constrained | CG7: Designated Receiving Water
B9: Hard Surface Type | W9: ´ | Y9: =IF(COUNTIF(BX19:BX87,TRUE)>1,"More than one Use BMP selected, please select only one. ","") & IF(SUMPRODUCT($BV$19:$BV$88*NOT(BW19:BW88)*NOT(BY19:BY88)) > 0,SUMPRODUCT($BV$19:$BV$88*NOT(BW19:BW88)*NOT(BY19:BY88))&" BMP(s) require infeasibility criteria.","") -> 
B11: Hard Surface Description | Y11: :
B13: Surface Area (sf)
A15: Category 1 (Select 1 BMP from Category 1, order does not matter, or move to Category 2) | BS15: Category 1
B17: BMP | R17: Feasibility | Y17: Infeasibility Criteria
B19: Full Dispersion | BS19: Full Dispersion | BT19: =IF(BZ19,IF(CA19,"Infeasible","Feasibility"),"NoEval") -> Feasibility | BU19: =IF(OR(R19="",BX19),FALSE,OR(NOT(BZ19),BV19)) -> FALSE | BV19: =R19="Infeasible" -> FALSE | BW19: =AND(BV19,NOT(Y19="")) -> FALSE | BX19: =R19="Use BMP" -> FALSE | BY19: FALSE | BZ19: =INDEX(CB19:CG19,MATCH($BZ$2,$CB$2:$CG$2,0)) -> TRUE | CA19: =Dispersion -> FALSE | CB19: FALSE | CC19: FALSE | CD19: FALSE | CE19: TRUE | CF19: TRUE | CG19: TRUE
A22: Category 2 | BS22: Category 2 | BU22: =NOT(AND(BU19:BU21,N9<>"")) -> TRUE
B24: BMP | R24: Feasibility | Y24: Infeasibility Criteria
B26: Rain Garden with Tree | BS26: Rain Garden | BT26: =IF(BZ26,IF(CA26,"Infeasible","Feasibility"),"NoEval") -> Feasibility | BU26: =IF(OR(R26="",BX26),FALSE,OR(NOT(BZ26),BV26)) -> FALSE | BV26: =R26="Infeasible" -> FALSE | BW26: =AND(BV26,NOT(Y26="")) -> FALSE | BX26: =R26="Use BMP" -> FALSE | BY26: =OR(BX29,BX38,BX41,BX32,BX44,BX35) -> FALSE | BZ26: =INDEX(CB26:CG26,MATCH($BZ$2,$CB$2:$CG$2,0)) -> TRUE | CA26: =AND(InfExploration,OR(InfiltrationInfeasible,MeasuredInfRate<0.3)) -> FALSE | CB26: FALSE | CC26: FALSE | CD26: FALSE | CE26: =AND(NOT('Project Summary'!$AS$45),NOT('Project Summary'!$AS$47),$N$13<5000) -> TRUE | CF26: =AND(NOT('Project Summary'!$AS$45),NOT('Project Summary'!$AS$47),$N$13<5000) -> TRUE | CG26: =AND(NOT('Project Summary'!$AS$45),NOT('Project Summary'!$AS$47),$N$13<5000) -> TRUE
C27: =IF($N$9="","",IF(MeasuredInfRate<0.3,"",IF(OR('Project Summary'!AS45,'Project Summary'!AS47),"Evaluation not allowed when project requires Flow Control or Water Quality Treatment",IF(N13>=5000,"Evaluation not allowed for sites with greater than 5,000 sf of hard surface infiltrating onsite","")))) -> 
B29: Infiltrating Bioretention with Tree | BS29: Infiltrating Bioretention | BT29: =IF(BZ29,IF(CA29,"Infeasible","Feasibility"),"NoEval") -> Feasibility | BU29: =IF(OR(R29="",BX29),FALSE,OR(NOT(BZ29),BV29)) -> FALSE | BV29: =R29="Infeasible" -> FALSE | BW29: =AND(BV29,NOT(Y29="")) -> FALSE | BX29: =R29="Use BMP" -> FALSE | BY29: =OR(BX26,BX38,BX41,BX32,BX44,BX35) -> FALSE | BZ29: =INDEX(CB29:CG29,MATCH($BZ$2,$CB$2:$CG$2,0)) -> TRUE | CA29: =AND(InfExploration,OR(InfiltrationInfeasible,MeasuredInfRate<0.3)) -> FALSE | CB29: FALSE | CC29: FALSE | CD29: FALSE | CE29: TRUE | CF29: TRUE | CG29: TRUE
C30: =IF(N9<>"", IF(BZ2>=5, "Evaluation is only allowed when contributing area is sufficient to warrant minimum bioretention cell size in ROW.",""),"") -> 
B32: Infiltrating Soil Cell Bioretention with Tree | BS32: Infiltrating Soil Cell Bioretention with Tree | BT32: =IF(CA32,"Infeasible","NotRequired") -> NotRequired | BU32: =IF(OR(R32="",BX32),FALSE,OR(NOT(BZ32),BV32)) -> FALSE | BV32: =R32="Infeasible" -> FALSE | BW32: =AND(BV32,NOT(Y32="")) -> FALSE | BX32: =R32="Use BMP" -> FALSE | BY32: =OR(BX29,BX41,BX44,BX26,BX38,BX35) -> FALSE | BZ32: =INDEX(CB32:CG32,MATCH($BZ$2,$CB$2:$CG$2,0)) -> FALSE | CA32: =AND(InfExploration,OR(InfiltrationInfeasible,MeasuredInfRate<0.3)) -> FALSE | CB32: FALSE | CC32: FALSE | CD32: FALSE | CE32: FALSE | CF32: FALSE | CG32: FALSE
C33: =IF(N9<>"","Evaluation not required but allowed.","") -> 
B35: Infiltrating Soil Cell Bioretention without Tree | BS35: Infiltrating Soil Cell Bioretention without Tree | BT35: =IF(AND(BW32,Y32=Lookup!S386),IF(CA35,"Infeasible","NotRequired"),"NoEval") -> NoEval | BU35: =IF(OR(R35="",BX35),FALSE,OR(NOT(BZ35),BV35)) -> FALSE | BV35: =R35="Infeasible" -> FALSE | BW35: =AND(BV35,NOT(Y35="")) -> FALSE | BX35: =R35="Use BMP" -> FALSE | BY35: =OR(BX32,BX44,BX26,BX29,BX41,BX38) -> FALSE | BZ35: =INDEX(CB35:CG35,MATCH($BZ$2,$CB$2:$CG$2,0)) -> FALSE | CA35: =AND(InfExploration,OR(InfiltrationInfeasible,MeasuredInfRate<0.3)) -> FALSE | CB35: FALSE | CC35: FALSE | CD35: FALSE | CE35: FALSE | CF35: FALSE | CG35: FALSE
C36: =IF($N$9="","",IF(BZ35,"","Evaluation not allowed unless tree is infeasible.")) -> 
B38: Permeable Pavement Facility | BS38: Permeable Pavement Facility | BT38: =IF(CA38,"Infeasible", IF(BZ2=4, IF(N11="Arterial Street or Collector","NoEval","NotRequired"), IF(BZ2=5, IF(AND(N11="ROW", N13<2000),"NoEval",IF(OR(N11="ROW",N11="Other"),"NotRequired","NoEval")), IF(BZ2=6, IF(AND(N13>=2000, OR(N11="ROW",N11="Other")),"NotRequired",IF(AND(N13<2000,N11="Other"),"NoEval",IF(AND(N13<2000,N11="ROW"),"NoEval","NoEval"))),"Feasibility")))) -> NotRequired | BU38: =IF(OR(R38="",BX38),FALSE,OR(NOT(BZ38),BV38)) -> FALSE | BV38: =R38="Infeasible" -> FALSE | BW38: =AND(BV38,NOT(Y38="")) -> FALSE | BX38: =R38="Use BMP" -> FALSE | BY38: =OR(BX26,BX29,BX41,BX32,BX44,BX35) -> FALSE | BZ38: =INDEX(CB38:CG38,MATCH($BZ$2,$CB$2:$CG$2,0)) -> FALSE | CA38: =AND(InfExploration,OR(InfiltrationInfeasible,MeasuredInfRate<0.3)) -> FALSE | CB38: FALSE | CC38: FALSE | CD38: FALSE | CE38: FALSE | CF38: FALSE | CG38: FALSE
C39: =IF(BX38,"Note the surface area ("&N13&" sf) should represent the area contributing to the permeable pavement facility. Facility area will be entered on the BMP Sizing tab.","") -> 
B41: Permeable Pavement Surface | BS41: Permeable Pavement Surface | BT41: =IF(BZ2=4,IF(N11="Arterial Street or Collector","NoEval",IF(CA41,"Infeasible","Feasibility")), IF(BZ2=5,IF(AND(N11="ROW",N13<2000),"NoEval",IF(OR(N11="ROW",N11="Other"),IF(CA41,"Infeasible","Feasibility"),"NoEval")), IF(BZ2=6,IF(AND(N11="Other",N13<2000),"NoEval",IF(AND(N11="ROW",N13<2000),"NoEval",IF(OR(N11="Other",N11="ROW"),IF(CA41,"Infeasible","NotRequired"),"NoEval")))))) -> Feasibility | BU41: =IF(OR(R41="",BX41),FALSE,OR(NOT(BZ41),BV41)) -> FALSE | BV41: =R41="Infeasible" -> FALSE | BW41: =AND(BV41,NOT(Y41="")) -> FALSE | BX41: =R41="Use BMP" -> FALSE | BY41: =OR(BX26,BX29,BX38,BX32,BX44,BX35) -> FALSE | BZ41: =INDEX(CB41:CG41,MATCH($BZ$2,$CB$2:$CG$2,0)) -> TRUE | CB41: FALSE | CC41: FALSE | CD41: FALSE | CE41: =IF(N11="Arterial Street or Collector",FALSE,TRUE) -> TRUE | CF41: =IF(AND(N11="ROW",N13<2000),FALSE,IF(OR(N11="ROW",N11="Other"),TRUE,FALSE)) -> FALSE | CG41: =AND(N13>=2000,OR(N11="Other",N11="ROW")) -> FALSE
C42: =IF(N9="","", IF(MeasuredInfRate<0.3, "", IF(BZ2=4,IF(N11="Arterial Street or Collector","Evaluation is not allowed if roadway is an arterial street or collector.",""), IF(BZ2=5,IF(AND(N11="ROW",N13<2000),"Minimum permeable pavement area allowed in the ROW is 2,000 sf.",IF(OR(N11="ROW",N11="Other"),"","Evaluation of roadway surfaces, including alleys, is not allowed.")), IF(BZ2=6,IF(AND(N11="Other",N13<2000),"Evaluation is not allowed if new plus replaced PGHS is less than 2,000 sf.",IF(AND(N11="ROW",N13<2000),"Minimum permeable pavement area allowed in the ROW is 2,000 sf.",IF(OR(N11="Other",N11="ROW"),"","Evaluation of roadway surfaces, including alleys, is not allowed.")))))))) -> 
B44: Sidewalk/Trail Compost-Amended Strip | BS44: Sidewalk/Trail Compost-Amended Strip | BT44: =IF(N9="Roof","NoEval","NotRequired") -> NotRequired | BU44: =IF(OR(R44="",BX44),FALSE,OR(NOT(BZ44),BV44)) -> FALSE | BV44: =R44="Infeasible" -> FALSE | BW44: =AND(BV44,NOT(Y44="")) -> FALSE | BX44: =R44="Use BMP" -> FALSE | BY44: =OR(BX29,BX38,BX41,BX26,BX32,BX35) -> FALSE | BZ44: =INDEX(CB44:CG44,MATCH($BZ$2,$CB$2:$CG$2,0)) -> FALSE | CA44: =AND(InfExploration,OR(InfiltrationInfeasible,InfRate<0.15), 'Project Summary'!$AA$60<>Lookup!$R$2) -> FALSE | CB44: FALSE | CC44: FALSE | CD44: FALSE | CE44: FALSE | CF44: FALSE | CG44: FALSE
C45: =IF(N9="","", "Evaluation of roadway surfaces, including alleys, is not allowed.") -> 
A47: Category 3 | BS47: Category 3 | BU47: =NOT(AND(BU19:BU21,BU25:BU45,N9<>"")) -> TRUE
B49: BMP | R49: Feasibility | Y49: Infeasibility Criteria
B51: Sheet Flow Dispersion | BS51: Sheet Flow Dispersion | BT51: =IF(BZ51,IF(CA51,"Infeasible","Feasibility"),"NoEval") -> Feasibility | BU51: =IF(OR(R51="",BX51),FALSE,OR(NOT(BZ51),BV51)) -> FALSE | BV51: =R51="Infeasible" -> FALSE | BW51: =AND(BV51,NOT(Y51="")) -> FALSE | BX51: =R51="Use BMP" -> FALSE | BY51: =BX53 -> FALSE | BZ51: =INDEX(CB51:CG51,MATCH($BZ$2,$CB$2:$CG$2,0)) -> TRUE | CA51: =Dispersion -> FALSE | CB51: FALSE | CC51: FALSE | CD51: FALSE | CE51: TRUE | CF51: TRUE | CG51: TRUE
B53: Concentrated Flow Dispersion | BS53: Concentrated Flow Dispersion | BT53: =IF(BZ53,IF(CA53,"Infeasible","Feasibility"),"NoEval") -> Feasibility | BU53: =IF(OR(R53="",BX53),FALSE,OR(NOT(BZ53),BV53)) -> FALSE | BV53: =R53="Infeasible" -> FALSE | BW53: =AND(BV53,NOT(Y53="")) -> FALSE | BX53: =R53="Use BMP" -> FALSE | BY53: =BX51 -> FALSE | BZ53: =INDEX(CB53:CG53,MATCH($BZ$2,$CB$2:$CG$2,0)) -> TRUE | CA53: =Dispersion -> FALSE | CB53: FALSE | CC53: FALSE | CD53: FALSE | CE53: TRUE | CF53: TRUE | CG53: TRUE
A56: Category 4 | BS56: Category 4 | BU56: =NOT(AND(BU19,BU26:BU44,BU51:BU53,N9<>"")) -> TRUE
B58: BMP | R58: Feasibility | Y58: Infeasibility Criteria
B60: Trees | BS60: Trees | BT60: =IF(BZ60,"Feasibility","NoEval") -> Feasibility | BU60: =IF(OR(R60="",BX60),FALSE,OR(NOT(BZ60),BV60)) -> FALSE | BV60: =R60="Infeasible" -> FALSE | BW60: =AND(BV60,NOT(Y60="")) -> FALSE | BX60: =R60="Use BMP" -> FALSE | BY60: =BX62 -> FALSE | BZ60: =INDEX(CB60:CG60,MATCH($BZ$2,$CB$2:$CG$2,0)) -> TRUE | CA60: =Dispersion -> FALSE | CB60: FALSE | CC60: FALSE | CD60: FALSE | CE60: TRUE | CF60: TRUE | CG60: TRUE
B62: Non-Infiltrating Soil Cell Bioretention with Tree | BS62: Non-Infiltrating Soil Cell Bioretention with Tree | BT62: NotRequired | BU62: =IF(OR(R62="",BX62),FALSE,OR(NOT(BZ62),BV62)) -> FALSE | BV62: =R62="Infeasible" -> FALSE | BW62: =AND(BV62,NOT(Y62="")) -> FALSE | BX62: =R62="Use BMP" -> FALSE | BY62: =BX60 -> FALSE | BZ62: =INDEX(CB62:CG62,MATCH($BZ$2,$CB$2:$CG$2,0)) -> FALSE | CA62: =Dispersion -> FALSE | CB62: FALSE | CC62: FALSE | CD62: FALSE | CE62: FALSE | CF62: FALSE | CG62: FALSE

Sheet Parcel (hidden)
A1: On-site Stormwater Management Calculator - List Approach | BZ1: Column to Use | CB1: Evaluation Required
A2: Surface Identification and BMP Evaluation for Parcel-Based Projects | BS2: None Feasible | BX2: =AND(COUNTIFS(BT19:BT101,"Feasibility",BV19:BV101,TRUE)=COUNTIF(BT19:BT101,"Feasibility"),COUNTIF(BX19:BX101,TRUE)=0) -> FALSE | BZ2: =OFFSET(CA2,0,IF($N$9="Roof",0,3)+'Project Summary'!$AS$37) -> 4 | CB2: 1 | CC2: 2 | CD2: 3 | CE2: 4 | CF2: 5 | CG2: 6
B4: Project No. | N4: ='Project Summary'!$AG$6 -> 0 | CB4: Roof | CC4: Roof | CD4: Roof | CE4: Surface | CF4: Surface | CG4: Surface
B7: Hard Surface Number | BS7: BMP | BT7: Dropdown Lookup | BU7: Grey Out | BV7: Infeasible Selected | BW7: Infeasibility Criteria Selected | BX7: BMP Selected | BY7: Other BMP in Group Selected | BZ7: Evaluation Required | CA7: Dispersion/Infiltration Infeasible | CB7: Not designated receiving water | CC7: Public combined sewer or capacity constrained | CD7: Designated Receiving Water | CE7: Not designated receiving water | CF7: Public combined sewer or capacity constrained | CG7: Designated Receiving Water
B9: Hard Surface Type | W9: ´ | Y9: =IF(COUNTIF(BX19:BX104,TRUE)>1,"More than one Use BMP selected, please select only one. ","") & IF(SUMPRODUCT($BV$19:$BV$105*NOT(BW19:BW105)*NOT(BY19:BY105)) > 0,SUMPRODUCT($BV$19:$BV$105*NOT(BW19:BW105)*NOT(BY19:BY105))&" BMP(s) require infeasibility criteria.","") -> 
B11: Hard Surface Description
B13: Surface Area (sf)
A15: Category 1 (Select 1 BMP from Category 1, order does not matter, or move to Category 2) | BS15: Category 1
B17: BMP | R17: Feasibility | Y17: Infeasibility Criteria (see infeasibility criteria tab for full text)
B19: Full Dispersion | BS19: Full Dispersion | BT19: =IF(BZ19,IF(CA19,"Infeasible","Feasibility"),"NoEval") -> Feasibility | BU19: =IF(OR(BX19,R19=""),FALSE,OR(NOT(BZ19),BV19)) -> FALSE | BV19: =R19="Infeasible" -> FALSE | BW19: =AND(BV19,NOT(Y19="")) -> FALSE | BX19: =R19="Use BMP" -> FALSE | BY19: =OR(BX22,BX25,BX28) -> FALSE | BZ19: =INDEX(CB19:CG19,MATCH($BZ$2,$CB$2:$CG$2,0)) -> TRUE | CA19: =Dispersion -> FALSE | CB19: TRUE | CC19: TRUE | CD19: TRUE | CE19: TRUE | CF19: TRUE | CG19: TRUE
B22: Infiltration Trench | BS22: Infiltration Trench | BT22: =IF(CA22,"Infeasible",IF(BZ22,"Feasibility",IF(N9="Roof","NoEval","NotRequired"))) -> NotRequired | BU22: =IF(OR(BX22,R22=""),FALSE,OR(NOT(BZ22),BV22)) -> FALSE | BV22: =R22="Infeasible" -> FALSE | BW22: =AND(BV22,NOT(Y22="")) -> FALSE | BX22: =R22="Use BMP" -> FALSE | BY22: =OR(BX19,BX25,BX28) -> FALSE | BZ22: =INDEX(CB22:CG22,MATCH($BZ$2,$CB$2:$CG$2,0)) -> FALSE | CA22: =AND(InfExploration,OR(InfiltrationInfeasible,MeasuredInfRate<2)) -> FALSE | CB22: TRUE | CC22: TRUE | CD22: TRUE | CE22: FALSE | CF22: FALSE | CG22: FALSE
C23: =IF(N9="","",IF(N9="Roof","","Evaluation is not required but allowed.")) -> 
B25: Dry Well | BS25: Dry Well | BT25: =IF(BZ25,IF(CA25,"Infeasible","Feasibility"),IF(N9="Roof","NoEval","NotRequired")) -> NotRequired | BU25: =IF(OR(BX25,R25=""),FALSE,OR(NOT(BZ25),BV25)) -> FALSE | BV25: =R25="Infeasible" -> FALSE | BW25: =AND(BV25,NOT(Y25="")) -> FALSE | BX25: =R25="Use BMP" -> FALSE | BY25: =OR(BX19,BX22,BX28) -> FALSE | BZ25: =INDEX(CB25:CG25,MATCH($BZ$2,$CB$2:$CG$2,0)) -> FALSE | CA25: =AND(InfExploration,OR(InfiltrationInfeasible,MeasuredInfRate<5)) -> FALSE | CB25: TRUE | CC25: TRUE | CD25: TRUE | CE25: FALSE | CF25: FALSE | CG25: FALSE
C26: =IF(N9="","",IF(N9="Roof","","Evaluation is not required but allowed.")) -> 
B28: Rainwater Harvesting - Category 1 Sizing | BS28: Rainwater Harvesting - Category 1 | BT28: =IF(N9="Roof",IF(BZ28,"Feasibility","NotRequired"),"NoEval") -> NoEval | BU28: =IF(OR(BX28,R28=""),FALSE,OR(NOT(BZ28),BV28)) -> FALSE | BV28: =R28="Infeasible" -> FALSE | BW28: =AND(BV28,NOT(Y28="")) -> FALSE | BX28: =R28="Use BMP" -> FALSE | BY28: =OR(BX19,BX22,BX25) -> FALSE | BZ28: =INDEX(CB28:CG28,MATCH($BZ$2,$CB$2:$CG$2,0)) -> FALSE | CB28: =(SUMIF('Project Summary'!$AY$78:$AY$83,"Roof",'Project Summary'!$W$78:$Z$79))>=10000 -> FALSE | CC28: =(SUMIF('Project Summary'!$AY$78:$AY$83,"Roof",'Project Summary'!$W$78:$Z$79))>=10000 -> FALSE | CD28: FALSE | CE28: FALSE | CF28: FALSE | CG28: FALSE
C29: =IF($N$9="","", IF(N9="Roof",IF(BZ2=3,"Evaluation not required but allowed.",""),"Evaluation not allowed for non-roof surfaces.")) -> 
A31: Category 2 | BS31: Category 2 | BU31: =NOT(AND(BU19:BU28,N9<>"")) -> TRUE
B33: BMP | R33: Feasibility | Y33: Infeasibility Criteria
B35: Rain Garden with or without Tree | BS35: Rain Garden | BT35: =IF(BZ35,IF(CA35,"Infeasible","Feasibility"),"NoEval") -> Feasibility | BU35: =IF(OR(BX35,R35=""),FALSE,OR(NOT(BZ35),BV35)) -> FALSE | BV35: =R35="Infeasible" -> FALSE | BW35: =AND(BV35,NOT(Y35="")) -> FALSE | BX35: =R35="Use BMP" -> FALSE | BY35: =OR(BX38,BX41,BX44,BX47,BX50) -> FALSE | BZ35: =INDEX(CB35:CG35,MATCH($BZ$2,$CB$2:$CG$2,0)) -> TRUE | CA35: =AND(InfExploration,OR(InfiltrationInfeasible,MeasuredInfRate<0.3)) -> FALSE | CB35: =AND(NOT('Project Summary'!$AS$45),NOT('Project Summary'!$AS$47),N13<5000) -> TRUE | CC35: =AND(NOT('Project Summary'!$AS$45),NOT('Project Summary'!$AS$47),N13<5000) -> TRUE | CD35: =AND(NOT('Project Summary'!$AS$45),NOT('Project Summary'!$AS$47),N13<5000) -> TRUE | CE35: =AND(NOT('Project Summary'!$AS$45),NOT('Project Summary'!$AS$47),N13<5000) -> TRUE | CF35: =AND(NOT('Project Summary'!$AS$45),NOT('Project Summary'!$AS$47),N13<5000) -> TRUE | CG35: =AND(NOT('Project Summary'!$AS$45),NOT('Project Summary'!$AS$47),N13<5000) -> TRUE
C36: =IF($N$9="","",IF(BZ35,"","Evaluation not allowed when project requires flow control or water quality treatment or >5000 SF hard surface is infiltrated onsite.")) -> 
B38: Infiltrating Bioretention with or without Tree | BS38: Infiltrating Bioretention | BT38: =IF(BZ38,IF(CA38,"Infeasible","Feasibility"),"NoEval") -> Feasibility | BU38: =IF(OR(BX38,R38=""),FALSE,OR(NOT(BZ38),BV38)) -> FALSE | BV38: =R38="Infeasible" -> FALSE | BW38: =AND(BV38,NOT(Y38="")) -> FALSE | BX38: =R38="Use BMP" -> FALSE | BY38: =OR(BX35,BX41,BX44,BX47,BX50) -> FALSE | BZ38: =INDEX(CB38:CG38,MATCH($BZ$2,$CB$2:$CG$2,0)) -> TRUE | CA38: =AND(InfExploration,OR(InfiltrationInfeasible,MeasuredInfRate<0.3)) -> FALSE | CB38: TRUE | CC38: TRUE | CD38: TRUE | CE38: TRUE | CF38: TRUE | CG38: TRUE
B41: Infiltrating Soil Cell Bioretention with Tree | BS41: Infiltrating Soil Cell Bioretention with Tree | BT41: =IF(CA41,"Infeasible","NotRequired") -> NotRequired | BU41: =IF(OR(BX41,R41=""),FALSE,OR(NOT(BZ41),BV41)) -> FALSE | BV41: =R41="Infeasible" -> FALSE | BW41: =AND(BV41,NOT(Y41="")) -> FALSE | BX41: =R41="Use BMP" -> FALSE | BY41: =OR(BX38,BX35,BX47,BX50,BX44) -> FALSE | BZ41: =INDEX(CB41:CG41,MATCH($BZ$2,$CB$2:$CG$2,0)) -> FALSE | CA41: =AND(InfExploration,OR(InfiltrationInfeasible,MeasuredInfRate<0.3)) -> FALSE | CB41: FALSE | CC41: FALSE | CD41: FALSE | CE41: FALSE | CF41: FALSE | CG41: FALSE
C42: =IF($N$9="","","Evaluation not required but allowed.") -> 
B44: Permeable Pavement Facility | BS44: Permeable Pavement Facility | BT44: =IF($CA$44,"Infeasible","Feasibility") -> Feasibility | BU44: =IF(OR(BX44,R44=""),FALSE,OR(NOT(BZ44),BV44)) -> FALSE | BV44: =R44="Infeasible" -> FALSE | BW44: =AND(BV44,NOT(Y44="")) -> FALSE | BX44: =R44="Use BMP" -> FALSE | BY44: =OR(BX35,BX38,BX41,BX47,BX50) -> FALSE | BZ44: =INDEX(CB44:CG44,MATCH($BZ$2,$CB$2:$CG$2,0)) -> TRUE | CA44: =AND(InfExploration,OR(InfiltrationInfeasible,MeasuredInfRate<0.3)) -> FALSE | CB44: TRUE | CC44: TRUE | CD44: TRUE | CE44: TRUE | CF44: TRUE | CG44: TRUE
C45: =IF(BX44,"Note: the surface area ("&N13&" sf) must represent the area contributing to the permeable pavement facility. Do not create a separate surface tab for the Permeable Pavement Facility, facility area will be entered on the BMP Sizing sheet.","") -> 
B47: Permeable Pavement Surface | BS47: Permeable Pavement Surface | BT47: =IF(NOT($BZ$47),"NoEval",IF($CA$47,"Infeasible","Feasibility")) -> Feasibility | BU47: =IF(OR(BX47,R47=""),FALSE,OR(NOT(BZ47),BV47)) -> FALSE | BV47: =R47="Infeasible" -> FALSE | BW47: =AND(BV47,NOT(Y47="")) -> FALSE | BX47: =R47="Use BMP" -> FALSE | BY47: =OR(BX35,BX38,BX41,BX44,BX50) -> FALSE | BZ47: =INDEX(CB47:CG47,MATCH($BZ$2,$CB$2:$CG$2,0)) -> TRUE | CB47: FALSE | CC47: FALSE | CD47: FALSE | CE47: TRUE | CF47: TRUE | CG47: TRUE
C48: =IF(N9="","",IF(N9="Roof","Evaluation not allowed for roof surfaces.","")) -> 
B50: Sidewalk/Trail Compost-Amended Strip | BS50: Sidewalk/Trail Compost-Amended Strip | BT50: =IF(NOT($BZ$50),"NoEval","Feasibility") -> Feasibility | BU50: =IF(OR(BX50,R50=""),FALSE,OR(NOT(BZ50),BV50)) -> FALSE | BV50: =R50="Infeasible" -> FALSE | BW50: =AND(BV50,NOT(Y50="")) -> FALSE | BX50: =R50="Use BMP" -> FALSE | BY50: =OR(BX35,BX38,BX41,BX44,BX47) -> FALSE | BZ50: =INDEX(CB50:CG50,MATCH($BZ$2,$CB$2:$CG$2,0)) -> TRUE | CA50: =AND(InfExploration,OR(InfiltrationInfeasible,InfRate<0.15), 'Project Summary'!$AA$60<>Lookup!$R$2) -> FALSE | CB50: FALSE | CC50: FALSE | CD50: FALSE | CE50: TRUE | CF50: TRUE | CG50: TRUE
C51: =IF(N9="","",IF(N9="Roof","Evaluation not allowed for roof surfaces.","")) -> 
A53: Category 3 | BS53: Category 3 | BU53: =NOT(AND(BU19:BU28,BU32:BU50,N9<>"")) -> TRUE
B55: BMP | R55: Feasibility | Y55: Infeasibility Criteria
B57: Infiltrating Soil Cell Bioretention w/o Tree | BS57: Infiltrating Soil Cell Bioretention without Tree | BT57: =IF(BZ57,IF(CA57,"Infeasible","Feasibility"),"NotRequired") -> NotRequired | BU57: =IF(OR(BX57,R57=""),FALSE,OR(NOT(BZ57),BV57)) -> FALSE | BV57: =R57="Infeasible" -> FALSE | BW57: =AND(BV57,NOT(Y57="")) -> FALSE | BX57: =R57="Use BMP" -> FALSE | BY57: =OR(BX69,BX63,BX66,BX60) -> FALSE | BZ57: =INDEX(CB57:CG57,MATCH($BZ$2,$CB$2:$CG$2,0)) -> FALSE | CA57: =AND(InfExploration,OR(InfiltrationInfeasible,MeasuredInfRate<0.3)) -> FALSE | CB57: FALSE | CC57: FALSE | CD57: FALSE | CE57: FALSE | CF57: FALSE | CG57: FALSE
C58: =IF($N$9="","","Evaluation not required but allowed.") -> 
B60: Sheet Flow Dispersion | BS60: Sheet Flow Dispersion | BT60: =IF(BZ60,"Feasibility","Infeasible") -> Feasibility | BU60: =IF(OR(BX60,R60=""),FALSE,OR(NOT(BZ60),BV60)) -> FALSE | BV60: =R60="Infeasible" -> FALSE | BW60: =AND(BV60,NOT(Y60="")) -> FALSE | BX60: =R60="Use BMP" -> FALSE | BY60: =OR(BX63,BX66,BX69,BX57) -> FALSE | BZ60: =AND(INDEX(CB60:CG60,MATCH($BZ$2,$CB$2:$CG$2,0)),NOT(CA60)) -> TRUE | CA60: =Dispersion -> FALSE | CB60: TRUE | CC60: TRUE | CD60: TRUE | CE60: TRUE | CF60: TRUE | CG60: TRUE
B63: Concentrated Flow Dispersion | BS63: Concentrated Flow Dispersion | BT63: =IF(BZ63,"Feasibility",IF(N9="Roof","NoEval","Infeasible")) -> Feasibility | BU63: =IF(OR(BX63,R63=""),FALSE,OR(NOT(BZ63),BV63)) -> FALSE | BV63: =R63="Infeasible" -> FALSE | BW63: =AND(BV63,NOT(Y63="")) -> FALSE | BX63: =R63="Use BMP" -> FALSE | BY63: =OR(BX60,BX66,BX69,BX57) -> FALSE | BZ63: =AND(INDEX(CB63:CG63,MATCH($BZ$2,$CB$2:$CG$2,0)),NOT(CA63)) -> TRUE | CA63: =Dispersion -> FALSE | CB63: FALSE | CC63: FALSE | CD63: FALSE | CE63: TRUE | CF63: TRUE | CG63: TRUE
C64: =IF($N$9="Roof","Evaluation not allowed for roof surfaces.","") -> 
B66: Splashblock Downspout Dispersion | BS66: Splashblock Downspout Dispersion | BT66: =IF(BZ66,"Feasibility",IF(CA66,"Infeasible","NoEval")) -> NoEval | BU66: =IF(OR(BX66,R66=""),FALSE,OR(NOT(BZ66),BV66)) -> FALSE | BV66: =R66="Infeasible" -> FALSE | BW66: =AND(BV66,NOT(Y66="")) -> FALSE | BX66: =R66="Use BMP" -> FALSE | BY66: =OR(BX60,BX63,BX69,BX57) -> FALSE | BZ66: =AND(INDEX(CB66:CG66,MATCH($BZ$2,$CB$2:$CG$2,0)),NOT(CA66)) -> FALSE | CA66: =Dispersion -> FALSE | CB66: TRUE | CC66: TRUE | CD66: TRUE | CE66: FALSE | CF66: FALSE | CG66: FALSE
C67: =IF($N$9="","",IF($N$9="Roof","","Evaluation not allowed for non-roof surfaces.")) -> 
B69: Trench Downspout Dispersion | BS69: Trench Downspout Dispersion | BT69: =IF(BZ69,"Feasibility",IF(CA69,"Infeasible","NoEval")) -> NoEval | BU69: =IF(OR(BX69,R69=""),FALSE,OR(NOT(BZ69),BV69)) -> FALSE | BV69: =R69="Infeasible" -> FALSE | BW69: =AND(BV69,NOT(Y69="")) -> FALSE | BX69: =R69="Use BMP" -> FALSE | BY69: =OR(BX60,BX63,BX66,BX57) -> FALSE | BZ69: =AND(INDEX(CB69:CG69,MATCH($BZ$2,$CB$2:$CG$2,0)),NOT(CA69)) -> FALSE | CA69: =Dispersion -> FALSE | CB69: TRUE | CC69: TRUE | CD69: TRUE | CE69: FALSE | CF69: FALSE | CG69: FALSE
C70: =IF($N$9="","",IF($N$9="Roof","","Evaluation not allowed for non-roof surfaces.")) -> 
A72: Category 4 | BS72: Category 4 | BU72: =NOT(AND(BU18:BU28,BU34:BU51,BU57:BU69,N9<>"")) -> TRUE
B74: BMP | R74: Feasibility | Y74: Infeasibility Criteria
B76: Non-Infiltrating Bioretention (NIB) | BS76: Non-Infiltrating Bioretention | BT76: =IF(BZ76,"Feasibility","Infeasible") -> Feasibility | BU76: =IF(OR(BX76,R76=""),FALSE,OR(NOT(BZ76),BV76)) -> FALSE | BV76: =R76="Infeasible" -> FALSE | BW76: =AND(BV76,NOT(Y76="")) -> FALSE | BX76: =R76="Use BMP" -> FALSE | BY76: =OR(BX82,BX85,BX88,BX79,BX91) -> FALSE | BZ76: =INDEX(CB76:CG76,MATCH($BZ$2,$CB$2:$CG$2,0)) -> TRUE | CB76: TRUE | CC76: TRUE | CD76: TRUE | CE76: TRUE | CF76: TRUE | CG76: TRUE
BT78: "
B79: Non-Infiltrating Soil Cell Bioretention with Tree | BS79: Non-Infiltrating Soil Cell Bioretention with Tree | BT79: =IF(BZ79,"Feasibility","NotRequired") -> NotRequired | BU79: =IF(OR(BX79,R79=""),FALSE,OR(NOT(BZ79),BV79)) -> FALSE | BV79: =R79="Infeasible" -> FALSE | BW79: =AND(BV79,NOT(Y79="")) -> FALSE | BX79: =R79="Use BMP" -> FALSE | BY79: =OR(BX85,BX88,BX82,BX76,BX91) -> FALSE | BZ79: =INDEX(CB79:CG79,MATCH($BZ$2,$CB$2:$CG$2,0)) -> FALSE | CB79: FALSE | CC79: FALSE | CD79: FALSE | CE79: FALSE | CF79: FALSE | CG79: FALSE
C80: =IF($N$9="","","Evaluation not required but allowed.") -> 
BT81: "
B82: Water Quality BMP in lieu of NIB | BS82: Water Quality BMP in lieu of NIB | BT82: =IF('Project Summary'!$Q$37=Lookup!$I$5,"NoEval","UseorNotEvaluated") -> UseorNotEvaluated | BU82: =IF(OR(BX82,R82=""),FALSE,OR(NOT(BZ82),BV82)) -> FALSE | BV82: =R82="Infeasible" -> FALSE | BW82: =AND(BV82,NOT(Y82="")) -> FALSE | BX82: =R82="Use BMP" -> FALSE | BY82: =OR(BX76,BX85,BX88,BX79,BX91) -> FALSE | BZ82: =INDEX(CB82:CG82,MATCH($BZ$2,$CB$2:$CG$2,0)) -> FALSE | CB82: =AND(FALSE,NOT('Project Summary'!$Q$37=Lookup!$I$5)) -> FALSE | CC82: =AND(FALSE,NOT('Project Summary'!$Q$37=Lookup!$I$5)) -> FALSE | CD82: =AND(FALSE,NOT('Project Summary'!$Q$37=Lookup!$I$5)) -> FALSE | CE82: =AND(FALSE,NOT('Project Summary'!$Q$37=Lookup!$I$5)) -> FALSE | CF82: =AND(FALSE,NOT('Project Summary'!$Q$37=Lookup!$I$5)) -> FALSE | CG82: =AND(FALSE,NOT('Project Summary'!$Q$37=Lookup!$I$5)) -> FALSE
C83: =IF(N9="","",IF('Project Summary'!Q37=Lookup!I5,"Evaluation not allowed in Combined Sewer Service Area.","Evaluation is allowed but not required.")) -> 
B85: Rainwater Harvesting - Category 4 Sizing | BS85: Rainwater Harvesting - Category 4 | BT85: =IF(N9="Roof",IF(BZ85,"Feasibility","NotRequired"),"NoEval") -> NoEval | BU85: =IF(OR(BX85,R85=""),FALSE,OR(NOT(BZ85),BV85)) -> FALSE | BV85: =R85="Infeasible" -> FALSE | BW85: =AND(BV85,NOT(Y85="")) -> FALSE | BX85: =R85="Use BMP" -> FALSE | BY85: =OR(BX76,BX82,BX88,BX79,BX91) -> FALSE | BZ85: =INDEX(CB85:CG85,MATCH($BZ$2,$CB$2:$CG$2,0)) -> FALSE | CB85: =IF((SUMIF('Project Summary'!$AY$78:$AY$83,"Roof",'Project Summary'!$W$78:$Z$79))<20000,FALSE,TRUE) -> FALSE | CC85: =IF((SUMIF('Project Summary'!$AY$78:$AY$83,"Roof",'Project Summary'!$W$78:$Z$79))<20000,FALSE,TRUE) -> FALSE | CD85: FALSE | CE85: FALSE | CF85: FALSE | CG85: FALSE
C86: =IF($N$9="","", IF(BZ2=3,"Evaluation not required but allowed.", IF(N9="Roof","Evaluation not required for less than 20,000 sf of new and replaced rooftop but allowed.","Evaluation not allowed for non-roof surfaces."))) -> 
B88: Vegetated Roof System | BS88: Vegetated Roof System | BT88: =IF(N9="Roof",IF(BZ88,"Feasibility","NotRequired"),"NoEval") -> NoEval | BU88: =IF(OR(BX88,R88=""),FALSE,OR(NOT(BZ88),BV88)) -> FALSE | BV88: =R88="Infeasible" -> FALSE | BW88: =AND(BV88,NOT(Y88="")) -> FALSE | BX88: =R88="Use BMP" -> FALSE | BY88: =OR(BX76,BX82,BX85,BX79,BX91) -> FALSE | BZ88: =INDEX(CB88:CG88,MATCH($BZ$2,$CB$2:$CG$2,0)) -> FALSE | CB88: =IF((SUMIF('Project Summary'!$AY$78:$AY$83,"Roof",'Project Summary'!$W$78:$Z$79))<5000,FALSE,TRUE) -> FALSE | CC88: =IF((SUMIF('Project Summary'!$AY$78:$AY$83,"Roof",'Project Summary'!$W$78:$Z$79))<5000,FALSE,TRUE) -> FALSE | CD88: =IF((SUMIF('Project Summary'!$AY$78:$AY$83,"Roof",'Project Summary'!$W$78:$Z$79))<5000,FALSE,TRUE) -> FALSE | CE88: FALSE | CF88: FALSE | CG88: FALSE
C89: =IF($N$9="","",IF(N9="Roof",IF(NOT(BZ88),"Evaluation not required but allowed.","Evaluation not required for less than 5,000 sf of new plus replaced rooftop surface."),"Evaluation not allowed for non-roof surfaces.")) -> 
B91: Residential Cistern | BS91: Residential Cistern | BT91: =IF(N9="Roof","NotRequired","NoEval") -> NoEval | BU91: =IF(OR(BX91,R91=""),FALSE,OR(NOT(BZ91),BV91)) -> FALSE | BV91: =R91="Infeasible" -> FALSE | BW91: =AND(BV91,NOT(Y91="")) -> FALSE | BX91: =R91="Use BMP" -> FALSE | BY91: =OR(BX82,BX88,BX79,BX85,BX76) -> FALSE | BZ91: =INDEX(CB91:CG91,MATCH($BZ$2,$CB$2:$CG$2,0)) -> FALSE | CB91: FALSE | CC91: FALSE | CD91: FALSE | CE91: FALSE | CF91: FALSE | CG91: FALSE
C92: =IF($N$9="","",IF($N$9="Roof","Evaluate not required but allowed.","Evaluation not allowed for non-roof surfaces.")) -> 
A94: Category 5 | BS94: Category 5 | BU94: =NOT(AND(BU19:BU28,BU32:BU50,BU54:BU69,BU76:BU91,N9<>"")) -> TRUE
B96: BMP | R96: Feasibility | Y96: Infeasibility Criteria
B98: Perforated Stub-out Connection | BS98: Perforated Stub-out Connection | BT98: =IF(N9="Roof",IF(CA98,"Infeasible","Feasibility"),"NoEval") -> NoEval | BU98: =IF(OR(BX98,R98=""),FALSE,OR(NOT(BZ98),BV98)) -> FALSE | BV98: =R98="Infeasible" -> FALSE | BW98: =AND(BV98,NOT(Y98="")) -> FALSE | BX98: =R98="Use BMP" -> FALSE | BY98: =BX101 -> FALSE | BZ98: =INDEX(CB98:CG98,MATCH($BZ$2,$CB$2:$CG$2,0)) -> FALSE | CA98: =AND(InfExploration,OR(InfiltrationInfeasible,MeasuredInfRate<0.3)) -> FALSE | CB98: TRUE | CC98: TRUE | CD98: TRUE | CE98: FALSE | CF98: FALSE | CG98: FALSE
C99: =IF($N$9="","",IF(N9="Roof","","Evaluation not allowed for non-roof surfaces.")) -> 
B101: Trees | BS101: Trees | BT101: =IF(N9="Roof","NoEval","Feasibility") -> Feasibility | BU101: =IF(OR(BX101,R101=""),FALSE,OR(NOT(BZ101),BV101)) -> FALSE | BV101: =R101="Infeasible" -> FALSE | BW101: =AND(BV101,NOT(Y101="")) -> FALSE | BX101: =R101="Use BMP" -> FALSE | BY101: =BX98 -> FALSE | BZ101: =INDEX(CB101:CG101,MATCH($BZ$2,$CB$2:$CG$2,0)) -> TRUE | CB101: FALSE | CC101: FALSE | CD101: FALSE | CE101: TRUE | CF101: TRUE | CG101: TRUE
C102: =IF(NOT(BZ101),"Evaluation not allowed for roof surfaces.","") -> 

Sheet log (hidden)

Sheet Lookup (hidden)
A1: Project Type | B1: Surface Type | C1: BMP Feasibility | D1: Ponding Depths | E1: Side slopes | F1: YesNo | G1: Check | H1: No Eval | I1: Drainage Basin | J1: Basin + Capacity Constrained | K1: On-Site List Lookup Column | L1: Sheet Name | M1: Infeasible Infiltration | O1: Empty List | P1: Environmentally Critical Areas | Q1: Dispersion Infeasible | R1: Infiltration Investigation No | S1: Infiltration Investigation Yes | T1: Infiltration Infeasible | U1: ROW Surface List | V1: Approved Point of Stormwater Discharge | W1: Approved Point of Sub Discharge | X1: Approved Point of Wastewater Discharge | Y1: Does Not Apply
A2: Trail and Sidewalk | B2: Roof | C2: - | D2: 6 | E2: Vertical | F2: Yes | H2: Not Evaluated | I2: Listed Creek Basin | J2: Listed Creek BasinYes | K2: 1 | L2: Trail | M2: Infeasible | O2: ="" ->  | P2: No | Q2: Site cannot meet required horizontal setbacks | R2: Site is mapped as "infltr. investigation not required" | S2: Simple infiltration test | T2: Can’t meet setbacks from structures/property lines | U2: ROW | V2: Public Storm Drain Main | W2: Public Storm Drain Main | X2: Public Sanitary Sewer Main | Y2: Does Not Apply for Roadway or Trail and Sidewalk projects
A3: Parcel-Based | B3: Non-Roof | C3: Infeasible | D3: 12 | E3: 3H:1V | F3: No | G3: ✓ | H3: Evaluation not required for roof. | I3: Non-listed Creek Basin | J3: Non-listed Creek BasinYes | K3: 1 | L3: Parcel | M3: Infiltration is infeasible on site. | P3: Geologic Hazard/ Steep Slope Area | Q3: Site constraints make dispersion infeasible | R3: Other | S3: Small PIT test | T3: Can’t meet separation from groundwater/hard pan | U3: Alley | V3: Drainage Ditch | W3: Drainage Ditch | X3: Public Combined Sewer Main
A4: Roadway | C4: Use BMP | H4: Evaluation not required for other surfaces. | I4: Designated Receiving Water | J4: Designated Receiving WaterYes | K4: 2 | L4: Road | M4: Dispersion is infeasible | P4: Flood-prone Area | Q4: Site cannot meet flow path requirements | S4: Large PIT test | T4: Can’t meet setbacks from environmental “Site Constraints” | U4: Arterial Street or Collector | V4: Drainage Culvert | W4: Drainage Culvert | X4: Existing Septic System (King County Public Health Department Approval Required)
A5: Utility | C5: Not Evaluated | I5: Combined Sewer Service Area | J5: Combined Sewer Service AreaYes | K5: 2 | L5: x | P5: Wetland | Q5: One or more of the infeasibility criteria for “All Dispersion BMPs” (Appendix C, Table C.1) apply. | S5: Deep infiltration test | T5: Measured infl rate is less than 0.3 inch/hour | U5: Roadway | V5: Curb Weep | W5: Direct to Receiving Water
A6: Pavement Maintenance | C6: None Feasible | I6: Small Lake Basins | J6: Small Lake BasinsYes | K6: 1 | L6: x | P6: Fish and Wildlife Conservation Area | T6: Site is mapped as "infltr. investigation not required" | U6: Other | V6: Alley Surface Drain | W6: Wetland
A7: Remediation | I7: Wetland | J7: WetlandYes | K7: 1 | L7: x | P7: Abandoned Landfill | V7: Direct to Receiving Water | W7: Public Combined Sewer Main
A8: Stormwater Retrofit | I8: N/A for Residential and Lowrise Projects | J8: Listed Creek BasinNo | K8: 1 | L8: x | V8: Wetland | W8: On Site Infiltration
J9: Non-listed Creek BasinNo | K9: 1 | V9: Public Combined Sewer Main
J10: Designated Receiving WaterNo | K10: 3 | V10: On Site Infiltration (No Off-site Point of Discharge)
J11: Combined Sewer Service AreaNo | K11: 2 | V11: Other
J12: Small Lake BasinsNo | K12: 1
J13: WetlandNo | K13: 1
J14: Listed Creek Basin | K14: 1
J15: Non-listed Creek Basin | K15: 1
J16: Designated Receiving Water | K16: 3
J17: Combined Sewer Service Area | K17: 2
J18: Small Lake Basins | K18: 1
J19: Wetland | K19: 1
A20: Full Dispersion | B20: Infiltration Trench | C20: Dry Well | D20: Rain Garden | E20: Infiltrating Bioretention | F20: Rainwater Harvesting | G20: Permeable Pavement Facility | H20: Permeable Pavement Surface | I20: Sheet Flow Dispersion | J20: Concentrated Dispersion | K20: Splashblock Downspout Dispersion | L20: Trench Downspout Dispersion | M20: Non-Infiltrating Bioretention | N20: Vegetated Roof | O20: Residential Cistern | P20: Perforated Stub-out Connection | Q20: New or Retained Trees | R20: Sidewalk/Trail Compost-Amended Strip | S20: Water Quality BMP in lieu of NIB | T20: Infiltrating Soil Cell Bioretention with Tree | U20: Infiltrating Soil Cell Bioretention without Tree | V20: Non-Infiltrating Soil Cell Bioretention with Tree
A21: Full Dispersion | B21: Infiltration Trench #1 | C21: Dry Well #1 | D21: Rain Garden #1 | E21: Infiltrating Bioretention #1 | F21: Rainwater Harvesting - Category 1 | G21: Permeable Pavement Facility #1 | H21: Permeable Pavement Surface #1 | I21: Sheet Flow Dispersion | J21: Concentrated Flow Dispersion | K21: Splashblock Downspout Dispersion | L21: Trench Downspout Dispersion | M21: Non-Infiltrating Bioretention #1 | N21: Vegetated Roof System #1 | O21: Residential Cistern #1 | P21: Perforated Stub-out Connection | Q21: Trees #1 | R21: Sidewalk/Trail Compost-Amended Strip | S21: Water Quality BMP in lieu of NIB #1 | T21: Infiltrating Soil Cell Bioretention with Tree #1 | U21: Infiltrating Soil Cell Bioretention without Tree #1 | V21: Non-Infiltrating Soil Cell Bioretention with Tree #1
B22: Infiltration Trench #2 | C22: Dry Well #2 | D22: Rain Garden #2 | E22: Infiltrating Bioretention #2 | F22: Rainwater Harvesting - Category 2 | G22: Permeable Pavement Facility #2 | H22: Permeable Pavement Surface #2 | M22: Non-Infiltrating Bioretention #2 | N22: Vegetated Roof System #2 | O22: Residential Cistern #2 | Q22: Trees #2 | S22: Water Quality BMP in lieu of NIB #2 | T22: Infiltrating Soil Cell Bioretention with Tree #2 | U22: Infiltrating Soil Cell Bioretention without Tree #2 | V22: Non-Infiltrating Soil Cell Bioretention with Tree #2
B23: Infiltration Trench #3 | C23: Dry Well #3 | D23: Rain Garden #3 | E23: Infiltrating Bioretention #3 | F23: Rainwater Harvesting - Category 4 | G23: Permeable Pavement Facility #3 | H23: Permeable Pavement Surface #3 | M23: Non-Infiltrating Bioretention #3 | N23: Vegetated Roof System #3 | O23: Residential Cistern #3 | Q23: Trees #3 | S23: Water Quality BMP in lieu of NIB #3 | T23: Infiltrating Soil Cell Bioretention with Tree #3 | U23: Infiltrating Soil Cell Bioretention without Tree #3 | V23: Non-Infiltrating Soil Cell Bioretention with Tree #3
B24: Infiltration Trench #4 | C24: Dry Well #4 | D24: Rain Garden #4 | E24: Infiltrating Bioretention #4 | G24: Permeable Pavement Facility #4 | H24: Permeable Pavement Surface #4 | M24: Non-Infiltrating Bioretention #4 | N24: Vegetated Roof System #4 | O24: Residential Cistern #4 | Q24: Trees #4 | S24: Water Quality BMP in lieu of NIB #4 | T24: Infiltrating Soil Cell Bioretention with Tree #4 | U24: Infiltrating Soil Cell Bioretention without Tree #4 | V24: Non-Infiltrating Soil Cell Bioretention with Tree #4
B25: Infiltration Trench #5 | C25: Dry Well #5 | D25: Rain Garden #5 | E25: Infiltrating Bioretention #5 | G25: Permeable Pavement Facility #5 | H25: Permeable Pavement Surface #5 | M25: Non-Infiltrating Bioretention #5 | N25: Vegetated Roof System #5 | O25: Residential Cistern #5 | Q25: Trees #5 | S25: Water Quality BMP in lieu of NIB #5 | T25: Infiltrating Soil Cell Bioretention with Tree #5 | U25: Infiltrating Soil Cell Bioretention without Tree #5 | V25: Non-Infiltrating Soil Cell Bioretention with Tree #5
B26: Infiltration Trench #6 | C26: Dry Well #6 | D26: Rain Garden #6 | E26: Infiltrating Bioretention #6 | G26: Permeable Pavement Facility #6 | H26: Permeable Pavement Surface #6 | M26: Non-Infiltrating Bioretention #6 | N26: Vegetated Roof System #6 | O26: Residential Cistern #6 | Q26: Trees #6 | S26: Water Quality BMP in lieu of NIB #6 | T26: Infiltrating Soil Cell Bioretention with Tree #6 | U26: Infiltrating Soil Cell Bioretention without Tree #6 | V26: Non-Infiltrating Soil Cell Bioretention with Tree #6
B27: Infiltration Trench #7 | C27: Dry Well #7 | D27: Rain Garden #7 | E27: Infiltrating Bioretention #7 | G27: Permeable Pavement Facility #7 | H27: Permeable Pavement Surface #7 | M27: Non-Infiltrating Bioretention #7 | N27: Vegetated Roof System #7 | O27: Residential Cistern #7 | Q27: Trees #7 | S27: Water Quality BMP in lieu of NIB #7 | T27: Infiltrating Soil Cell Bioretention with Tree #7 | U27: Infiltrating Soil Cell Bioretention without Tree #7 | V27: Non-Infiltrating Soil Cell Bioretention with Tree #7
B28: Infiltration Trench #8 | C28: Dry Well #8 | D28: Rain Garden #8 | E28: Infiltrating Bioretention #8 | G28: Permeable Pavement Facility #8 | H28: Permeable Pavement Surface #8 | M28: Non-Infiltrating Bioretention #8 | N28: Vegetated Roof System #8 | O28: Residential Cistern #8 | Q28: Trees #8 | S28: Water Quality BMP in lieu of NIB #8 | T28: Infiltrating Soil Cell Bioretention with Tree #8 | U28: Infiltrating Soil Cell Bioretention without Tree #8 | V28: Non-Infiltrating Soil Cell Bioretention with Tree #8
B29: Infiltration Trench #9 | C29: Dry Well #9 | D29: Rain Garden #9 | E29: Infiltrating Bioretention #9 | G29: Permeable Pavement Facility #9 | H29: Permeable Pavement Surface #9 | M29: Non-Infiltrating Bioretention #9 | N29: Vegetated Roof System #9 | O29: Residential Cistern #9 | Q29: Trees #9 | S29: Water Quality BMP in lieu of NIB #9 | T29: Infiltrating Soil Cell Bioretention with Tree #9 | U29: Infiltrating Soil Cell Bioretention without Tree #9 | V29: Non-Infiltrating Soil Cell Bioretention with Tree #9
B30: Infiltration Trench #10 | C30: Dry Well #10 | D30: Rain Garden #10 | E30: Infiltrating Bioretention #10 | G30: Permeable Pavement Facility #10 | H30: Permeable Pavement Surface #10 | M30: Non-Infiltrating Bioretention #10 | N30: Vegetated Roof System #10 | O30: Residential Cistern #10 | Q30: Trees #10 | S30: Water Quality BMP in lieu of NIB #10 | T30: Infiltrating Soil Cell Bioretention with Tree #10 | U30: Infiltrating Soil Cell Bioretention without Tree #10 | V30: Non-Infiltrating Soil Cell Bioretention with Tree #10
B31: Infiltration Trench #11 | C31: Dry Well #11 | D31: Rain Garden #11 | E31: Infiltrating Bioretention #11 | G31: Permeable Pavement Facility #11 | H31: Permeable Pavement Surface #11 | M31: Non-Infiltrating Bioretention #11 | N31: Vegetated Roof System #11 | O31: Residential Cistern #11 | Q31: Trees #11 | S31: Water Quality BMP in lieu of NIB #11 | T31: Infiltrating Soil Cell Bioretention with Tree #11 | U31: Infiltrating Soil Cell Bioretention without Tree #11 | V31: Non-Infiltrating Soil Cell Bioretention with Tree #11
B32: Infiltration Trench #12 | C32: Dry Well #12 | D32: Rain Garden #12 | E32: Infiltrating Bioretention #12 | G32: Permeable Pavement Facility #12 | H32: Permeable Pavement Surface #12 | M32: Non-Infiltrating Bioretention #12 | N32: Vegetated Roof System #12 | O32: Residential Cistern #12 | Q32: Trees #12 | S32: Water Quality BMP in lieu of NIB #12 | T32: Infiltrating Soil Cell Bioretention with Tree #12 | U32: Infiltrating Soil Cell Bioretention without Tree #12 | V32: Non-Infiltrating Soil Cell Bioretention with Tree #12
B33: Infiltration Trench #13 | C33: Dry Well #13 | D33: Rain Garden #13 | E33: Infiltrating Bioretention #13 | G33: Permeable Pavement Facility #13 | H33: Permeable Pavement Surface #13 | M33: Non-Infiltrating Bioretention #13 | N33: Vegetated Roof System #13 | O33: Residential Cistern #13 | Q33: Trees #13 | S33: Water Quality BMP in lieu of NIB #13 | T33: Infiltrating Soil Cell Bioretention with Tree #13 | U33: Infiltrating Soil Cell Bioretention without Tree #13 | V33: Non-Infiltrating Soil Cell Bioretention with Tree #13
B34: Infiltration Trench #14 | C34: Dry Well #14 | D34: Rain Garden #14 | E34: Infiltrating Bioretention #14 | G34: Permeable Pavement Facility #14 | H34: Permeable Pavement Surface #14 | M34: Non-Infiltrating Bioretention #14 | N34: Vegetated Roof System #14 | O34: Residential Cistern #14 | Q34: Trees #14 | S34: Water Quality BMP in lieu of NIB #14 | T34: Infiltrating Soil Cell Bioretention with Tree #14 | U34: Infiltrating Soil Cell Bioretention without Tree #14 | V34: Non-Infiltrating Soil Cell Bioretention with Tree #14
B35: Infiltration Trench #15 | C35: Dry Well #15 | D35: Rain Garden #15 | E35: Infiltrating Bioretention #15 | G35: Permeable Pavement Facility #15 | H35: Permeable Pavement Surface #15 | M35: Non-Infiltrating Bioretention #15 | N35: Vegetated Roof System #15 | O35: Residential Cistern #15 | Q35: Trees #15 | S35: Water Quality BMP in lieu of NIB #15 | T35: Infiltrating Soil Cell Bioretention with Tree #15 | U35: Infiltrating Soil Cell Bioretention without Tree #15 | V35: Non-Infiltrating Soil Cell Bioretention with Tree #15
B36: Infiltration Trench #16 | C36: Dry Well #16 | D36: Rain Garden #16 | E36: Infiltrating Bioretention #16 | G36: Permeable Pavement Facility #16 | H36: Permeable Pavement Surface #16 | M36: Non-Infiltrating Bioretention #16 | N36: Vegetated Roof System #16 | O36: Residential Cistern #16 | Q36: Trees #16 | S36: Water Quality BMP in lieu of NIB #16 | T36: Infiltrating Soil Cell Bioretention with Tree #16 | U36: Infiltrating Soil Cell Bioretention without Tree #16 | V36: Non-Infiltrating Soil Cell Bioretention with Tree #16
B37: Infiltration Trench #17 | C37: Dry Well #17 | D37: Rain Garden #17 | E37: Infiltrating Bioretention #17 | G37: Permeable Pavement Facility #17 | H37: Permeable Pavement Surface #17 | M37: Non-Infiltrating Bioretention #17 | N37: Vegetated Roof System #17 | O37: Residential Cistern #17 | Q37: Trees #17 | S37: Water Quality BMP in lieu of NIB #17 | T37: Infiltrating Soil Cell Bioretention with Tree #17 | U37: Infiltrating Soil Cell Bioretention without Tree #17 | V37: Non-Infiltrating Soil Cell Bioretention with Tree #17
B38: Infiltration Trench #18 | C38: Dry Well #18 | D38: Rain Garden #18 | E38: Infiltrating Bioretention #18 | G38: Permeable Pavement Facility #18 | H38: Permeable Pavement Surface #18 | M38: Non-Infiltrating Bioretention #18 | N38: Vegetated Roof System #18 | O38: Residential Cistern #18 | Q38: Trees #18 | S38: Water Quality BMP in lieu of NIB #18 | T38: Infiltrating Soil Cell Bioretention with Tree #18 | U38: Infiltrating Soil Cell Bioretention without Tree #18 | V38: Non-Infiltrating Soil Cell Bioretention with Tree #18
B39: Infiltration Trench #19 | C39: Dry Well #19 | D39: Rain Garden #19 | E39: Infiltrating Bioretention #19 | G39: Permeable Pavement Facility #19 | H39: Permeable Pavement Surface #19 | M39: Non-Infiltrating Bioretention #19 | N39: Vegetated Roof System #19 | O39: Residential Cistern #19 | Q39: Trees #19 | S39: Water Quality BMP in lieu of NIB #19 | T39: Infiltrating Soil Cell Bioretention with Tree #19 | U39: Infiltrating Soil Cell Bioretention without Tree #19 | V39: Non-Infiltrating Soil Cell Bioretention with Tree #19
B40: Infiltration Trench #20 | C40: Dry Well #20 | D40: Rain Garden #20 | E40: Infiltrating Bioretention #20 | G40: Permeable Pavement Facility #20 | H40: Permeable Pavement Surface #20 | M40: Non-Infiltrating Bioretention #20 | N40: Vegetated Roof System #20 | O40: Residential Cistern #20 | Q40: Trees #20 | S40: Water Quality BMP in lieu of NIB #20 | T40: Infiltrating Soil Cell Bioretention with Tree #20 | U40: Infiltrating Soil Cell Bioretention without Tree #20 | V40: Non-Infiltrating Soil Cell Bioretention with Tree #20
B42: List 1 | C42: List 1 | D42: List 1 | E42: List 1 | G42: List 1 | M42: List 1 | N42: List 1 | Q42: List 1 | R42: List 1 | T42: List 1 | V42: List 1
B43: 18 | C43: 4 | D43: 2 | E43: 2 | G43: 6 | M43: 2 | N43: Single-Course | Q43: New Deciduous | R43: < 10 | T43: 2 | V43: 2
B44: 36 | D44: 6 | E44: 6 | G44: 12 | M44: 6 | N44: Multi-Course | Q44: New Evergreen | R44: ≥ 10 | T44: 6 | V44: 6
E45: 12 | M45: 12 | Q45: Retain Deciduous | T45: 12 | V45: 12
D46: List 2 | E46: List 2 | G46: List 2 | M46: List 2 | N46: List 2 | Q46: Retain Evergreen | T46: List 2
D47: Sloped sides | E47: Sloped sides | G47: 0% | M47: Sloped sides | N47: 4 | T47: Underdrain
D48: Vertical sides | E48: Vertical sides | G48: 5% | M48: Vertical sides | N48: 8 | Q48: List 2 | T48: No Underdrain
G49: 10% | Q49: 1
E50: List 3 | G50: 15% | N50: List 3 | Q50: 2 | T50: List 3 | U50: Minimum Tree Soil Volume | V50: List 2
E51: Underdrain | G51: 20% | Q51: 3 | T51: Constrained Site Tree | U51: =250-48 -> 202 | V51: Constrained Site Tree
E52: No Underdrain | G52: 25% | Q52: 4 | T52: Small Tree | U52: =500-48 -> 452 | V52: Small Tree
G53: 30% | Q53: 5 | T53: Small/Medium Tree | U53: =1000-48 -> 952 | V53: Small/Medium Tree
G54: 35% | Q54: 6 | T54: Medium/Large Tree | U54: =1000-48 -> 952 | V54: Medium/Large Tree
G55: 40% | Q55: 7 | T55: Large Tree | U55: =1200-48 -> 1152 | V55: Large Tree
G56: 45% | Q56: 8
G57: 50% | Q57: 9 | T57: List 4 | V57: List 3
G58: 55% | Q58: 10 | T58: 18 | V58: 18
G59: 60% | Q59: 11 | T59: 24 | V59: 24
G60: 65% | Q60: 12 | T60: 32 | V60: 32
G61: 70% | Q61: 13
G62: 75% | Q62: 14
G63: 80% | Q63: 15
G64: 85% | Q64: 16
G65: 90% | Q65: 17
G66: 95% | Q66: 18
G67: 100% | Q67: 19
Q68: 20
A69: BMPs | B69: List More than One BMP option | C69: Sizing Input 1 | D69: Sizing Input 2 | E69: Sizing Input 3 | F69: Sizing Input 4 | G69: Units 1 | H69: Units 2 | I69: Infiltrating BMP | Q69: 21
A70: Full Dispersion | B70: FALSE | C70: =NA() ->  | D70: =NA() ->  | E70: =NA() ->  | F70: =NA() ->  | G70: =NA() ->  | H70: =NA() ->  | I70: FALSE | Q70: 22
A71: Infiltration Trench | B71: TRUE | C71: =NA() ->  | D71: =NA() ->  | E71: =NA() ->  | F71: =NA() ->  | G71: =NA() ->  | H71: =NA() ->  | I71: TRUE | Q71: 23
A72: Dry Well | B72: TRUE | C72: Aggregate Depth (ft) | D72: =NA() ->  | E72: =NA() ->  | F72: =NA() ->  | G72: ft | H72: =NA() ->  | I72: TRUE | Q72: 24
A73: Rain Garden | B73: TRUE | C73: Ponding Depth (inch) | D73: Sideslopes | E73: =NA() ->  | F73: =NA() ->  | G73: inch | H73: =NA() ->  | I73: TRUE | Q73: 25
A74: Infiltrating Bioretention | B74: TRUE | C74: Ponding Depth (inch) | D74: Sideslopes | E74: Underdrain | F74: =NA() ->  | G74: inch | H74: =NA() ->  | I74: TRUE | Q74: 26
A75: Infiltrating Soil Cell Bioretention with Tree | B75: TRUE | C75: Ponding Depth (inch) | D75: Underdrain | E75: Tree size | F75: BSM Depth (inch) | G75: inch | I75: TRUE | Q75: 27
A76: Rainwater Harvesting - Category 1 | B76: FALSE | G76: gal | I76: FALSE | Q76: 28
A77: Rainwater Harvesting - Category 2 | B77: FALSE | C77: =NA() ->  | D77: =NA() ->  | E77: =NA() ->  | G77: gal | H77: =NA() ->  | I77: FALSE | Q77: 29
A78: Rainwater Harvesting - Category 4 | B78: FALSE | C78: =NA() ->  | D78: =NA() ->  | E78: =NA() ->  | G78: =NA() ->  | H78: =NA() ->  | I78: FALSE | Q78: 30
A79: Permeable Pavement Facility | B79: TRUE | C79: Avg. Storage Depth (inch) | D79: % Pollution Generating | E79: =NA() ->  | G79: inch | H79: PGHS | I79: TRUE | Q79: 31
A80: Permeable Pavement Surface | B80: TRUE | C80: =NA() ->  | D80: =NA() ->  | E80: =NA() ->  | G80: =NA() ->  | H80: =NA() ->  | I80: FALSE | Q80: 32
A81: Infiltrating Soil Cell Bioretention without Tree | B81: TRUE | C81: Ponding Depth (inch) | D81: Underdrain | G81: inch | I81: TRUE | Q81: 33
A82: Sheet Flow Dispersion | B82: FALSE | C82: =NA() ->  | D82: =NA() ->  | E82: =NA() ->  | G82: =NA() ->  | H82: =NA() ->  | I82: FALSE | Q82: 34
A83: Concentrated Flow Dispersion | B83: FALSE | C83: =NA() ->  | D83: =NA() ->  | E83: =NA() ->  | G83: =NA() ->  | H83: =NA() ->  | I83: FALSE | Q83: 35
A84: Splashblock Downspout Dispersion | B84: FALSE | C84: =NA() ->  | D84: =NA() ->  | E84: =NA() ->  | G84: =NA() ->  | H84: =NA() ->  | I84: FALSE | Q84: 36
A85: Trench Downspout Dispersion | B85: FALSE | C85: =NA() ->  | D85: =NA() ->  | E85: =NA() ->  | G85: =NA() ->  | H85: =NA() ->  | I85: FALSE | Q85: 37
A86: Non-Infiltrating Bioretention | B86: TRUE | C86: Ponding Depth (inch) | D86: Sideslopes | E86: =NA() ->  | G86: inch | H86: =NA() ->  | I86: FALSE | Q86: 38
A87: Non-Infiltrating Soil Cell Bioretention with Tree | B87: TRUE | C87: Ponding Depth (inch) | D87: Tree size | E87: BSM Depth (inch) | G87: inch | I87: FALSE | Q87: 39
A88: Vegetated Roof System | B88: TRUE | C88: Course | D88: Media Depth (inch) | E88: =NA() ->  | G88: =NA() ->  | H88: inch | I88: FALSE | Q88: 40
A89: Perforated Stub-out Connection | B89: FALSE | C89: =NA() ->  | D89: =NA() ->  | E89: =NA() ->  | G89: =NA() ->  | H89: =NA() ->  | I89: TRUE | Q89: 41
A90: Residential Cistern | B90: TRUE | C90: =NA() ->  | D90: =NA() ->  | E90: =NA() ->  | G90: =NA() ->  | H90: =NA() ->  | I90: FALSE | Q90: 42
A91: Trees | B91: TRUE | C91: Type | D91: Number | E91: =NA() ->  | G91: =NA() ->  | H91: =NA() ->  | I91: FALSE | Q91: 43
A92: Sidewalk/Trail Compost-Amended Strip | B92: FALSE | D92: =NA() ->  | E92: =NA() ->  | G92: ft | H92: =NA() ->  | I92: TRUE | Q92: 44
A93: None Feasible | B93: FALSE | I93: FALSE | Q93: 45
A94: Water Quality BMP in lieu of NIB | B94: TRUE | I94: TRUE
A96: BMP | B96: List 1 | C96: List 2 | D96: List 3 | E96: List 4 | F96: Combined Lookup | G96: Sizing Factor | H96: Volume Managed CF/SF | I96: Facility Units | J96: Notes
A97: Full Dispersion | F97: =TRIM(CONCATENATE(A97,B97,C97,D97)) -> Full Dispersion | G97: =NA() ->  | H97: =2.1*0.768 -> 1.6128
A98: Sidewalk/Trail Compost-Amended Strip | B98: ≥ 10 | F98: =A98 -> Sidewalk/Trail Compost-Amended Strip | G98: =IF(InfRate<0.15,0,IF(InfRate<0.3,0.42, IF(InfRate<0.06,0.29,0.21))) -> 0 | H98: =2.1*0.828 -> 1.7388 | I98: sf
A99: Sidewalk/Trail Compost-Amended Strip | B99: < 10 | F99: =A99 -> Sidewalk/Trail Compost-Amended Strip | G99: =IF(InfRate<0.15,0,IF(InfRate<0.3,0.33,IF(InfRate<0.06,0.21,0.13))) -> 0 | H99: =2.1*0.828 -> 1.7388 | I99: sf
A100: Infiltration Trench | F100: =TRIM(CONCATENATE(A100,B100,C100,D100)) -> Infiltration Trench | G100: =IF(InfRate<1,0,IF(InfRate<2.5,0.15,IF(InfRate<5,0.105,IF(InfRate<7.5,0.057,IF(InfRate<10,0.048,0.04))))) -> 0 | H100: =IF(G100=0,NA(),2.3*0.8108811) ->  | I100: sf | J100: Volume Managed modeling done specifically for tool. See Volume Managed.xlsx. 1.5' Trench, 0.25 in/hr.
A101: Dry Well | B101: 4 | F101: Dry Well4 | G101: =IF(InfRate<2.5,0,IF(InfRate<5,0.024,IF(InfRate<7.5,0.024,IF(InfRate<10,0.023,0.021)))) -> 0 | H101: =IF(G101=0,NA(),2.1*0.8149233) ->  | I101: sf | J101: Modeling done specifically for tool. See Volume Managed.xlsx. 4' Drywell, 0.25 in/hr.
A102: Rain Garden | B102: 2 | C102: Sloped sides | F102: Rain Garden2Sloped sides | G102: =IF(InfRate<0.15,0,IF(InfRate<0.3,0.061, 0.045)) -> 0 | H102: =IF(G102=0,NA(),2.1*0.864) ->  | I102: sf | J102: To develop sizing that meets Ecology’s requirements, we first developed sizing factors that provide a 5% wetted surface area (Table 1 below) and sizing factors that meet the LID Performance Standard for a forest condition (Table 2 below). We then selected the larger of the two sizing factors for each ponding depth/infitlration rate scenario (highlighted in red in the tables below) and used them for the On-site List Sizing (provided in the table above). [[refer to O:\proj\Y2019\19-07117-001\Modeling\ and 20-1116_OnSiteList_Sizing.xlsx and On-site List Sizing for Bioretention (Stormwater Manual Volume 3 ̶ Table 5.21)]]
A103: Rain Garden | B103: 6 | C103: Sloped sides | F103: Rain Garden6Sloped sides | G103: =IF(OR(ProjectTypeCell=Roadway,ProjectTypeCell=TrailSidewalk),-999,IF(InfRate<0.3,0,0.035)) -> 0 | H103: =IF(OR(G103=0, G103=-999),NA(),2.1*0.864) ->  | I103: sf | J103: Green cells updated 2020
A104: Rain Garden | B104: 2 | C104: Vertical sides | F104: Rain Garden2Vertical sides | G104: -999 | H104: =NA() ->  | I104: sf
A105: Rain Garden | B105: 6 | C105: Vertical sides | F105: Rain Garden6Vertical sides | G105: =IF(OR(ProjectTypeCell=Roadway,ProjectTypeCell=TrailSidewalk),-999,IF(InfRate<0.3,0,0.05)) -> 0 | H105: =IF(OR(G105=0,G105=-999),NA(),2.1*0.844) ->  | I105: sf | J105: Rain garden ponding over 3" not allowed for Road or Trail projects
A106: Infiltrating Bioretention | B106: 2 | C106: Sloped sides | D106: No Underdrain | F106: Infiltrating Bioretention2Sloped sidesNo Underdrain | G106: =IF(InfRate<0.3,0,0.045) -> 0 | H106: =IF(G106=0,NA(),2.1*0.864) ->  | I106: sf
A107: Infiltrating Bioretention | B107: 6 | C107: Sloped sides | D107: No Underdrain | F107: Infiltrating Bioretention6Sloped sidesNo Underdrain | G107: =IF(InfRate<0.3,0,0.035) -> 0 | H107: =IF(G107=0,NA(),2.1*0.864) ->  | I107: sf
A108: Infiltrating Bioretention | B108: 12 | C108: Sloped sides | D108: No Underdrain | F108: Infiltrating Bioretention12Sloped sidesNo Underdrain | G108: =IF(InfRate<0.6,0,0.023) -> 0 | H108: =IF(G108=0,NA(),2.1*0.864) ->  | I108: sf
A109: Infiltrating Bioretention | B109: 2 | C109: Vertical sides | D109: No Underdrain | F109: Infiltrating Bioretention2Vertical sidesNo Underdrain | G109: =IF(InfRate<0.3,0,IF(InfRate<0.6,0.062,0.05)) -> 0 | H109: =IF(G109=0,NA(),2.1*0.864) ->  | I109: sf | J109: Updated with allowable sizing factors March 2026
A110: Infiltrating Bioretention | B110: 6 | C110: Vertical sides | D110: No Underdrain | F110: Infiltrating Bioretention6Vertical sidesNo Underdrain | G110: =IF(InfRate<0.3,0,0.05) -> 0 | H110: =IF(OR(G110=0,G110=-999),NA(),2.1*0.844) ->  | I110: sf
A111: Infiltrating Bioretention | B111: 12 | C111: Vertical sides | D111: No Underdrain | F111: Infiltrating Bioretention12Vertical sidesNo Underdrain | G111: =IF(InfRate<0.6,0,0.05) -> 0 | H111: =IF(G111=0,NA(),2.1*0.844) ->  | I111: sf
A112: Infiltrating Bioretention | B112: 2 | C112: Sloped sides | D112: Underdrain | F112: Infiltrating Bioretention2Sloped sidesUnderdrain | G112: =IF(InfRate<0.15,0,IF(InfRate<0.3,0.068,0.05)) -> 0 | H112: =IF(G112=0,NA(),2.1*0.864) ->  | I112: sf
A113: Infiltrating Bioretention | B113: 6 | C113: Sloped sides | D113: Underdrain | F113: Infiltrating Bioretention6Sloped sidesUnderdrain | G113: =IF(InfRate<0.15,0,IF(InfRate<0.3,0.047,0.039)) -> 0 | H113: =IF(G113=0,NA(),2.1*0.864) ->  | I113: sf
A114: Infiltrating Bioretention | B114: 12 | C114: Sloped sides | D114: Underdrain | F114: Infiltrating Bioretention12Sloped sidesUnderdrain | G114: =IF(InfRate<0.15,0,IF(InfRate<0.3,0.028,0.026)) -> 0 | H114: =IF(G114=0,NA(),2.1*0.864) ->  | I114: sf
A115: Infiltrating Bioretention | B115: 2 | C115: Vertical sides | D115: Underdrain | F115: Infiltrating Bioretention2Vertical sidesUnderdrain | G115: =IF(InfRate<0.015,0,IF(InfRate<0.3,0.092,IF(InfRate<0.6,0.069,0.056))) -> 0 | H115: =IF(G115=0,NA(),2.1*0.864) ->  | I115: sf | J115: Updated with allowable sizing factors March 2026
A116: Infiltrating Bioretention | B116: 6 | C116: Vertical sides | D116: Underdrain | F116: Infiltrating Bioretention6Vertical sidesUnderdrain | G116: =IF(InfRate<0.15,0,IF(InfRate<0.3,0.072,0.056)) -> 0 | H116: =IF(OR(G116=0,G116=-999),NA(),2.1*0.844) ->  | I116: sf
A117: Infiltrating Bioretention | B117: 12 | C117: Vertical sides | D117: Underdrain | F117: Infiltrating Bioretention12Vertical sidesUnderdrain | G117: =IF(InfRate<0.15,0,IF(InfRate<0.3,0.057,0.056)) -> 0 | H117: =IF(G117=0,NA(),2.1*0.844) ->  | I117: sf
A118: Infiltrating Soil Cell Bioretention with Tree | B118: 2 | C118: No Underdrain | D118: constrained site tree | E118: 18 | F118: =TRIM(CONCATENATE(A118,B118,C118,D118,E118)) -> Infiltrating Soil Cell Bioretention with Tree2No Underdrainconstrained site tree18 | G118: =IF(InfRate<0.3,0,IF(InfRate<0.6,0.068,0.055)) -> 0 | H118: =$H$110 ->  | I118: sf | J118: Added March 2026, assuming same performance as vertical walled bioretention planters
A119: Infiltrating Soil Cell Bioretention with Tree | B119: 2 | C119: No Underdrain | D119: small tree | E119: 18 | F119: =TRIM(CONCATENATE(A119,B119,C119,D119,E119)) -> Infiltrating Soil Cell Bioretention with Tree2No Underdrainsmall tree18 | G119: 0 | H119: =$H$110 ->  | I119: sf
A120: Infiltrating Soil Cell Bioretention with Tree | B120: 2 | C120: No Underdrain | D120: small/medium tree | E120: 18 | F120: Infiltrating Soil Cell Bioretention with Tree2No Underdrainsmall/medium tree18 | G120: 0 | I120: sf
A121: Infiltrating Soil Cell Bioretention with Tree | B121: 2 | C121: No Underdrain | D121: medium/large tree | E121: 18 | F121: Infiltrating Soil Cell Bioretention with Tree2No Underdrainmedium/large tree18 | G121: 0 | I121: sf
A122: Infiltrating Soil Cell Bioretention with Tree | B122: 2 | C122: No Underdrain | D122: large tree | E122: 18 | F122: Infiltrating Soil Cell Bioretention with Tree2No Underdrainlarge tree18 | G122: 0 | I122: sf
A123: Infiltrating Soil Cell Bioretention with Tree | B123: 2 | C123: No Underdrain | D123: constrained site tree | E123: 24 | F123: =TRIM(CONCATENATE(A123,B123,C123,D123,E123)) -> Infiltrating Soil Cell Bioretention with Tree2No Underdrainconstrained site tree24 | G123: 0 | I123: sf
A124: Infiltrating Soil Cell Bioretention with Tree | B124: 2 | C124: No Underdrain | D124: small tree | E124: 24 | F124: =TRIM(CONCATENATE(A124,B124,C124,D124,E124)) -> Infiltrating Soil Cell Bioretention with Tree2No Underdrainsmall tree24 | G124: 0 | I124: sf
A125: Infiltrating Soil Cell Bioretention with Tree | B125: 2 | C125: No Underdrain | D125: small/medium tree | E125: 24 | F125: Infiltrating Soil Cell Bioretention with Tree2No Underdrainsmall/medium tree24 | G125: 0 | I125: sf
A126: Infiltrating Soil Cell Bioretention with Tree | B126: 2 | C126: No Underdrain | D126: medium/large tree | E126: 24 | F126: Infiltrating Soil Cell Bioretention with Tree2No Underdrainmedium/large tree24 | G126: 0 | I126: sf
A127: Infiltrating Soil Cell Bioretention with Tree | B127: 2 | C127: No Underdrain | D127: large tree | E127: 24 | F127: Infiltrating Soil Cell Bioretention with Tree2No Underdrainlarge tree24 | G127: 0 | I127: sf
A128: Infiltrating Soil Cell Bioretention with Tree | B128: 2 | C128: No Underdrain | D128: constrained site tree | E128: 32 | F128: =TRIM(CONCATENATE(A128,B128,C128,D128,E128)) -> Infiltrating Soil Cell Bioretention with Tree2No Underdrainconstrained site tree32 | G128: 0 | I128: sf
A129: Infiltrating Soil Cell Bioretention with Tree | B129: 2 | C129: No Underdrain | D129: small tree | E129: 32 | F129: =TRIM(CONCATENATE(A129,B129,C129,D129,E129)) -> Infiltrating Soil Cell Bioretention with Tree2No Underdrainsmall tree32 | G129: 0 | I129: sf
A130: Infiltrating Soil Cell Bioretention with Tree | B130: 2 | C130: No Underdrain | D130: small/medium tree | E130: 32 | F130: Infiltrating Soil Cell Bioretention with Tree2No Underdrainsmall/medium tree32 | G130: 0 | I130: sf
A131: Infiltrating Soil Cell Bioretention with Tree | B131: 2 | C131: No Underdrain | D131: medium/large tree | E131: 32 | F131: Infiltrating Soil Cell Bioretention with Tree2No Underdrainmedium/large tree32 | G131: 0 | I131: sf
A132: Infiltrating Soil Cell Bioretention with Tree | B132: 2 | C132: No Underdrain | D132: large tree | E132: 32 | F132: Infiltrating Soil Cell Bioretention with Tree2No Underdrainlarge tree32 | G132: 0 | I132: sf
A133: Infiltrating Soil Cell Bioretention with Tree | B133: 6 | C133: No Underdrain | D133: constrained site tree | E133: 18 | F133: Infiltrating Soil Cell Bioretention with Tree6No Underdrainconstrained site tree18 | G133: =IF(InfRate<0.3,0,0.055) -> 0 | H133: =$H$110 ->  | I133: sf
A134: Infiltrating Soil Cell Bioretention with Tree | B134: 6 | C134: No Underdrain | D134: small tree | E134: 18 | F134: =TRIM(CONCATENATE(A134,B134,C134,D134,E134)) -> Infiltrating Soil Cell Bioretention with Tree6No Underdrainsmall tree18 | G134: 0 | I134: sf
A135: Infiltrating Soil Cell Bioretention with Tree | B135: 6 | C135: No Underdrain | D135: small/medium tree | E135: 18 | F135: Infiltrating Soil Cell Bioretention with Tree6No Underdrainsmall/medium tree18 | G135: 0 | I135: sf
A136: Infiltrating Soil Cell Bioretention with Tree | B136: 6 | C136: No Underdrain | D136: medium/large tree | E136: 18 | F136: Infiltrating Soil Cell Bioretention with Tree6No Underdrainmedium/large tree18 | G136: 0 | I136: sf
A137: Infiltrating Soil Cell Bioretention with Tree | B137: 6 | C137: No Underdrain | D137: large tree | E137: 18 | F137: Infiltrating Soil Cell Bioretention with Tree6No Underdrainlarge tree18 | G137: 0 | I137: sf
A138: Infiltrating Soil Cell Bioretention with Tree | B138: 6 | C138: No Underdrain | D138: constrained site tree | E138: 24 | F138: Infiltrating Soil Cell Bioretention with Tree6No Underdrainconstrained site tree24 | G138: 0 | I138: sf
A139: Infiltrating Soil Cell Bioretention with Tree | B139: 6 | C139: No Underdrain | D139: small tree | E139: 24 | F139: =TRIM(CONCATENATE(A139,B139,C139,D139,E139)) -> Infiltrating Soil Cell Bioretention with Tree6No Underdrainsmall tree24 | G139: 0 | I139: sf
A140: Infiltrating Soil Cell Bioretention with Tree | B140: 6 | C140: No Underdrain | D140: small/medium tree | E140: 24 | F140: Infiltrating Soil Cell Bioretention with Tree6No Underdrainsmall/medium tree24 | G140: 0 | I140: sf
A141: Infiltrating Soil Cell Bioretention with Tree | B141: 6 | C141: No Underdrain | D141: medium/large tree | E141: 24 | F141: Infiltrating Soil Cell Bioretention with Tree6No Underdrainmedium/large tree24 | G141: 0 | I141: sf
A142: Infiltrating Soil Cell Bioretention with Tree | B142: 6 | C142: No Underdrain | D142: large tree | E142: 24 | F142: Infiltrating Soil Cell Bioretention with Tree6No Underdrainlarge tree24 | G142: 0 | I142: sf
A143: Infiltrating Soil Cell Bioretention with Tree | B143: 6 | C143: No Underdrain | D143: constrained site tree | E143: 32 | F143: Infiltrating Soil Cell Bioretention with Tree6No Underdrainconstrained site tree32 | G143: 0 | I143: sf
A144: Infiltrating Soil Cell Bioretention with Tree | B144: 6 | C144: No Underdrain | D144: small tree | E144: 32 | F144: =TRIM(CONCATENATE(A144,B144,C144,D144,E144)) -> Infiltrating Soil Cell Bioretention with Tree6No Underdrainsmall tree32 | G144: 0 | I144: sf
A145: Infiltrating Soil Cell Bioretention with Tree | B145: 6 | C145: No Underdrain | D145: small/medium tree | E145: 32 | F145: Infiltrating Soil Cell Bioretention with Tree6No Underdrainsmall/medium tree32 | G145: 0 | I145: sf
A146: Infiltrating Soil Cell Bioretention with Tree | B146: 6 | C146: No Underdrain | D146: medium/large tree | E146: 32 | F146: Infiltrating Soil Cell Bioretention with Tree6No Underdrainmedium/large tree32 | G146: 0 | I146: sf
A147: Infiltrating Soil Cell Bioretention with Tree | B147: 6 | C147: No Underdrain | D147: large tree | E147: 32 | F147: Infiltrating Soil Cell Bioretention with Tree6No Underdrainlarge tree32 | G147: 0 | I147: sf
A148: Infiltrating Soil Cell Bioretention with Tree | B148: 12 | C148: No Underdrain | D148: constrained site tree | E148: 18 | F148: Infiltrating Soil Cell Bioretention with Tree12No Underdrainconstrained site tree18 | G148: =IF(InfRate<0.6,0,0.055) -> 0 | H148: =IF(G148=0,NA(),2.1*0.864) ->  | I148: sf
A149: Infiltrating Soil Cell Bioretention with Tree | B149: 12 | C149: No Underdrain | D149: small tree | E149: 18 | F149: =TRIM(CONCATENATE(A149,B149,C149,D149,E149)) -> Infiltrating Soil Cell Bioretention with Tree12No Underdrainsmall tree18 | G149: 0 | I149: sf
A150: Infiltrating Soil Cell Bioretention with Tree | B150: 12 | C150: No Underdrain | D150: small/medium tree | E150: 18 | F150: Infiltrating Soil Cell Bioretention with Tree12No Underdrainsmall/medium tree18 | G150: 0 | I150: sf
A151: Infiltrating Soil Cell Bioretention with Tree | B151: 12 | C151: No Underdrain | D151: medium/large tree | E151: 18 | F151: Infiltrating Soil Cell Bioretention with Tree12No Underdrainmedium/large tree18 | G151: 0 | I151: sf
A152: Infiltrating Soil Cell Bioretention with Tree | B152: 12 | C152: No Underdrain | D152: large tree | E152: 18 | F152: Infiltrating Soil Cell Bioretention with Tree12No Underdrainlarge tree18 | G152: 0 | I152: sf
A153: Infiltrating Soil Cell Bioretention with Tree | B153: 12 | C153: No Underdrain | D153: constrained site tree | E153: 24 | F153: Infiltrating Soil Cell Bioretention with Tree12No Underdrainconstrained site tree24 | G153: 0 | I153: sf
A154: Infiltrating Soil Cell Bioretention with Tree | B154: 12 | C154: No Underdrain | D154: small tree | E154: 24 | F154: =TRIM(CONCATENATE(A154,B154,C154,D154,E154)) -> Infiltrating Soil Cell Bioretention with Tree12No Underdrainsmall tree24 | G154: 0 | I154: sf
A155: Infiltrating Soil Cell Bioretention with Tree | B155: 12 | C155: No Underdrain | D155: small/medium tree | E155: 24 | F155: Infiltrating Soil Cell Bioretention with Tree12No Underdrainsmall/medium tree24 | G155: 0 | I155: sf
A156: Infiltrating Soil Cell Bioretention with Tree | B156: 12 | C156: No Underdrain | D156: medium/large tree | E156: 24 | F156: Infiltrating Soil Cell Bioretention with Tree12No Underdrainmedium/large tree24 | G156: 0 | I156: sf
A157: Infiltrating Soil Cell Bioretention with Tree | B157: 12 | C157: No Underdrain | D157: large tree | E157: 24 | F157: Infiltrating Soil Cell Bioretention with Tree12No Underdrainlarge tree24 | G157: 0 | I157: sf
A158: Infiltrating Soil Cell Bioretention with Tree | B158: 12 | C158: No Underdrain | D158: constrained site tree | E158: 32 | F158: Infiltrating Soil Cell Bioretention with Tree12No Underdrainconstrained site tree32 | G158: 0 | I158: sf
A159: Infiltrating Soil Cell Bioretention with Tree | B159: 12 | C159: No Underdrain | D159: small tree | E159: 32 | F159: =TRIM(CONCATENATE(A159,B159,C159,D159,E159)) -> Infiltrating Soil Cell Bioretention with Tree12No Underdrainsmall tree32 | G159: 0 | I159: sf
A160: Infiltrating Soil Cell Bioretention with Tree | B160: 12 | C160: No Underdrain | D160: small/medium tree | E160: 32 | F160: Infiltrating Soil Cell Bioretention with Tree12No Underdrainsmall/medium tree32 | G160: 0 | I160: sf
A161: Infiltrating Soil Cell Bioretention with Tree | B161: 12 | C161: No Underdrain | D161: medium/large tree | E161: 32 | F161: Infiltrating Soil Cell Bioretention with Tree12No Underdrainmedium/large tree32 | G161: 0 | I161: sf
A162: Infiltrating Soil Cell Bioretention with Tree | B162: 12 | C162: No Underdrain | D162: large tree | E162: 32 | F162: Infiltrating Soil Cell Bioretention with Tree12No Underdrainlarge tree32 | G162: 0 | I162: sf
A163: Infiltrating Soil Cell Bioretention with Tree | B163: 2 | C163: Underdrain | D163: constrained site tree | E163: 18 | F163: Infiltrating Soil Cell Bioretention with Tree2Underdrainconstrained site tree18 | G163: =IF(InfRate<0.15,0,IF(InfRate<0.3,0.102,IF(InfRate<0.6,0.076,0.061))) -> 0 | I163: sf
A164: Infiltrating Soil Cell Bioretention with Tree | B164: 2 | C164: Underdrain | D164: small tree | E164: 18 | F164: =TRIM(CONCATENATE(A164,B164,C164,D164,E164)) -> Infiltrating Soil Cell Bioretention with Tree2Underdrainsmall tree18 | G164: 0 | I164: sf
A165: Infiltrating Soil Cell Bioretention with Tree | B165: 2 | C165: Underdrain | D165: small/medium tree | E165: 18 | F165: Infiltrating Soil Cell Bioretention with Tree2Underdrainsmall/medium tree18 | G165: 0 | I165: sf
A166: Infiltrating Soil Cell Bioretention with Tree | B166: 2 | C166: Underdrain | D166: medium/large tree | E166: 18 | F166: Infiltrating Soil Cell Bioretention with Tree2Underdrainmedium/large tree18 | G166: 0 | I166: sf
A167: Infiltrating Soil Cell Bioretention with Tree | B167: 2 | C167: Underdrain | D167: large tree | E167: 18 | F167: Infiltrating Soil Cell Bioretention with Tree2Underdrainlarge tree18 | G167: 0 | I167: sf
A168: Infiltrating Soil Cell Bioretention with Tree | B168: 2 | C168: Underdrain | D168: constrained site tree | E168: 24 | F168: Infiltrating Soil Cell Bioretention with Tree2Underdrainconstrained site tree24 | G168: 0 | I168: sf
A169: Infiltrating Soil Cell Bioretention with Tree | B169: 2 | C169: Underdrain | D169: small tree | E169: 24 | F169: Infiltrating Soil Cell Bioretention with Tree2Underdrainsmall tree24 | G169: 0 | I169: sf
A170: Infiltrating Soil Cell Bioretention with Tree | B170: 2 | C170: Underdrain | D170: small/medium tree | E170: 24 | F170: Infiltrating Soil Cell Bioretention with Tree2Underdrainsmall/medium tree24 | G170: 0 | I170: sf
A171: Infiltrating Soil Cell Bioretention with Tree | B171: 2 | C171: Underdrain | D171: medium/large tree | E171: 24 | F171: Infiltrating Soil Cell Bioretention with Tree2Underdrainmedium/large tree24 | G171: 0 | I171: sf
A172: Infiltrating Soil Cell Bioretention with Tree | B172: 2 | C172: Underdrain | D172: large tree | E172: 24 | F172: Infiltrating Soil Cell Bioretention with Tree2Underdrainlarge tree24 | G172: 0 | I172: sf
A173: Infiltrating Soil Cell Bioretention with Tree | B173: 2 | C173: Underdrain | D173: constrained site tree | E173: 32 | F173: Infiltrating Soil Cell Bioretention with Tree2Underdrainconstrained site tree32 | G173: 0 | I173: sf
A174: Infiltrating Soil Cell Bioretention with Tree | B174: 2 | C174: Underdrain | D174: small tree | E174: 32 | F174: Infiltrating Soil Cell Bioretention with Tree2Underdrainsmall tree32 | G174: 0 | I174: sf
A175: Infiltrating Soil Cell Bioretention with Tree | B175: 2 | C175: Underdrain | D175: small/medium tree | E175: 32 | F175: Infiltrating Soil Cell Bioretention with Tree2Underdrainsmall/medium tree32 | G175: 0 | I175: sf
A176: Infiltrating Soil Cell Bioretention with Tree | B176: 2 | C176: Underdrain | D176: medium/large tree | E176: 32 | F176: Infiltrating Soil Cell Bioretention with Tree2Underdrainmedium/large tree32 | G176: 0 | I176: sf
A177: Infiltrating Soil Cell Bioretention with Tree | B177: 2 | C177: Underdrain | D177: large tree | E177: 32 | F177: Infiltrating Soil Cell Bioretention with Tree2Underdrainlarge tree32 | G177: 0 | I177: sf
A178: Infiltrating Soil Cell Bioretention with Tree | B178: 6 | C178: Underdrain | D178: constrained site tree | E178: 18 | F178: Infiltrating Soil Cell Bioretention with Tree6Underdrainconstrained site tree18 | G178: =IF(InfRate<0.15,0,IF(InfRate<0.3,0.079,0.061)) -> 0 | I178: sf
A179: Infiltrating Soil Cell Bioretention with Tree | B179: 6 | C179: Underdrain | D179: small tree | E179: 18 | F179: =TRIM(CONCATENATE(A179,B179,C179,D179,E179)) -> Infiltrating Soil Cell Bioretention with Tree6Underdrainsmall tree18 | G179: 0 | I179: sf
A180: Infiltrating Soil Cell Bioretention with Tree | B180: 6 | C180: Underdrain | D180: small/medium tree | E180: 18 | F180: Infiltrating Soil Cell Bioretention with Tree6Underdrainsmall/medium tree18 | G180: 0 | I180: sf
A181: Infiltrating Soil Cell Bioretention with Tree | B181: 6 | C181: Underdrain | D181: medium/large tree | E181: 18 | F181: Infiltrating Soil Cell Bioretention with Tree6Underdrainmedium/large tree18 | G181: 0 | I181: sf
A182: Infiltrating Soil Cell Bioretention with Tree | B182: 6 | C182: Underdrain | D182: large tree | E182: 18 | F182: Infiltrating Soil Cell Bioretention with Tree6Underdrainlarge tree18 | G182: 0 | I182: sf
A183: Infiltrating Soil Cell Bioretention with Tree | B183: 6 | C183: Underdrain | D183: constrained site tree | E183: 24 | F183: Infiltrating Soil Cell Bioretention with Tree6Underdrainconstrained site tree24 | G183: 0 | I183: sf
A184: Infiltrating Soil Cell Bioretention with Tree | B184: 6 | C184: Underdrain | D184: small tree | E184: 24 | F184: Infiltrating Soil Cell Bioretention with Tree6Underdrainsmall tree24 | G184: 0 | I184: sf
A185: Infiltrating Soil Cell Bioretention with Tree | B185: 6 | C185: Underdrain | D185: small/medium tree | E185: 24 | F185: Infiltrating Soil Cell Bioretention with Tree6Underdrainsmall/medium tree24 | G185: 0 | I185: sf
A186: Infiltrating Soil Cell Bioretention with Tree | B186: 6 | C186: Underdrain | D186: medium/large tree | E186: 24 | F186: Infiltrating Soil Cell Bioretention with Tree6Underdrainmedium/large tree24 | G186: 0 | I186: sf
A187: Infiltrating Soil Cell Bioretention with Tree | B187: 6 | C187: Underdrain | D187: large tree | E187: 24 | F187: Infiltrating Soil Cell Bioretention with Tree6Underdrainlarge tree24 | G187: 0 | I187: sf
A188: Infiltrating Soil Cell Bioretention with Tree | B188: 6 | C188: Underdrain | D188: constrained site tree | E188: 32 | F188: Infiltrating Soil Cell Bioretention with Tree6Underdrainconstrained site tree32 | G188: 0 | I188: sf
A189: Infiltrating Soil Cell Bioretention with Tree | B189: 6 | C189: Underdrain | D189: small tree | E189: 32 | F189: Infiltrating Soil Cell Bioretention with Tree6Underdrainsmall tree32 | G189: 0 | I189: sf
A190: Infiltrating Soil Cell Bioretention with Tree | B190: 6 | C190: Underdrain | D190: small/medium tree | E190: 32 | F190: Infiltrating Soil Cell Bioretention with Tree6Underdrainsmall/medium tree32 | G190: 0 | I190: sf
A191: Infiltrating Soil Cell Bioretention with Tree | B191: 6 | C191: Underdrain | D191: medium/large tree | E191: 32 | F191: Infiltrating Soil Cell Bioretention with Tree6Underdrainmedium/large tree32 | G191: 0 | I191: sf
A192: Infiltrating Soil Cell Bioretention with Tree | B192: 6 | C192: Underdrain | D192: large tree | E192: 32 | F192: Infiltrating Soil Cell Bioretention with Tree6Underdrainlarge tree32 | G192: 0 | I192: sf
A193: Infiltrating Soil Cell Bioretention with Tree | B193: 12 | C193: Underdrain | D193: constrained site tree | E193: 18 | F193: Infiltrating Soil Cell Bioretention with Tree12Underdrainconstrained site tree18 | G193: =IF(InfRate<0.15,0,IF(InfRate<0.3,0.063,0.061)) -> 0 | I193: sf
A194: Infiltrating Soil Cell Bioretention with Tree | B194: 12 | C194: Underdrain | D194: small tree | E194: 18 | F194: =TRIM(CONCATENATE(A194,B194,C194,D194,E194)) -> Infiltrating Soil Cell Bioretention with Tree12Underdrainsmall tree18 | G194: 0 | I194: sf
A195: Infiltrating Soil Cell Bioretention with Tree | B195: 12 | C195: Underdrain | D195: small/medium tree | E195: 18 | F195: Infiltrating Soil Cell Bioretention with Tree12Underdrainsmall/medium tree18 | G195: 0 | I195: sf
A196: Infiltrating Soil Cell Bioretention with Tree | B196: 12 | C196: Underdrain | D196: medium/large tree | E196: 18 | F196: Infiltrating Soil Cell Bioretention with Tree12Underdrainmedium/large tree18 | G196: 0 | I196: sf
A197: Infiltrating Soil Cell Bioretention with Tree | B197: 12 | C197: Underdrain | D197: large tree | E197: 18 | F197: Infiltrating Soil Cell Bioretention with Tree12Underdrainlarge tree18 | G197: 0 | I197: sf
A198: Infiltrating Soil Cell Bioretention with Tree | B198: 12 | C198: Underdrain | D198: constrained site tree | E198: 24 | F198: Infiltrating Soil Cell Bioretention with Tree12Underdrainconstrained site tree24 | G198: 0 | I198: sf
A199: Infiltrating Soil Cell Bioretention with Tree | B199: 12 | C199: Underdrain | D199: small tree | E199: 24 | F199: Infiltrating Soil Cell Bioretention with Tree12Underdrainsmall tree24 | G199: 0 | I199: sf
A200: Infiltrating Soil Cell Bioretention with Tree | B200: 12 | C200: Underdrain | D200: small/medium tree | E200: 24 | F200: Infiltrating Soil Cell Bioretention with Tree12Underdrainsmall/medium tree24 | G200: 0 | I200: sf
A201: Infiltrating Soil Cell Bioretention with Tree | B201: 12 | C201: Underdrain | D201: medium/large tree | E201: 24 | F201: Infiltrating Soil Cell Bioretention with Tree12Underdrainmedium/large tree24 | G201: 0 | I201: sf
A202: Infiltrating Soil Cell Bioretention with Tree | B202: 12 | C202: Underdrain | D202: large tree | E202: 24 | F202: Infiltrating Soil Cell Bioretention with Tree12Underdrainlarge tree24 | G202: 0 | I202: sf
... 203 more rows

Sheet BMP Modeling (hidden)
A1: On-site Stormwater Management Calculator
A2: BMP Modeling Results
A3: =Version -> Version 05-22-2026
B5: For the On-Site Performance Standard the modeling approach for each BMP design shall be applied. Refer to Section 4.1.3 and Appendix F in the Seattle Stormwater Manual for modeling requirements and guidelines.
A8: Surface | D8: Contributing Area (sf) | J8: Hard Surface Type | P8: Hard Surface Description | X8: BMP Name | AF8: Facility Size (sf) | AL8: Total Volume Infiltrated (cf)* | AR8: Optional Notes
B10: 1
B12: 2
B14: 3
B16: 4
B18: 5
B20: 6
B22: 7
B24: 8
B26: 9
B28: 10
B30: 11
B32: 12
B34: 13
B36: 14
B38: 15
B40: 16
B42: 17
B44: 18
B46: 19
B48: 20
B50: * Total volume infiltrated over the required 158-year continuous runoff model simulation in cubic feet (i.e. total volume infiltrated from the WWHM or MGS Flood output). The calculator will convert the volume to gallons and display the average annual volume infiltrated on the Project Summary tab. (If a pre-sized table is used rather than modeling, leave this field blank.)

Sheet BMP Sizing
A1: On-site Stormwater Management Calculator - List Approach
A2: BMP Sizing
A3: =Version -> Version 05-22-2026
B4: More than one surface can drain to the same BMP. For example, a garage roof and driveway may be managed by a single infiltration trench. Please indicate which surfaces are draining to which BMPs in the dropdown menus.
B5: Surface | F5: Area (sf) | K5: Select BMP | AN5: Dropdown List | AO5: Unique Count | AP5: BMP Type | AQ5: Can there be more than one BMP | AR5: Match
B7: 1 | F7: =IFERROR(INDEX('Project Summary'!$W$79:$W$83,MATCH(B7,'Project Summary'!$AS$79:$AS$83,0)),"") ->  | AA7: =IFERROR(IF(AND(K7<>"",NOT(AR7)),IF(AN7="","Select BMP on Surface Tab.","Selected BMP doesn't match Surface Tab."),""),"") ->  | AN7: =IFERROR(INDEX('Project Summary'!$AX$79:$AX$83,MATCH(B7,'Project Summary'!$AS$79:$AS$83,0)),"NoLIst") -> NoLIst | AO7: =IF(LEFT(K7,3)=LEFT(AN7,3),IF(K7<>"",1,""),"") ->  | AP7: =IFERROR(INDEX('Project Summary'!$AT$79:$AT$83,MATCH(B7,'Project Summary'!$AS$79:$AS$83,0)),"") ->  | AQ7: =INDEX(Lookup!$B$70:$B$94,MATCH(AP7,Lookup!$A$70:$A$94,0)) ->  | AR7: =OR(LEFT(K7,LEN(K7)-LEN(AO7)-2)=AP7,K7=AP7,LEFT(K7,LEN(K7)-LEN(AO7)-1)=AP7) -> 
B9: 2 | C9: 2 | F9: =IFERROR(INDEX('Project Summary'!$W$79:$W$83,MATCH(B9,'Project Summary'!$AS$79:$AS$83,0)),"") ->  | AA9: =IFERROR(IF(AND(K9<>"",NOT(AR9)),IF(AN9="","Select BMP on Surface Tab.","Selected BMP doesn't match Surface Tab."),""),"") ->  | AN9: =IFERROR(INDEX('Project Summary'!$AX$79:$AX$83,MATCH(B9,'Project Summary'!$AS$79:$AS$83,0)),"NoLIst") -> NoLIst | AO9: =IF(OR(K9="",LEFT(K9,3)<>LEFT(AN9,3)),"",IF(AQ9,IFERROR(INDEX($AO$7:AO8,MATCH(K9,$K$7:K9,0)),MAX($AO$7:AO8)+1),MAX($AO$7:AO8)+1)) ->  | AP9: =IFERROR(INDEX('Project Summary'!$AT$79:$AT$83,MATCH(B9,'Project Summary'!$AS$79:$AS$83,0)),"") ->  | AQ9: =INDEX(Lookup!$B$70:$B$94,MATCH(AP9,Lookup!$A$70:$A$94,0)) ->  | AR9: =OR(LEFT(K9,LEN(K9)-LEN(AO9)-2)=AP9,K9=AP9,LEFT(K9,LEN(K9)-LEN(AO9)-1)=AP9) -> 
B11: 3 | C11: 3 | F11: =IFERROR(INDEX('Project Summary'!$W$79:$W$83,MATCH(B11,'Project Summary'!$AS$79:$AS$83,0)),"") ->  | AA11: =IFERROR(IF(AND(K11<>"",NOT(AR11)),IF(AN11="","Select BMP on Surface Tab.","Selected BMP doesn't match Surface Tab."),""),"") ->  | AN11: =IFERROR(INDEX('Project Summary'!$AX$79:$AX$83,MATCH(B11,'Project Summary'!$AS$79:$AS$83,0)),"NoLIst") -> NoLIst | AO11: =IF(OR(K11="",LEFT(K11,3)<>LEFT(AN11,3)),"",IF(AQ11,IFERROR(INDEX($AO$7:AO10,MATCH(K11,$K$7:K11,0)),MAX($AO$7:AO10)+1),MAX($AO$7:AO10)+1)) ->  | AP11: =IFERROR(INDEX('Project Summary'!$AT$79:$AT$83,MATCH(B11,'Project Summary'!$AS$79:$AS$83,0)),"") ->  | AQ11: =INDEX(Lookup!$B$70:$B$94,MATCH(AP11,Lookup!$A$70:$A$94,0)) ->  | AR11: =OR(LEFT(K11,LEN(K11)-LEN(AO11)-2)=AP11,K11=AP11,LEFT(K11,LEN(K11)-LEN(AO11)-1)=AP11) -> 
B13: 4 | C13: 4 | F13: =IFERROR(INDEX('Project Summary'!$W$79:$W$83,MATCH(B13,'Project Summary'!$AS$79:$AS$83,0)),"") ->  | AA13: =IFERROR(IF(AND(K13<>"",NOT(AR13)),IF(AN13="","Select BMP on Surface Tab.","Selected BMP doesn't match Surface Tab."),""),"") ->  | AN13: =IFERROR(INDEX('Project Summary'!$AX$79:$AX$83,MATCH(B13,'Project Summary'!$AS$79:$AS$83,0)),"NoLIst") -> NoLIst | AO13: =IF(OR(K13="",LEFT(K13,3)<>LEFT(AN13,3)),"",IF(AQ13,IFERROR(INDEX($AO$7:AO12,MATCH(K13,$K$7:K13,0)),MAX($AO$7:AO12)+1),MAX($AO$7:AO12)+1)) ->  | AP13: =IFERROR(INDEX('Project Summary'!$AT$79:$AT$83,MATCH(B13,'Project Summary'!$AS$79:$AS$83,0)),"") ->  | AQ13: =INDEX(Lookup!$B$70:$B$94,MATCH(AP13,Lookup!$A$70:$A$94,0)) ->  | AR13: =OR(LEFT(K13,LEN(K13)-LEN(AO13)-2)=AP13,K13=AP13,LEFT(K13,LEN(K13)-LEN(AO13)-1)=AP13) -> 
B15: 5 | C15: 5 | F15: =IFERROR(INDEX('Project Summary'!$W$79:$W$83,MATCH(B15,'Project Summary'!$AS$79:$AS$83,0)),"") ->  | AA15: =IFERROR(IF(AND(K15<>"",NOT(AR15)),IF(AN15="","Select BMP on Surface Tab.","Selected BMP doesn't match Surface Tab."),""),"") ->  | AN15: =IFERROR(INDEX('Project Summary'!$AX$79:$AX$83,MATCH(B15,'Project Summary'!$AS$79:$AS$83,0)),"NoLIst") -> NoLIst | AO15: =IF(OR(K15="",LEFT(K15,3)<>LEFT(AN15,3)),"",IF(AQ15,IFERROR(INDEX($AO$7:AO14,MATCH(K15,$K$7:K15,0)),MAX($AO$7:AO14)+1),MAX($AO$7:AO14)+1)) ->  | AP15: =IFERROR(INDEX('Project Summary'!$AT$79:$AT$83,MATCH(B15,'Project Summary'!$AS$79:$AS$83,0)),"") ->  | AQ15: =INDEX(Lookup!$B$70:$B$94,MATCH(AP15,Lookup!$A$70:$A$94,0)) ->  | AR15: =OR(LEFT(K15,LEN(K15)-LEN(AO15)-2)=AP15,K15=AP15,LEFT(K15,LEN(K15)-LEN(AO15)-1)=AP15) -> 
B17: 6 | C17: 6 | F17: =IFERROR(INDEX('Project Summary'!$W$79:$W$83,MATCH(B17,'Project Summary'!$AS$79:$AS$83,0)),"") ->  | AA17: =IFERROR(IF(AND(K17<>"",NOT(AR17)),IF(AN17="","Select BMP on Surface Tab.","Selected BMP doesn't match Surface Tab."),""),"") ->  | AN17: =IFERROR(INDEX('Project Summary'!$AX$79:$AX$83,MATCH(B17,'Project Summary'!$AS$79:$AS$83,0)),"NoLIst") -> NoLIst | AO17: =IF(OR(K17="",LEFT(K17,3)<>LEFT(AN17,3)),"",IF(AQ17,IFERROR(INDEX($AO$7:AO16,MATCH(K17,$K$7:K17,0)),MAX($AO$7:AO16)+1),MAX($AO$7:AO16)+1)) ->  | AP17: =IFERROR(INDEX('Project Summary'!$AT$79:$AT$83,MATCH(B17,'Project Summary'!$AS$79:$AS$83,0)),"") ->  | AQ17: =INDEX(Lookup!$B$70:$B$94,MATCH(AP17,Lookup!$A$70:$A$94,0)) ->  | AR17: =OR(LEFT(K17,LEN(K17)-LEN(AO17)-2)=AP17,K17=AP17,LEFT(K17,LEN(K17)-LEN(AO17)-1)=AP17) -> 
B19: 7 | C19: 7 | F19: =IFERROR(INDEX('Project Summary'!$W$79:$W$83,MATCH(B19,'Project Summary'!$AS$79:$AS$83,0)),"") ->  | AA19: =IFERROR(IF(AND(K19<>"",NOT(AR19)),IF(AN19="","Select BMP on Surface Tab.","Selected BMP doesn't match Surface Tab."),""),"") ->  | AN19: =IFERROR(INDEX('Project Summary'!$AX$79:$AX$83,MATCH(B19,'Project Summary'!$AS$79:$AS$83,0)),"NoLIst") -> NoLIst | AO19: =IF(OR(K19="",LEFT(K19,3)<>LEFT(AN19,3)),"",IF(AQ19,IFERROR(INDEX($AO$7:AO18,MATCH(K19,$K$7:K19,0)),MAX($AO$7:AO18)+1),MAX($AO$7:AO18)+1)) ->  | AP19: =IFERROR(INDEX('Project Summary'!$AT$79:$AT$83,MATCH(B19,'Project Summary'!$AS$79:$AS$83,0)),"") ->  | AQ19: =INDEX(Lookup!$B$70:$B$94,MATCH(AP19,Lookup!$A$70:$A$94,0)) ->  | AR19: =OR(LEFT(K19,LEN(K19)-LEN(AO19)-2)=AP19,K19=AP19,LEFT(K19,LEN(K19)-LEN(AO19)-1)=AP19) -> 
B21: 8 | C21: 8 | F21: =IFERROR(INDEX('Project Summary'!$W$79:$W$83,MATCH(B21,'Project Summary'!$AS$79:$AS$83,0)),"") ->  | AA21: =IFERROR(IF(AND(K21<>"",NOT(AR21)),IF(AN21="","Select BMP on Surface Tab.","Selected BMP doesn't match Surface Tab."),""),"") ->  | AN21: =IFERROR(INDEX('Project Summary'!$AX$79:$AX$83,MATCH(B21,'Project Summary'!$AS$79:$AS$83,0)),"NoLIst") -> NoLIst | AO21: =IF(OR(K21="",LEFT(K21,3)<>LEFT(AN21,3)),"",IF(AQ21,IFERROR(INDEX($AO$7:AO20,MATCH(K21,$K$7:K21,0)),MAX($AO$7:AO20)+1),MAX($AO$7:AO20)+1)) ->  | AP21: =IFERROR(INDEX('Project Summary'!$AT$79:$AT$83,MATCH(B21,'Project Summary'!$AS$79:$AS$83,0)),"") ->  | AQ21: =INDEX(Lookup!$B$70:$B$94,MATCH(AP21,Lookup!$A$70:$A$94,0)) ->  | AR21: =OR(LEFT(K21,LEN(K21)-LEN(AO21)-2)=AP21,K21=AP21,LEFT(K21,LEN(K21)-LEN(AO21)-1)=AP21) -> 
B23: 9 | C23: 9 | F23: =IFERROR(INDEX('Project Summary'!$W$79:$W$83,MATCH(B23,'Project Summary'!$AS$79:$AS$83,0)),"") ->  | AA23: =IFERROR(IF(AND(K23<>"",NOT(AR23)),IF(AN23="","Select BMP on Surface Tab.","Selected BMP doesn't match Surface Tab."),""),"") ->  | AN23: =IFERROR(INDEX('Project Summary'!$AX$79:$AX$83,MATCH(B23,'Project Summary'!$AS$79:$AS$83,0)),"NoLIst") -> NoLIst | AO23: =IF(OR(K23="",LEFT(K23,3)<>LEFT(AN23,3)),"",IF(AQ23,IFERROR(INDEX($AO$7:AO22,MATCH(K23,$K$7:K23,0)),MAX($AO$7:AO22)+1),MAX($AO$7:AO22)+1)) ->  | AP23: =IFERROR(INDEX('Project Summary'!$AT$79:$AT$83,MATCH(B23,'Project Summary'!$AS$79:$AS$83,0)),"") ->  | AQ23: =INDEX(Lookup!$B$70:$B$94,MATCH(AP23,Lookup!$A$70:$A$94,0)) ->  | AR23: =OR(LEFT(K23,LEN(K23)-LEN(AO23)-2)=AP23,K23=AP23,LEFT(K23,LEN(K23)-LEN(AO23)-1)=AP23) -> 
B25: 10 | C25: 10 | F25: =IFERROR(INDEX('Project Summary'!$W$79:$W$83,MATCH(B25,'Project Summary'!$AS$79:$AS$83,0)),"") ->  | AA25: =IFERROR(IF(AND(K25<>"",NOT(AR25)),IF(AN25="","Select BMP on Surface Tab.","Selected BMP doesn't match Surface Tab."),""),"") ->  | AN25: =IFERROR(INDEX('Project Summary'!$AX$79:$AX$83,MATCH(B25,'Project Summary'!$AS$79:$AS$83,0)),"NoLIst") -> NoLIst | AO25: =IF(OR(K25="",LEFT(K25,3)<>LEFT(AN25,3)),"",IF(AQ25,IFERROR(INDEX($AO$7:AO24,MATCH(K25,$K$7:K25,0)),MAX($AO$7:AO24)+1),MAX($AO$7:AO24)+1)) ->  | AP25: =IFERROR(INDEX('Project Summary'!$AT$79:$AT$83,MATCH(B25,'Project Summary'!$AS$79:$AS$83,0)),"") ->  | AQ25: =INDEX(Lookup!$B$70:$B$94,MATCH(AP25,Lookup!$A$70:$A$94,0)) ->  | AR25: =OR(LEFT(K25,LEN(K25)-LEN(AO25)-2)=AP25,K25=AP25,LEFT(K25,LEN(K25)-LEN(AO25)-1)=AP25) -> 
B27: 11 | C27: 10 | F27: =IFERROR(INDEX('Project Summary'!$W$79:$W$83,MATCH(B27,'Project Summary'!$AS$79:$AS$83,0)),"") ->  | AA27: =IFERROR(IF(AND(K27<>"",NOT(AR27)),IF(AN27="","Select BMP on Surface Tab.","Selected BMP doesn't match Surface Tab."),""),"") ->  | AN27: =IFERROR(INDEX('Project Summary'!$AX$79:$AX$83,MATCH(B27,'Project Summary'!$AS$79:$AS$83,0)),"NoLIst") -> NoLIst | AO27: =IF(OR(K27="",LEFT(K27,3)<>LEFT(AN27,3)),"",IF(AQ27,IFERROR(INDEX($AO$7:AO26,MATCH(K27,$K$7:K27,0)),MAX($AO$7:AO26)+1),MAX($AO$7:AO26)+1)) ->  | AP27: =IFERROR(INDEX('Project Summary'!$AT$79:$AT$83,MATCH(B27,'Project Summary'!$AS$79:$AS$83,0)),"") ->  | AQ27: =INDEX(Lookup!$B$70:$B$94,MATCH(AP27,Lookup!$A$70:$A$94,0)) ->  | AR27: =OR(LEFT(K27,LEN(K27)-LEN(AO27)-2)=AP27,K27=AP27,LEFT(K27,LEN(K27)-LEN(AO27)-1)=AP27) -> 
B29: 12 | C29: 10 | F29: =IFERROR(INDEX('Project Summary'!$W$79:$W$83,MATCH(B29,'Project Summary'!$AS$79:$AS$83,0)),"") ->  | AA29: =IFERROR(IF(AND(K29<>"",NOT(AR29)),IF(AN29="","Select BMP on Surface Tab.","Selected BMP doesn't match Surface Tab."),""),"") ->  | AN29: =IFERROR(INDEX('Project Summary'!$AX$79:$AX$83,MATCH(B29,'Project Summary'!$AS$79:$AS$83,0)),"NoLIst") -> NoLIst | AO29: =IF(OR(K29="",LEFT(K29,3)<>LEFT(AN29,3)),"",IF(AQ29,IFERROR(INDEX($AO$7:AO28,MATCH(K29,$K$7:K29,0)),MAX($AO$7:AO28)+1),MAX($AO$7:AO28)+1)) ->  | AP29: =IFERROR(INDEX('Project Summary'!$AT$79:$AT$83,MATCH(B29,'Project Summary'!$AS$79:$AS$83,0)),"") ->  | AQ29: =INDEX(Lookup!$B$70:$B$94,MATCH(AP29,Lookup!$A$70:$A$94,0)) ->  | AR29: =OR(LEFT(K29,LEN(K29)-LEN(AO29)-2)=AP29,K29=AP29,LEFT(K29,LEN(K29)-LEN(AO29)-1)=AP29) -> 
B31: 13 | C31: 10 | F31: =IFERROR(INDEX('Project Summary'!$W$79:$W$83,MATCH(B31,'Project Summary'!$AS$79:$AS$83,0)),"") ->  | AA31: =IFERROR(IF(AND(K31<>"",NOT(AR31)),IF(AN31="","Select BMP on Surface Tab.","Selected BMP doesn't match Surface Tab."),""),"") ->  | AN31: =IFERROR(INDEX('Project Summary'!$AX$79:$AX$83,MATCH(B31,'Project Summary'!$AS$79:$AS$83,0)),"NoLIst") -> NoLIst | AO31: =IF(OR(K31="",LEFT(K31,3)<>LEFT(AN31,3)),"",IF(AQ31,IFERROR(INDEX($AO$7:AO30,MATCH(K31,$K$7:K31,0)),MAX($AO$7:AO30)+1),MAX($AO$7:AO30)+1)) ->  | AP31: =IFERROR(INDEX('Project Summary'!$AT$79:$AT$83,MATCH(B31,'Project Summary'!$AS$79:$AS$83,0)),"") ->  | AQ31: =INDEX(Lookup!$B$70:$B$94,MATCH(AP31,Lookup!$A$70:$A$94,0)) ->  | AR31: =OR(LEFT(K31,LEN(K31)-LEN(AO31)-2)=AP31,K31=AP31,LEFT(K31,LEN(K31)-LEN(AO31)-1)=AP31) -> 
B33: 14 | C33: 10 | F33: =IFERROR(INDEX('Project Summary'!$W$79:$W$83,MATCH(B33,'Project Summary'!$AS$79:$AS$83,0)),"") ->  | AA33: =IFERROR(IF(AND(K33<>"",NOT(AR33)),IF(AN33="","Select BMP on Surface Tab.","Selected BMP doesn't match Surface Tab."),""),"") ->  | AN33: =IFERROR(INDEX('Project Summary'!$AX$79:$AX$83,MATCH(B33,'Project Summary'!$AS$79:$AS$83,0)),"NoLIst") -> NoLIst | AO33: =IF(OR(K33="",LEFT(K33,3)<>LEFT(AN33,3)),"",IF(AQ33,IFERROR(INDEX($AO$7:AO32,MATCH(K33,$K$7:K33,0)),MAX($AO$7:AO32)+1),MAX($AO$7:AO32)+1)) ->  | AP33: =IFERROR(INDEX('Project Summary'!$AT$79:$AT$83,MATCH(B33,'Project Summary'!$AS$79:$AS$83,0)),"") ->  | AQ33: =INDEX(Lookup!$B$70:$B$94,MATCH(AP33,Lookup!$A$70:$A$94,0)) ->  | AR33: =OR(LEFT(K33,LEN(K33)-LEN(AO33)-2)=AP33,K33=AP33,LEFT(K33,LEN(K33)-LEN(AO33)-1)=AP33) -> 
B35: 15 | C35: 10 | F35: =IFERROR(INDEX('Project Summary'!$W$79:$W$83,MATCH(B35,'Project Summary'!$AS$79:$AS$83,0)),"") ->  | AA35: =IFERROR(IF(AND(K35<>"",NOT(AR35)),IF(AN35="","Select BMP on Surface Tab.","Selected BMP doesn't match Surface Tab."),""),"") ->  | AN35: =IFERROR(INDEX('Project Summary'!$AX$79:$AX$83,MATCH(B35,'Project Summary'!$AS$79:$AS$83,0)),"NoLIst") -> NoLIst | AO35: =IF(OR(K35="",LEFT(K35,3)<>LEFT(AN35,3)),"",IF(AQ35,IFERROR(INDEX($AO$7:AO34,MATCH(K35,$K$7:K35,0)),MAX($AO$7:AO34)+1),MAX($AO$7:AO34)+1)) ->  | AP35: =IFERROR(INDEX('Project Summary'!$AT$79:$AT$83,MATCH(B35,'Project Summary'!$AS$79:$AS$83,0)),"") ->  | AQ35: =INDEX(Lookup!$B$70:$B$94,MATCH(AP35,Lookup!$A$70:$A$94,0)) ->  | AR35: =OR(LEFT(K35,LEN(K35)-LEN(AO35)-2)=AP35,K35=AP35,LEFT(K35,LEN(K35)-LEN(AO35)-1)=AP35) -> 
B37: 16 | C37: 10 | F37: =IFERROR(INDEX('Project Summary'!$W$79:$W$83,MATCH(B37,'Project Summary'!$AS$79:$AS$83,0)),"") ->  | AA37: =IFERROR(IF(AND(K37<>"",NOT(AR37)),IF(AN37="","Select BMP on Surface Tab.","Selected BMP doesn't match Surface Tab."),""),"") ->  | AN37: =IFERROR(INDEX('Project Summary'!$AX$79:$AX$83,MATCH(B37,'Project Summary'!$AS$79:$AS$83,0)),"NoLIst") -> NoLIst | AO37: =IF(OR(K37="",LEFT(K37,3)<>LEFT(AN37,3)),"",IF(AQ37,IFERROR(INDEX($AO$7:AO36,MATCH(K37,$K$7:K37,0)),MAX($AO$7:AO36)+1),MAX($AO$7:AO36)+1)) ->  | AP37: =IFERROR(INDEX('Project Summary'!$AT$79:$AT$83,MATCH(B37,'Project Summary'!$AS$79:$AS$83,0)),"") ->  | AQ37: =INDEX(Lookup!$B$70:$B$94,MATCH(AP37,Lookup!$A$70:$A$94,0)) ->  | AR37: =OR(LEFT(K37,LEN(K37)-LEN(AO37)-2)=AP37,K37=AP37,LEFT(K37,LEN(K37)-LEN(AO37)-1)=AP37) -> 
B39: 17 | C39: 10 | F39: =IFERROR(INDEX('Project Summary'!$W$79:$W$83,MATCH(B39,'Project Summary'!$AS$79:$AS$83,0)),"") ->  | AA39: =IFERROR(IF(AND(K39<>"",NOT(AR39)),IF(AN39="","Select BMP on Surface Tab.","Selected BMP doesn't match Surface Tab."),""),"") ->  | AN39: =IFERROR(INDEX('Project Summary'!$AX$79:$AX$83,MATCH(B39,'Project Summary'!$AS$79:$AS$83,0)),"NoLIst") -> NoLIst | AO39: =IF(OR(K39="",LEFT(K39,3)<>LEFT(AN39,3)),"",IF(AQ39,IFERROR(INDEX($AO$7:AO38,MATCH(K39,$K$7:K39,0)),MAX($AO$7:AO38)+1),MAX($AO$7:AO38)+1)) ->  | AP39: =IFERROR(INDEX('Project Summary'!$AT$79:$AT$83,MATCH(B39,'Project Summary'!$AS$79:$AS$83,0)),"") ->  | AQ39: =INDEX(Lookup!$B$70:$B$94,MATCH(AP39,Lookup!$A$70:$A$94,0)) ->  | AR39: =OR(LEFT(K39,LEN(K39)-LEN(AO39)-2)=AP39,K39=AP39,LEFT(K39,LEN(K39)-LEN(AO39)-1)=AP39) -> 
B41: 18 | C41: 10 | F41: =IFERROR(INDEX('Project Summary'!$W$79:$W$83,MATCH(B41,'Project Summary'!$AS$79:$AS$83,0)),"") ->  | AA41: =IFERROR(IF(AND(K41<>"",NOT(AR41)),IF(AN41="","Select BMP on Surface Tab.","Selected BMP doesn't match Surface Tab."),""),"") ->  | AN41: =IFERROR(INDEX('Project Summary'!$AX$79:$AX$83,MATCH(B41,'Project Summary'!$AS$79:$AS$83,0)),"NoLIst") -> NoLIst | AO41: =IF(OR(K41="",LEFT(K41,3)<>LEFT(AN41,3)),"",IF(AQ41,IFERROR(INDEX($AO$7:AO40,MATCH(K41,$K$7:K41,0)),MAX($AO$7:AO40)+1),MAX($AO$7:AO40)+1)) ->  | AP41: =IFERROR(INDEX('Project Summary'!$AT$79:$AT$83,MATCH(B41,'Project Summary'!$AS$79:$AS$83,0)),"") ->  | AQ41: =INDEX(Lookup!$B$70:$B$94,MATCH(AP41,Lookup!$A$70:$A$94,0)) ->  | AR41: =OR(LEFT(K41,LEN(K41)-LEN(AO41)-2)=AP41,K41=AP41,LEFT(K41,LEN(K41)-LEN(AO41)-1)=AP41) -> 
B43: 19 | C43: 10 | F43: =IFERROR(INDEX('Project Summary'!$W$79:$W$83,MATCH(B43,'Project Summary'!$AS$79:$AS$83,0)),"") ->  | AA43: =IFERROR(IF(AND(K43<>"",NOT(AR43)),IF(AN43="","Select BMP on Surface Tab.","Selected BMP doesn't match Surface Tab."),""),"") ->  | AN43: =IFERROR(INDEX('Project Summary'!$AX$79:$AX$83,MATCH(B43,'Project Summary'!$AS$79:$AS$83,0)),"NoLIst") -> NoLIst | AO43: =IF(OR(K43="",LEFT(K43,3)<>LEFT(AN43,3)),"",IF(AQ43,IFERROR(INDEX($AO$7:AO42,MATCH(K43,$K$7:K43,0)),MAX($AO$7:AO42)+1),MAX($AO$7:AO42)+1)) ->  | AP43: =IFERROR(INDEX('Project Summary'!$AT$79:$AT$83,MATCH(B43,'Project Summary'!$AS$79:$AS$83,0)),"") ->  | AQ43: =INDEX(Lookup!$B$70:$B$94,MATCH(AP43,Lookup!$A$70:$A$94,0)) ->  | AR43: =OR(LEFT(K43,LEN(K43)-LEN(AO43)-2)=AP43,K43=AP43,LEFT(K43,LEN(K43)-LEN(AO43)-1)=AP43) -> 
B45: 20 | C45: 10 | F45: =IFERROR(INDEX('Project Summary'!$W$79:$W$83,MATCH(B45,'Project Summary'!$AS$79:$AS$83,0)),"") ->  | AA45: =IFERROR(IF(AND(K45<>"",NOT(AR45)),IF(AN45="","Select BMP on Surface Tab.","Selected BMP doesn't match Surface Tab."),""),"") ->  | AN45: =IFERROR(INDEX('Project Summary'!$AX$79:$AX$83,MATCH(B45,'Project Summary'!$AS$79:$AS$83,0)),"NoLIst") -> NoLIst | AO45: =IF(OR(K45="",LEFT(K45,3)<>LEFT(AN45,3)),"",IF(AQ45,IFERROR(INDEX($AO$7:AO44,MATCH(K45,$K$7:K45,0)),MAX($AO$7:AO44)+1),MAX($AO$7:AO44)+1)) ->  | AP45: =IFERROR(INDEX('Project Summary'!$AT$79:$AT$83,MATCH(B45,'Project Summary'!$AS$79:$AS$83,0)),"") ->  | AQ45: =INDEX(Lookup!$B$70:$B$94,MATCH(AP45,Lookup!$A$70:$A$94,0)) ->  | AR45: =OR(LEFT(K45,LEN(K45)-LEN(AO45)-2)=AP45,K45=AP45,LEFT(K45,LEN(K45)-LEN(AO45)-1)=AP45) -> 
AN47: Unique count lookup | AO47: Dropdown lookup | AP47: Sizing Factor & Units | AQ47: Facility Size | AR47: Units | AS47: Volume Mangaed gal/yr | AT47: Data Entered when This was List
B48: BMP | N48: BMP Facility Inputs | AC48: BMP Size and Performance*
B49: =IFERROR(IF(INDEX($K$7:$K$46,MATCH(AN49,$AO$7:$AO$46,0))="","",INDEX($K$7:$K$46,MATCH(AN49,$AO$7:$AO$46,0))),"") ->  | N49: =IF(B49="","",IF(AO49="Vegetated Roof System","Roof Area","Contributing Area (sf)")) ->  | V49: =IF(B49="","",SUMIF($AO$7:$AO$46,AN49,$F$7:$I$46)) ->  | AC49: =IFERROR(IF(AO49="Water Quality BMP in lieu of NIB","Submit sizing documentation separately.", IF(AP49=-999,"Configuration not allowed.",IF(AP49=0,"Configuration not allowed.",IF(AO49="Trees","As many as feasible.", IF(AP49="equation",TEXT(AQ49,"#,##0")&" "&AR49, TEXT(IF(OR(AO49="Permeable Pavement Facility",AO49="Vegetated Roof System",AO49="Rainwater Harvesting - Category 1", AO49="Rainwater Harvesting - Category 4"),H51, IF(AO49="Sidewalk/Trail Compost-Amended Strip",MAX(V49/H51,AP49*V49), IF(OR(AO49="Infiltrating Soil Cell Bioretention with Tree",AO49="Non-Infiltrating Soil Cell Bioretention with Tree"),MAX(AP49*V49,AQ57), AP49*V49))),"#,##0")&" "&AR49))))),"") ->  | AN49: 1 | AO49: =INDEX($AP$7:$AP$46,MATCH(AN49,$AO$7:$AO$46,0)) ->  | AP49: =IF(AO49="Trees", INDEX(Lookup!$G$97:$G$365,MATCH(TRIM(CONCATENATE(AO49,V51)),Lookup!$F$97:$F$365,0)), IF(AO49="Residential Cistern", INDEX(Lookup!$G$97:$G$365,MATCH(TRIM(CONCATENATE(AO49,IF(V49<400,0,IF(V49>4200,4201,ROUNDDOWN(V49,-2))))),Lookup!$F$97:$F$365,0)), IF(AO49="Sidewalk/Trail Compost-Amended Strip", IF(H51="",NA(),IF(H51<10,Lookup!$G$99,Lookup!$G$98)), IF(AND(AO49="Non-Infiltrating Bioretention",V53="Sloped sides",V51=6),IF(V49<=2000,0.025,0.028), INDEX(Lookup!$G$97:$G$365,MATCH(TRIM(CONCATENATE(AO49,V51,V53,V55,V57)),Lookup!$F$97:$F$365,0)))))) ->  | AQ49: =IF(AP49<=0,NA(),IF(OR(AO49="Permeable Pavement Facility",AO49="Vegetated Roof System",AO49="Rainwater Harvesting - Category 1",AO49="Rainwater Harvesting - Category 4"),H51, IF(AO49="Sidewalk/Trail Compost-Amended Strip",MAX(V49/H51,AP49*V49), IF(OR(AO49="Infiltrating Soil Cell Bioretention with Tree",AO49="Non-Infiltrating Soil Cell Bioretention with Tree"),MAX(AP49*V49,AQ57), AP49*V49)))) ->  | AR49: =IF(AO49="Residential Cistern", "sf",INDEX(Lookup!$I$97:$I$365,MATCH(TRIM(CONCATENATE(AO49,V51,V53,V55,V57)),Lookup!$F$97:$F$365,0))) ->  | AS49: =IF(AO49="Trees", INDEX(Lookup!$H$97:$H$365,MATCH(TRIM(CONCATENATE(AO49,V51)),Lookup!$F$97:$F$365,0))*V53, IF(AO49="Residential Cistern", INDEX(Lookup!$H$97:$H$365,MATCH(TRIM(CONCATENATE(AO49,IF(V49<400,0,IF(V49>4200,4201,ROUNDDOWN(V49,-2))))),Lookup!$F$97:$F$365,0))*V49, IF(AND(AO49="Sidewalk/Trail Compost-Amended Strip",OR(H51="",InfRate=0)),NA(), INDEX(Lookup!$H$97:$H$365,MATCH(TRIM(CONCATENATE(AO49,V51,V53,V55,V57)),Lookup!$F$97:$F$365,0))*V49)))*7.48052 *IF(OR(AO49="Permeable Pavement Facility",AO49="Vegetated Roof System"),MIN(1,H51/(AP49*V49)),1) +IF(AO49="Permeable Pavement Facility",H51*2.1*7.48052,1) ->  | AT49: =IFERROR( IF(AO49="Residential Cistern",INDEX(Lookup!$I$97:$I$365,MATCH(TRIM(CONCATENATE(AO49,IF(V49<400,0,IF(V49>4200,4201,ROUNDDOWN(V49,-2))))),Lookup!$F$97:$F$365,0)), IF(AO49="Sidewalk/Trail Compost-Amended Strip",ROUND(AQ49/(V49/H51),1) &" ft wide x "& ROUND(V49/H51,0)&" ft long", IF(OR(AO49="Rainwater Harvesting - Category 1",AO49="Rainwater Harvesting - Category 4")," required minimum live storage", IF(AO49="Water Quality BMP in lieu of NIB","See Plan", IF(AND(V51="",V53="",V55=""),"",TRIM(V53&" "&AP53&" "&V51&" "&AP51&" "&V55&" "&AP55)))))),"") -> 
B51: =IFERROR( IF(AO49="Permeable Pavement Facility","Facility Area (sf)", IF(AO49="Vegetated Roof System","Vegetated Area (sf)", IF(AO49="Sidewalk/Trail Compost-Amended Strip","Sidewalk/Trail Width (ft)", IF(OR(AO49="Rainwater Harvesting - Category 1",AO49="Rainwater Harvesting - Category 4"),"Live Storage Volume (gal)", "")))),"") ->  | N51: =IFERROR(INDEX(Lookup!$C$70:$C$94,MATCH(AO49,Lookup!$A$70:$A$94,0)),"") ->  | AC51: =IFERROR(TEXT(AS49,"#,##0")&" gal managed/year",IFERROR(IF(AP49=0,"Infiltration rate too low.",""),"")) ->  | AO51: =TRIM(SUBSTITUTE(SUBSTITUTE(SUBSTITUTE(AO49," ",""),"-",""),"/","")&"List1") ->  | AP51: =IFERROR(INDEX(Lookup!$G$70:$G$94,MATCH(AO49,Lookup!$A$70:$A$94,0)),"") -> 
B53: =IFERROR( IF(OR(AO49="Permeable Pavement Facility",AO49="Vegetated Roof System"),"Minimum Facility Area "&TEXT((AP49*V49),"#,###")&" sf", IF(OR(AO49="Rainwater Harvesting - Category 1",AO49="Rainwater Harvesting - Category 4"),"Continuous runoff modeling required by", "")),"") ->  | N53: =IFERROR(INDEX(Lookup!$D$70:$D$94,MATCH(AO49,Lookup!$A$70:$A$94,0)),"") ->  | AC53: =IFERROR(IF(AO49="Sidewalk/Trail Compost-Amended Strip",ROUND(AQ49/(V49/H51),1) &" ft wide compost-amended strip", IF(OR(AO49="Infiltrating Soil Cell Bioretention with Tree",AO49="Non-Infiltrating Soil Cell Bioretention with Tree"),"BMP size excludes tree planting area", IF(AO49="Residential Cistern",IF(AQ49=-999,"",IF(V49<800,3,IF(V49<1300,4,5)))&" ft live storage", ""))),"") ->  | AO53: =TRIM(SUBSTITUTE(SUBSTITUTE(SUBSTITUTE(AO49," ",""),"-",""),"/","")&"List2") ->  | AP53: =IFERROR(INDEX(Lookup!$H$70:$H$94,MATCH(AO49,Lookup!$A$70:$A$94,0)),"") -> 
B55: =IFERROR(IF(OR(AO49="Rainwater Harvesting - Category 1",AO49="Rainwater Harvesting - Category 4"),"professional engineer.", ""),"") ->  | N55: =IFERROR(INDEX(Lookup!$E$70:$E$94,MATCH(AO49,Lookup!$A$70:$A$94,0)),"") ->  | AC55: =IFERROR(IF(AO49="Sidewalk/Trail Compost-Amended Strip",IF(AND(AC53="",H51<>""),"","along full "& ROUND(V49/H51,0) &" ft trail/sidewalk"),""),"") ->  | AO55: =TRIM(SUBSTITUTE(SUBSTITUTE(SUBSTITUTE(AO49," ",""),"-",""),"/","")&"List3") ->  | AP55: =IFERROR(INDEX(Lookup!$H$70:$H$94,MATCH(AO51,Lookup!$A$70:$A$94,0)),"") ->  | AQ55: =IF(OR(AO49="Infiltrating Soil Cell Bioretention with Tree",AO49="Non-Infiltrating Soil Cell Bioretention with Tree"),"min footprint to meet soil volume","") ->  | AR55: =IF(OR(AO49="Infiltrating Soil Cell Bioretention with Tree",AO49="Non-Infiltrating Soil Cell Bioretention with Tree"),"min soil volume","") ->  | AT55: InfiltratingSoilCellBioretentionwithTreeList3
N57: =IFERROR(INDEX(Lookup!$F$70:$F$94,MATCH(AO49,Lookup!$A$70:$A$94,0)),"") ->  | AO57: =TRIM(SUBSTITUTE(SUBSTITUTE(SUBSTITUTE(AO49," ",""),"-",""),"/","")&"List4") ->  | AQ57: =IF(AO49="Infiltrating Soil Cell Bioretention with Tree",AR57/(V57/12), IF(AO49="Non-Infiltrating Soil Cell Bioretention with Tree",AR57/(V55/12),"")) ->  | AR57: =IF(AO49="Infiltrating Soil Cell Bioretention with Tree",_xlfn.XLOOKUP(V55,InfiltratingSoilCellBioretentionwithTreeList3,Lookup!$U$51:$U$55), IF(AO49="Non-Infiltrating Soil Cell Bioretention with Tree",_xlfn.XLOOKUP(V53,NonInfiltratingSoilCellBioretentionwithTreeList2,Lookup!$U$51:$U$55,""))) ->  | AT57: InfiltratingSoilCellBioretentionwithTreeList4
B59: =IFERROR(IF(INDEX($K$7:$K$46,MATCH(AN59,$AO$7:$AO$46,0))="","",INDEX($K$7:$K$46,MATCH(AN59,$AO$7:$AO$46,0))),"") ->  | N59: =IF(B59="","",IF(AO59="Vegetated Roof System","Roof Area","Contributing Area (sf)")) ->  | V59: =IF(B59="","",SUMIF($AO$7:$AO$46,AN59,$F$7:$I$46)) ->  | AC59: =IFERROR(IF(AO59="Water Quality BMP in lieu of NIB","Submit sizing documentation separately.", IF(AP59=-999,"Configuration not allowed.",IF(AP59=0,"Configuration not allowed.",IF(AO59="Trees","As many as feasible.", IF(AP59="equation",TEXT(AQ59,"#,##0")&" "&AR59, TEXT(IF(OR(AO59="Permeable Pavement Facility",AO59="Vegetated Roof System",AO59="Rainwater Harvesting - Category 1", AO59="Rainwater Harvesting - Category 4"),H61, IF(AO59="Sidewalk/Trail Compost-Amended Strip",MAX(V59/H61,AP59*V59), IF(OR(AO59="Infiltrating Soil Cell Bioretention with Tree",AO59="Non-Infiltrating Soil Cell Bioretention with Tree"),MAX(AP59*V59,AQ67), AP59*V59))),"#,##0")&" "&AR59))))),"") ->  | AN59: 2 | AO59: =INDEX($AP$7:$AP$46,MATCH(AN59,$AO$7:$AO$46,0)) ->  | AP59: =IF(AO59="Trees", INDEX(Lookup!$G$97:$G$365,MATCH(TRIM(CONCATENATE(AO59,V61)),Lookup!$F$97:$F$365,0)), IF(AO59="Residential Cistern", INDEX(Lookup!$G$97:$G$365,MATCH(TRIM(CONCATENATE(AO59,IF(V59<400,0,IF(V59>4200,4201,ROUNDDOWN(V59,-2))))),Lookup!$F$97:$F$365,0)), IF(AO59="Sidewalk/Trail Compost-Amended Strip", IF(H61="",NA(),IF(H61<10,Lookup!$G$99,Lookup!$G$98)), IF(AND(AO59="Non-Infiltrating Bioretention",V63="Sloped sides",V61=6),IF(V59<=2000,0.025,0.028), INDEX(Lookup!$G$97:$G$365,MATCH(TRIM(CONCATENATE(AO59,V61,V63,V65,V67)),Lookup!$F$97:$F$365,0)))))) ->  | AQ59: =IF(AP59<=0,NA(),IF(OR(AO59="Permeable Pavement Facility",AO59="Vegetated Roof System",AO59="Rainwater Harvesting - Category 1",AO59="Rainwater Harvesting - Category 4"),H61, IF(AO59="Sidewalk/Trail Compost-Amended Strip",MAX(V59/H61,AP59*V59), IF(OR(AO59="Infiltrating Soil Cell Bioretention with Tree",AO59="Non-Infiltrating Soil Cell Bioretention with Tree"),MAX(AP59*V59,AQ67), AP59*V59)))) ->  | AR59: =IF(AO59="Residential Cistern", "sf",INDEX(Lookup!$I$97:$I$365,MATCH(TRIM(CONCATENATE(AO59,V61,V63,V65,V67)),Lookup!$F$97:$F$365,0))) ->  | AS59: =IF(AO59="Trees", INDEX(Lookup!$H$97:$H$365,MATCH(TRIM(CONCATENATE(AO59,V61)),Lookup!$F$97:$F$365,0))*V63, IF(AO59="Residential Cistern", INDEX(Lookup!$H$97:$H$365,MATCH(TRIM(CONCATENATE(AO59,IF(V59<400,0,IF(V59>4200,4201,ROUNDDOWN(V59,-2))))),Lookup!$F$97:$F$365,0))*V59, IF(AND(AO59="Sidewalk/Trail Compost-Amended Strip",OR(H61="",InfRate=0)),NA(), INDEX(Lookup!$H$97:$H$365,MATCH(TRIM(CONCATENATE(AO59,V61,V63,V65,V67)),Lookup!$F$97:$F$365,0))*V59)))*7.48052 *IF(OR(AO59="Permeable Pavement Facility",AO59="Vegetated Roof System"),MIN(1,H61/(AP59*V59)),1) +IF(AO59="Permeable Pavement Facility",H61*2.1*7.48052,1) ->  | AT59: =IFERROR( IF(AO59="Residential Cistern",INDEX(Lookup!$I$97:$I$365,MATCH(TRIM(CONCATENATE(AO59,IF(V59<400,0,IF(V59>4200,4201,ROUNDDOWN(V59,-2))))),Lookup!$F$97:$F$365,0)), IF(AO59="Sidewalk/Trail Compost-Amended Strip",ROUND(AQ59/(V59/H61),1) &" ft wide x "& ROUND(V59/H61,0)&" ft long", IF(OR(AO59="Rainwater Harvesting - Category 1",AO59="Rainwater Harvesting - Category 4")," required minimum live storage", IF(AO59="Water Quality BMP in lieu of NIB","See Plan", IF(AND(V61="",V63="",V65=""),"",TRIM(V63&" "&AP63&" "&V61&" "&AP61&" "&V65&" "&AP65)))))),"") -> 
B61: =IFERROR( IF(AO59="Permeable Pavement Facility","Facility Area (sf)", IF(AO59="Vegetated Roof System","Vegetated Area (sf)", IF(AO59="Sidewalk/Trail Compost-Amended Strip","Sidewalk/Trail Width (ft)", IF(OR(AO59="Rainwater Harvesting - Category 1",AO59="Rainwater Harvesting - Category 4"),"Live Storage Volume (gal)", "")))),"") ->  | N61: =IFERROR(INDEX(Lookup!$C$70:$C$94,MATCH(AO59,Lookup!$A$70:$A$94,0)),"") ->  | AC61: =IFERROR(TEXT(AS59,"#,##0")&" gal managed/year",IFERROR(IF(AP59=0,"Infiltration rate too low.",""),"")) ->  | AO61: =TRIM(SUBSTITUTE(SUBSTITUTE(SUBSTITUTE(AO59," ",""),"-",""),"/","")&"List1") ->  | AP61: =IFERROR(INDEX(Lookup!$G$70:$G$94,MATCH(AO59,Lookup!$A$70:$A$94,0)),"") ->  | AT61: NonInfiltratingSoilCellBioretentionwithTreeList1
N62: =IFERROR(INDEX(Lookup!$D$70:$D$94,MATCH(AO53,Lookup!$A$70:$A$94,0)),"") -> 
B63: =IFERROR( IF(OR(AO59="Permeable Pavement Facility",AO59="Vegetated Roof System"),"Minimum Facility Area "&TEXT((AP59*V59),"#,###")&" sf", IF(OR(AO59="Rainwater Harvesting - Category 1",AO59="Rainwater Harvesting - Category 4"),"Continuous runoff modeling required by", "")),"") ->  | N63: =IFERROR(INDEX(Lookup!$D$70:$D$94,MATCH(AO59,Lookup!$A$70:$A$94,0)),"") ->  | AC63: =IFERROR(IF(AO59="Sidewalk/Trail Compost-Amended Strip",ROUND(AQ59/(V59/H61),1) &" ft wide compost-amended strip", IF(OR(AO59="Infiltrating Soil Cell Bioretention with Tree",AO59="Non-Infiltrating Soil Cell Bioretention with Tree"),"BMP size excludes tree planting area", IF(AO59="Residential Cistern",IF(AQ59=-999,"",IF(V59<800,3,IF(V59<1300,4,5)))&" ft live storage", ""))),"") ->  | AO63: =TRIM(SUBSTITUTE(SUBSTITUTE(SUBSTITUTE(AO59," ",""),"-",""),"/","")&"List2") ->  | AP63: =IFERROR(INDEX(Lookup!$H$70:$H$94,MATCH(AO59,Lookup!$A$70:$A$94,0)),"") ->  | AT63: NonInfiltratingSoilCellBioretentionwithTreeList2
B65: =IFERROR(IF(OR(AO59="Rainwater Harvesting - Category 1",AO59="Rainwater Harvesting - Category 4"),"professional engineer.", ""),"") ->  | N65: =IFERROR(INDEX(Lookup!$E$70:$E$94,MATCH(AO59,Lookup!$A$70:$A$94,0)),"") ->  | AC65: =IFERROR(IF(AO59="Sidewalk/Trail Compost-Amended Strip",IF(AND(AC63="",H61<>""),"","along full "& ROUND(V59/H61,0) &" ft trail/sidewalk"),""),"") ->  | AO65: =TRIM(SUBSTITUTE(SUBSTITUTE(SUBSTITUTE(AO59," ",""),"-",""),"/","")&"List3") ->  | AP65: =IFERROR(INDEX(Lookup!$H$70:$H$94,MATCH(AO61,Lookup!$A$70:$A$94,0)),"") ->  | AQ65: =IF(OR(AO59="Infiltrating Soil Cell Bioretention with Tree",AO59="Non-Infiltrating Soil Cell Bioretention with Tree"),"min footprint to meet soil volume","") ->  | AR65: =IF(OR(AO59="Infiltrating Soil Cell Bioretention with Tree",AO59="Non-Infiltrating Soil Cell Bioretention with Tree"),"min soil volume","") ->  | AT65: NonInfiltratingSoilCellBioretentionwithTreeList3
N67: =IFERROR(INDEX(Lookup!$F$70:$F$94,MATCH(AO59,Lookup!$A$70:$A$94,0)),"") ->  | AO67: =TRIM(SUBSTITUTE(SUBSTITUTE(SUBSTITUTE(AO59," ",""),"-",""),"/","")&"List4") ->  | AQ67: =IF(AO59="Infiltrating Soil Cell Bioretention with Tree",AR67/(V67/12), IF(AO59="Non-Infiltrating Soil Cell Bioretention with Tree",AR67/(V65/12),"")) ->  | AR67: =IF(AO59="Infiltrating Soil Cell Bioretention with Tree",_xlfn.XLOOKUP(V65,InfiltratingSoilCellBioretentionwithTreeList3,Lookup!$U$51:$U$55), IF(AO59="Non-Infiltrating Soil Cell Bioretention with Tree",_xlfn.XLOOKUP(V63,NonInfiltratingSoilCellBioretentionwithTreeList2,Lookup!$U$51:$U$55,""))) ->  | AT67: InfiltratingSoilCellBioretentionwithTreeList4
B69: =IFERROR(IF(INDEX($K$7:$K$46,MATCH(AN69,$AO$7:$AO$46,0))="","",INDEX($K$7:$K$46,MATCH(AN69,$AO$7:$AO$46,0))),"") ->  | N69: =IF(B69="","",IF(AO69="Vegetated Roof System","Roof Area","Contributing Area (sf)")) ->  | V69: =IF(B69="","",SUMIF($AO$7:$AO$46,AN69,$F$7:$I$46)) ->  | AC69: =IFERROR(IF(AO69="Water Quality BMP in lieu of NIB","Submit sizing documentation separately.", IF(AP69=-999,"Configuration not allowed.",IF(AP69=0,"Configuration not allowed.",IF(AO69="Trees","As many as feasible.", IF(AP69="equation",TEXT(AQ69,"#,##0")&" "&AR69, TEXT(IF(OR(AO69="Permeable Pavement Facility",AO69="Vegetated Roof System",AO69="Rainwater Harvesting - Category 1", AO69="Rainwater Harvesting - Category 4"),H71, IF(AO69="Sidewalk/Trail Compost-Amended Strip",MAX(V69/H71,AP69*V69), IF(OR(AO69="Infiltrating Soil Cell Bioretention with Tree",AO69="Non-Infiltrating Soil Cell Bioretention with Tree"),MAX(AP69*V69,AQ77), AP69*V69))),"#,##0")&" "&AR69))))),"") ->  | AN69: 3 | AO69: =INDEX($AP$7:$AP$46,MATCH(AN69,$AO$7:$AO$46,0)) ->  | AP69: =IF(AO69="Trees", INDEX(Lookup!$G$97:$G$365,MATCH(TRIM(CONCATENATE(AO69,V71)),Lookup!$F$97:$F$365,0)), IF(AO69="Residential Cistern", INDEX(Lookup!$G$97:$G$365,MATCH(TRIM(CONCATENATE(AO69,IF(V69<400,0,IF(V69>4200,4201,ROUNDDOWN(V69,-2))))),Lookup!$F$97:$F$365,0)), IF(AO69="Sidewalk/Trail Compost-Amended Strip", IF(H71="",NA(),IF(H71<10,Lookup!$G$99,Lookup!$G$98)), IF(AND(AO69="Non-Infiltrating Bioretention",V73="Sloped sides",V71=6),IF(V69<=2000,0.025,0.028), INDEX(Lookup!$G$97:$G$365,MATCH(TRIM(CONCATENATE(AO69,V71,V73,V75,V77)),Lookup!$F$97:$F$365,0)))))) ->  | AQ69: =IF(AP69<=0,NA(),IF(OR(AO69="Permeable Pavement Facility",AO69="Vegetated Roof System",AO69="Rainwater Harvesting - Category 1",AO69="Rainwater Harvesting - Category 4"),H71, IF(AO69="Sidewalk/Trail Compost-Amended Strip",MAX(V69/H71,AP69*V69), IF(OR(AO69="Infiltrating Soil Cell Bioretention with Tree",AO69="Non-Infiltrating Soil Cell Bioretention with Tree"),MAX(AP69*V69,AQ77), AP69*V69)))) ->  | AR69: =IF(AO69="Residential Cistern", "sf",INDEX(Lookup!$I$97:$I$365,MATCH(TRIM(CONCATENATE(AO69,V71,V73,V75,V77)),Lookup!$F$97:$F$365,0))) ->  | AS69: =IF(AO69="Trees", INDEX(Lookup!$H$97:$H$365,MATCH(TRIM(CONCATENATE(AO69,V71)),Lookup!$F$97:$F$365,0))*V73, IF(AO69="Residential Cistern", INDEX(Lookup!$H$97:$H$365,MATCH(TRIM(CONCATENATE(AO69,IF(V69<400,0,IF(V69>4200,4201,ROUNDDOWN(V69,-2))))),Lookup!$F$97:$F$365,0))*V69, IF(AND(AO69="Sidewalk/Trail Compost-Amended Strip",OR(H71="",InfRate=0)),NA(), INDEX(Lookup!$H$97:$H$365,MATCH(TRIM(CONCATENATE(AO69,V71,V73,V75,V77)),Lookup!$F$97:$F$365,0))*V69)))*7.48052 *IF(OR(AO69="Permeable Pavement Facility",AO69="Vegetated Roof System"),MIN(1,H71/(AP69*V69)),1) +IF(AO69="Permeable Pavement Facility",H71*2.1*7.48052,1) ->  | AT69: =IFERROR( IF(AO69="Residential Cistern",INDEX(Lookup!$I$97:$I$365,MATCH(TRIM(CONCATENATE(AO69,IF(V69<400,0,IF(V69>4200,4201,ROUNDDOWN(V69,-2))))),Lookup!$F$97:$F$365,0)), IF(AO69="Sidewalk/Trail Compost-Amended Strip",ROUND(AQ69/(V69/H71),1) &" ft wide x "& ROUND(V69/H71,0)&" ft long", IF(OR(AO69="Rainwater Harvesting - Category 1",AO69="Rainwater Harvesting - Category 4")," required minimum live storage", IF(AO69="Water Quality BMP in lieu of NIB","See Plan", IF(AND(V71="",V73="",V75=""),"",TRIM(V73&" "&AP73&" "&V71&" "&AP71&" "&V75&" "&AP75)))))),"") -> 
B71: =IFERROR( IF(AO69="Permeable Pavement Facility","Facility Area (sf)", IF(AO69="Vegetated Roof System","Vegetated Area (sf)", IF(AO69="Sidewalk/Trail Compost-Amended Strip","Sidewalk/Trail Width (ft)", IF(OR(AO69="Rainwater Harvesting - Category 1",AO69="Rainwater Harvesting - Category 4"),"Live Storage Volume (gal)", "")))),"") ->  | N71: =IFERROR(INDEX(Lookup!$C$70:$C$94,MATCH(AO69,Lookup!$A$70:$A$94,0)),"") ->  | AC71: =IFERROR(TEXT(AS69,"#,##0")&" gal managed/year",IFERROR(IF(AP69=0,"Infiltration rate too low.",""),"")) ->  | AO71: =TRIM(SUBSTITUTE(SUBSTITUTE(SUBSTITUTE(AO69," ",""),"-",""),"/","")&"List1") ->  | AP71: =IFERROR(INDEX(Lookup!$G$70:$G$94,MATCH(AO69,Lookup!$A$70:$A$94,0)),"") ->  | AT71: InfiltratingSoilCellBioretentionwithTreeList1
B73: =IFERROR( IF(OR(AO69="Permeable Pavement Facility",AO69="Vegetated Roof System"),"Minimum Facility Area "&TEXT((AP69*V69),"#,###")&" sf", IF(OR(AO69="Rainwater Harvesting - Category 1",AO69="Rainwater Harvesting - Category 4"),"Continuous runoff modeling required by", "")),"") ->  | N73: =IFERROR(INDEX(Lookup!$D$70:$D$94,MATCH(AO69,Lookup!$A$70:$A$94,0)),"") ->  | AC73: =IFERROR(IF(AO69="Sidewalk/Trail Compost-Amended Strip",ROUND(AQ69/(V69/H71),1) &" ft wide compost-amended strip", IF(OR(AO69="Infiltrating Soil Cell Bioretention with Tree",AO69="Non-Infiltrating Soil Cell Bioretention with Tree"),"BMP size excludes tree planting area", IF(AO69="Residential Cistern",IF(AQ69=-999,"",IF(V69<800,3,IF(V69<1300,4,5)))&" ft live storage", ""))),"") ->  | AO73: =TRIM(SUBSTITUTE(SUBSTITUTE(SUBSTITUTE(AO69," ",""),"-",""),"/","")&"List2") ->  | AP73: =IFERROR(INDEX(Lookup!$H$70:$H$94,MATCH(AO69,Lookup!$A$70:$A$94,0)),"") ->  | AT73: InfiltratingSoilCellBioretentionwithTreeList2
B75: =IFERROR(IF(OR(AO69="Rainwater Harvesting - Category 1",AO69="Rainwater Harvesting - Category 4"),"professional engineer.", ""),"") ->  | N75: =IFERROR(INDEX(Lookup!$E$70:$E$94,MATCH(AO69,Lookup!$A$70:$A$94,0)),"") ->  | AC75: =IFERROR(IF(AO69="Sidewalk/Trail Compost-Amended Strip",IF(AND(AC73="",H71<>""),"","along full "& ROUND(V69/H71,0) &" ft trail/sidewalk"),""),"") ->  | AO75: =TRIM(SUBSTITUTE(SUBSTITUTE(SUBSTITUTE(AO69," ",""),"-",""),"/","")&"List3") ->  | AP75: =IFERROR(INDEX(Lookup!$H$70:$H$94,MATCH(AO71,Lookup!$A$70:$A$94,0)),"") ->  | AQ75: =IF(OR(AO69="Infiltrating Soil Cell Bioretention with Tree",AO69="Non-Infiltrating Soil Cell Bioretention with Tree"),"min footprint to meet soil volume","") ->  | AR75: =IF(OR(AO69="Infiltrating Soil Cell Bioretention with Tree",AO69="Non-Infiltrating Soil Cell Bioretention with Tree"),"min soil volume","") ->  | AT75: InfiltratingSoilCellBioretentionwithTreeList3
N77: =IFERROR(INDEX(Lookup!$F$70:$F$94,MATCH(AO69,Lookup!$A$70:$A$94,0)),"") ->  | AO77: =TRIM(SUBSTITUTE(SUBSTITUTE(SUBSTITUTE(AO69," ",""),"-",""),"/","")&"List4") ->  | AQ77: =IF(AO69="Infiltrating Soil Cell Bioretention with Tree",AR77/(V77/12), IF(AO69="Non-Infiltrating Soil Cell Bioretention with Tree",AR77/(V75/12),"")) ->  | AR77: =IF(AO69="Infiltrating Soil Cell Bioretention with Tree",_xlfn.XLOOKUP(V75,InfiltratingSoilCellBioretentionwithTreeList3,Lookup!$U$51:$U$55), IF(AO69="Non-Infiltrating Soil Cell Bioretention with Tree",_xlfn.XLOOKUP(V73,NonInfiltratingSoilCellBioretentionwithTreeList2,Lookup!$U$51:$U$55,""))) ->  | AT77: InfiltratingSoilCellBioretentionwithTreeList4
B79: =IFERROR(IF(INDEX($K$7:$K$46,MATCH(AN79,$AO$7:$AO$46,0))="","",INDEX($K$7:$K$46,MATCH(AN79,$AO$7:$AO$46,0))),"") ->  | N79: =IF(B79="","",IF(AO79="Vegetated Roof System","Roof Area","Contributing Area (sf)")) ->  | V79: =IF(B79="","",SUMIF($AO$7:$AO$46,AN79,$F$7:$I$46)) ->  | AC79: =IFERROR(IF(AO79="Water Quality BMP in lieu of NIB","Submit sizing documentation separately.", IF(AP79=-999,"Configuration not allowed.",IF(AP79=0,"Configuration not allowed.",IF(AO79="Trees","As many as feasible.", IF(AP79="equation",TEXT(AQ79,"#,##0")&" "&AR79, TEXT(IF(OR(AO79="Permeable Pavement Facility",AO79="Vegetated Roof System",AO79="Rainwater Harvesting - Category 1", AO79="Rainwater Harvesting - Category 4"),H81, IF(AO79="Sidewalk/Trail Compost-Amended Strip",MAX(V79/H81,AP79*V79), IF(OR(AO79="Infiltrating Soil Cell Bioretention with Tree",AO79="Non-Infiltrating Soil Cell Bioretention with Tree"),MAX(AP79*V79,AQ87), AP79*V79))),"#,##0")&" "&AR79))))),"") ->  | AN79: 4 | AO79: =INDEX($AP$7:$AP$46,MATCH(AN79,$AO$7:$AO$46,0)) ->  | AP79: =IF(AO79="Trees", INDEX(Lookup!$G$97:$G$365,MATCH(TRIM(CONCATENATE(AO79,V81)),Lookup!$F$97:$F$365,0)), IF(AO79="Residential Cistern", INDEX(Lookup!$G$97:$G$365,MATCH(TRIM(CONCATENATE(AO79,IF(V79<400,0,IF(V79>4200,4201,ROUNDDOWN(V79,-2))))),Lookup!$F$97:$F$365,0)), IF(AO79="Sidewalk/Trail Compost-Amended Strip", IF(H81="",NA(),IF(H81<10,Lookup!$G$99,Lookup!$G$98)), IF(AND(AO79="Non-Infiltrating Bioretention",V83="Sloped sides",V81=6),IF(V79<=2000,0.025,0.028), INDEX(Lookup!$G$97:$G$365,MATCH(TRIM(CONCATENATE(AO79,V81,V83,V85,V87)),Lookup!$F$97:$F$365,0)))))) ->  | AQ79: =IF(AP79<=0,NA(),IF(OR(AO79="Permeable Pavement Facility",AO79="Vegetated Roof System",AO79="Rainwater Harvesting - Category 1",AO79="Rainwater Harvesting - Category 4"),H81, IF(AO79="Sidewalk/Trail Compost-Amended Strip",MAX(V79/H81,AP79*V79), IF(OR(AO79="Infiltrating Soil Cell Bioretention with Tree",AO79="Non-Infiltrating Soil Cell Bioretention with Tree"),MAX(AP79*V79,AQ87), AP79*V79)))) ->  | AR79: =IF(AO79="Residential Cistern", "sf",INDEX(Lookup!$I$97:$I$365,MATCH(TRIM(CONCATENATE(AO79,V81,V83,V85,V87)),Lookup!$F$97:$F$365,0))) ->  | AS79: =IF(AO79="Trees", INDEX(Lookup!$H$97:$H$365,MATCH(TRIM(CONCATENATE(AO79,V81)),Lookup!$F$97:$F$365,0))*V83, IF(AO79="Residential Cistern", INDEX(Lookup!$H$97:$H$365,MATCH(TRIM(CONCATENATE(AO79,IF(V79<400,0,IF(V79>4200,4201,ROUNDDOWN(V79,-2))))),Lookup!$F$97:$F$365,0))*V79, IF(AND(AO79="Sidewalk/Trail Compost-Amended Strip",OR(H81="",InfRate=0)),NA(), INDEX(Lookup!$H$97:$H$365,MATCH(TRIM(CONCATENATE(AO79,V81,V83,V85,V87)),Lookup!$F$97:$F$365,0))*V79)))*7.48052 *IF(OR(AO79="Permeable Pavement Facility",AO79="Vegetated Roof System"),MIN(1,H81/(AP79*V79)),1) +IF(AO79="Permeable Pavement Facility",H81*2.1*7.48052,1) ->  | AT79: =IFERROR( IF(AO79="Residential Cistern",INDEX(Lookup!$I$97:$I$365,MATCH(TRIM(CONCATENATE(AO79,IF(V79<400,0,IF(V79>4200,4201,ROUNDDOWN(V79,-2))))),Lookup!$F$97:$F$365,0)), IF(AO79="Sidewalk/Trail Compost-Amended Strip",ROUND(AQ79/(V79/H81),1) &" ft wide x "& ROUND(V79/H81,0)&" ft long", IF(OR(AO79="Rainwater Harvesting - Category 1",AO79="Rainwater Harvesting - Category 4")," required minimum live storage", IF(AO79="Water Quality BMP in lieu of NIB","See Plan", IF(AND(V81="",V83="",V85=""),"",TRIM(V83&" "&AP83&" "&V81&" "&AP81&" "&V85&" "&AP85)))))),"") -> 
B81: =IFERROR( IF(AO79="Permeable Pavement Facility","Facility Area (sf)", IF(AO79="Vegetated Roof System","Vegetated Area (sf)", IF(AO79="Sidewalk/Trail Compost-Amended Strip","Sidewalk/Trail Width (ft)", IF(OR(AO79="Rainwater Harvesting - Category 1",AO79="Rainwater Harvesting - Category 4"),"Live Storage Volume (gal)", "")))),"") ->  | N81: =IFERROR(INDEX(Lookup!$C$70:$C$94,MATCH(AO79,Lookup!$A$70:$A$94,0)),"") ->  | AC81: =IFERROR(TEXT(AS79,"#,##0")&" gal managed/year",IFERROR(IF(AP79=0,"Infiltration rate too low.",""),"")) ->  | AO81: =TRIM(SUBSTITUTE(SUBSTITUTE(SUBSTITUTE(AO79," ",""),"-",""),"/","")&"List1") ->  | AP81: =IFERROR(INDEX(Lookup!$G$70:$G$94,MATCH(AO79,Lookup!$A$70:$A$94,0)),"") -> 
B83: =IFERROR( IF(OR(AO79="Permeable Pavement Facility",AO79="Vegetated Roof System"),"Minimum Facility Area "&TEXT((AP79*V79),"#,###")&" sf", IF(OR(AO79="Rainwater Harvesting - Category 1",AO79="Rainwater Harvesting - Category 4"),"Continuous runoff modeling required by", "")),"") ->  | N83: =IFERROR(INDEX(Lookup!$D$70:$D$94,MATCH(AO79,Lookup!$A$70:$A$94,0)),"") ->  | AC83: =IFERROR(IF(AO79="Sidewalk/Trail Compost-Amended Strip",ROUND(AQ79/(V79/H81),1) &" ft wide compost-amended strip", IF(OR(AO79="Infiltrating Soil Cell Bioretention with Tree",AO79="Non-Infiltrating Soil Cell Bioretention with Tree"),"BMP size excludes tree planting area", IF(AO79="Residential Cistern",IF(AQ79=-999,"",IF(V79<800,3,IF(V79<1300,4,5)))&" ft live storage", ""))),"") ->  | AO83: =TRIM(SUBSTITUTE(SUBSTITUTE(SUBSTITUTE(AO79," ",""),"-",""),"/","")&"List2") ->  | AP83: =IFERROR(INDEX(Lookup!$H$70:$H$94,MATCH(AO79,Lookup!$A$70:$A$94,0)),"") -> 
B85: =IFERROR(IF(OR(AO79="Rainwater Harvesting - Category 1",AO79="Rainwater Harvesting - Category 4"),"professional engineer.", ""),"") ->  | N85: =IFERROR(INDEX(Lookup!$E$70:$E$94,MATCH(AO79,Lookup!$A$70:$A$94,0)),"") ->  | AC85: =IFERROR(IF(AO79="Sidewalk/Trail Compost-Amended Strip",IF(AND(AC83="",H81<>""),"","along full "& ROUND(V79/H81,0) &" ft trail/sidewalk"),""),"") ->  | AO85: =TRIM(SUBSTITUTE(SUBSTITUTE(SUBSTITUTE(AO79," ",""),"-",""),"/","")&"List3") ->  | AP85: =IFERROR(INDEX(Lookup!$H$70:$H$94,MATCH(AO81,Lookup!$A$70:$A$94,0)),"") ->  | AQ85: =IF(OR(AO79="Infiltrating Soil Cell Bioretention with Tree",AO79="Non-Infiltrating Soil Cell Bioretention with Tree"),"min footprint to meet soil volume","") ->  | AR85: =IF(OR(AO79="Infiltrating Soil Cell Bioretention with Tree",AO79="Non-Infiltrating Soil Cell Bioretention with Tree"),"min soil volume","") -> 
N87: =IFERROR(INDEX(Lookup!$F$70:$F$94,MATCH(AO79,Lookup!$A$70:$A$94,0)),"") ->  | AO87: =TRIM(SUBSTITUTE(SUBSTITUTE(SUBSTITUTE(AO79," ",""),"-",""),"/","")&"List4") ->  | AQ87: =IF(AO79="Infiltrating Soil Cell Bioretention with Tree",AR87/(V87/12), IF(AO79="Non-Infiltrating Soil Cell Bioretention with Tree",AR87/(V85/12),"")) ->  | AR87: =IF(AO79="Infiltrating Soil Cell Bioretention with Tree",_xlfn.XLOOKUP(V85,InfiltratingSoilCellBioretentionwithTreeList3,Lookup!$U$51:$U$55), IF(AO79="Non-Infiltrating Soil Cell Bioretention with Tree",_xlfn.XLOOKUP(V83,NonInfiltratingSoilCellBioretentionwithTreeList2,Lookup!$U$51:$U$55,""))) -> 
B89: =IFERROR(IF(INDEX($K$7:$K$46,MATCH(AN89,$AO$7:$AO$46,0))="","",INDEX($K$7:$K$46,MATCH(AN89,$AO$7:$AO$46,0))),"") ->  | N89: =IF(B89="","",IF(AO89="Vegetated Roof System","Roof Area","Contributing Area (sf)")) ->  | V89: =IF(B89="","",SUMIF($AO$7:$AO$46,AN89,$F$7:$I$46)) ->  | AC89: =IFERROR(IF(AO89="Water Quality BMP in lieu of NIB","Submit sizing documentation separately.", IF(AP89=-999,"Configuration not allowed.",IF(AP89=0,"Configuration not allowed.",IF(AO89="Trees","As many as feasible.", IF(AP89="equation",TEXT(AQ89,"#,##0")&" "&AR89, TEXT(IF(OR(AO89="Permeable Pavement Facility",AO89="Vegetated Roof System",AO89="Rainwater Harvesting - Category 1", AO89="Rainwater Harvesting - Category 4"),H91, IF(AO89="Sidewalk/Trail Compost-Amended Strip",MAX(V89/H91,AP89*V89), IF(OR(AO89="Infiltrating Soil Cell Bioretention with Tree",AO89="Non-Infiltrating Soil Cell Bioretention with Tree"),MAX(AP89*V89,AQ97), AP89*V89))),"#,##0")&" "&AR89))))),"") ->  | AN89: 5 | AO89: =INDEX($AP$7:$AP$46,MATCH(AN89,$AO$7:$AO$46,0)) ->  | AP89: =IF(AO89="Trees", INDEX(Lookup!$G$97:$G$365,MATCH(TRIM(CONCATENATE(AO89,V91)),Lookup!$F$97:$F$365,0)), IF(AO89="Residential Cistern", INDEX(Lookup!$G$97:$G$365,MATCH(TRIM(CONCATENATE(AO89,IF(V89<400,0,IF(V89>4200,4201,ROUNDDOWN(V89,-2))))),Lookup!$F$97:$F$365,0)), IF(AO89="Sidewalk/Trail Compost-Amended Strip", IF(H91="",NA(),IF(H91<10,Lookup!$G$99,Lookup!$G$98)), IF(AND(AO89="Non-Infiltrating Bioretention",V93="Sloped sides",V91=6),IF(V89<=2000,0.025,0.028), INDEX(Lookup!$G$97:$G$365,MATCH(TRIM(CONCATENATE(AO89,V91,V93,V95,V97)),Lookup!$F$97:$F$365,0)))))) ->  | AQ89: =IF(AP89<=0,NA(),IF(OR(AO89="Permeable Pavement Facility",AO89="Vegetated Roof System",AO89="Rainwater Harvesting - Category 1",AO89="Rainwater Harvesting - Category 4"),H91, IF(AO89="Sidewalk/Trail Compost-Amended Strip",MAX(V89/H91,AP89*V89), IF(OR(AO89="Infiltrating Soil Cell Bioretention with Tree",AO89="Non-Infiltrating Soil Cell Bioretention with Tree"),MAX(AP89*V89,AQ97), AP89*V89)))) ->  | AR89: =IF(AO89="Residential Cistern", "sf",INDEX(Lookup!$I$97:$I$365,MATCH(TRIM(CONCATENATE(AO89,V91,V93,V95,V97)),Lookup!$F$97:$F$365,0))) ->  | AS89: =IF(AO89="Trees", INDEX(Lookup!$H$97:$H$365,MATCH(TRIM(CONCATENATE(AO89,V91)),Lookup!$F$97:$F$365,0))*V93, IF(AO89="Residential Cistern", INDEX(Lookup!$H$97:$H$365,MATCH(TRIM(CONCATENATE(AO89,IF(V89<400,0,IF(V89>4200,4201,ROUNDDOWN(V89,-2))))),Lookup!$F$97:$F$365,0))*V89, IF(AND(AO89="Sidewalk/Trail Compost-Amended Strip",OR(H91="",InfRate=0)),NA(), INDEX(Lookup!$H$97:$H$365,MATCH(TRIM(CONCATENATE(AO89,V91,V93,V95,V97)),Lookup!$F$97:$F$365,0))*V89)))*7.48052 *IF(OR(AO89="Permeable Pavement Facility",AO89="Vegetated Roof System"),MIN(1,H91/(AP89*V89)),1) +IF(AO89="Permeable Pavement Facility",H91*2.1*7.48052,1) ->  | AT89: =IFERROR( IF(AO89="Residential Cistern",INDEX(Lookup!$I$97:$I$365,MATCH(TRIM(CONCATENATE(AO89,IF(V89<400,0,IF(V89>4200,4201,ROUNDDOWN(V89,-2))))),Lookup!$F$97:$F$365,0)), IF(AO89="Sidewalk/Trail Compost-Amended Strip",ROUND(AQ89/(V89/H91),1) &" ft wide x "& ROUND(V89/H91,0)&" ft long", IF(OR(AO89="Rainwater Harvesting - Category 1",AO89="Rainwater Harvesting - Category 4")," required minimum live storage", IF(AO89="Water Quality BMP in lieu of NIB","See Plan", IF(AND(V91="",V93="",V95=""),"",TRIM(V93&" "&AP93&" "&V91&" "&AP91&" "&V95&" "&AP95)))))),"") -> 
B91: =IFERROR( IF(AO89="Permeable Pavement Facility","Facility Area (sf)", IF(AO89="Vegetated Roof System","Vegetated Area (sf)", IF(AO89="Sidewalk/Trail Compost-Amended Strip","Sidewalk/Trail Width (ft)", IF(OR(AO89="Rainwater Harvesting - Category 1",AO89="Rainwater Harvesting - Category 4"),"Live Storage Volume (gal)", "")))),"") ->  | N91: =IFERROR(INDEX(Lookup!$C$70:$C$94,MATCH(AO89,Lookup!$A$70:$A$94,0)),"") ->  | AC91: =IFERROR(TEXT(AS89,"#,##0")&" gal managed/year",IFERROR(IF(AP89=0,"Infiltration rate too low.",""),"")) ->  | AO91: =TRIM(SUBSTITUTE(SUBSTITUTE(SUBSTITUTE(AO89," ",""),"-",""),"/","")&"List1") ->  | AP91: =IFERROR(INDEX(Lookup!$G$70:$G$94,MATCH(AO89,Lookup!$A$70:$A$94,0)),"") -> 
B93: =IFERROR( IF(OR(AO89="Permeable Pavement Facility",AO89="Vegetated Roof System"),"Minimum Facility Area "&TEXT((AP89*V89),"#,###")&" sf", IF(OR(AO89="Rainwater Harvesting - Category 1",AO89="Rainwater Harvesting - Category 4"),"Continuous runoff modeling required by", "")),"") ->  | N93: =IFERROR(INDEX(Lookup!$D$70:$D$94,MATCH(AO89,Lookup!$A$70:$A$94,0)),"") ->  | AC93: =IFERROR(IF(AO89="Sidewalk/Trail Compost-Amended Strip",ROUND(AQ89/(V89/H91),1) &" ft wide compost-amended strip", IF(OR(AO89="Infiltrating Soil Cell Bioretention with Tree",AO89="Non-Infiltrating Soil Cell Bioretention with Tree"),"BMP size excludes tree planting area", IF(AO89="Residential Cistern",IF(AQ89=-999,"",IF(V89<800,3,IF(V89<1300,4,5)))&" ft live storage", ""))),"") ->  | AO93: =TRIM(SUBSTITUTE(SUBSTITUTE(SUBSTITUTE(AO89," ",""),"-",""),"/","")&"List2") ->  | AP93: =IFERROR(INDEX(Lookup!$H$70:$H$94,MATCH(AO89,Lookup!$A$70:$A$94,0)),"") -> 
B95: =IFERROR(IF(OR(AO89="Rainwater Harvesting - Category 1",AO89="Rainwater Harvesting - Category 4"),"professional engineer.", ""),"") ->  | N95: =IFERROR(INDEX(Lookup!$E$70:$E$94,MATCH(AO89,Lookup!$A$70:$A$94,0)),"") ->  | AC95: =IFERROR(IF(AO89="Sidewalk/Trail Compost-Amended Strip",IF(AND(AC93="",H91<>""),"","along full "& ROUND(V89/H91,0) &" ft trail/sidewalk"),""),"") ->  | AO95: =TRIM(SUBSTITUTE(SUBSTITUTE(SUBSTITUTE(AO89," ",""),"-",""),"/","")&"List3") ->  | AP95: =IFERROR(INDEX(Lookup!$H$70:$H$94,MATCH(AO91,Lookup!$A$70:$A$94,0)),"") ->  | AQ95: =IF(OR(AO89="Infiltrating Soil Cell Bioretention with Tree",AO89="Non-Infiltrating Soil Cell Bioretention with Tree"),"min footprint to meet soil volume","") ->  | AR95: =IF(OR(AO89="Infiltrating Soil Cell Bioretention with Tree",AO89="Non-Infiltrating Soil Cell Bioretention with Tree"),"min soil volume","") -> 
N97: =IFERROR(INDEX(Lookup!$F$70:$F$94,MATCH(AO89,Lookup!$A$70:$A$94,0)),"") ->  | AO97: =TRIM(SUBSTITUTE(SUBSTITUTE(SUBSTITUTE(AO89," ",""),"-",""),"/","")&"List4") ->  | AQ97: =IF(AO89="Infiltrating Soil Cell Bioretention with Tree",AR97/(V97/12), IF(AO89="Non-Infiltrating Soil Cell Bioretention with Tree",AR97/(V95/12),"")) ->  | AR97: =IF(AO89="Infiltrating Soil Cell Bioretention with Tree",_xlfn.XLOOKUP(V95,InfiltratingSoilCellBioretentionwithTreeList3,Lookup!$U$51:$U$55), IF(AO89="Non-Infiltrating Soil Cell Bioretention with Tree",_xlfn.XLOOKUP(V93,NonInfiltratingSoilCellBioretentionwithTreeList2,Lookup!$U$51:$U$55,""))) -> 
B99: =IFERROR(IF(INDEX($K$7:$K$46,MATCH(AN99,$AO$7:$AO$46,0))="","",INDEX($K$7:$K$46,MATCH(AN99,$AO$7:$AO$46,0))),"") ->  | N99: =IF(B99="","",IF(AO99="Vegetated Roof System","Roof Area","Contributing Area (sf)")) ->  | V99: =IF(B99="","",SUMIF($AO$7:$AO$46,AN99,$F$7:$I$46)) ->  | AC99: =IFERROR(IF(AO99="Water Quality BMP in lieu of NIB","Submit sizing documentation separately.", IF(AP99=-999,"Configuration not allowed.",IF(AP99=0,"Configuration not allowed.",IF(AO99="Trees","As many as feasible.", IF(AP99="equation",TEXT(AQ99,"#,##0")&" "&AR99, TEXT(IF(OR(AO99="Permeable Pavement Facility",AO99="Vegetated Roof System",AO99="Rainwater Harvesting - Category 1", AO99="Rainwater Harvesting - Category 4"),H101, IF(AO99="Sidewalk/Trail Compost-Amended Strip",MAX(V99/H101,AP99*V99), IF(OR(AO99="Infiltrating Soil Cell Bioretention with Tree",AO99="Non-Infiltrating Soil Cell Bioretention with Tree"),MAX(AP99*V99,AQ107), AP99*V99))),"#,##0")&" "&AR99))))),"") ->  | AN99: 6 | AO99: =INDEX($AP$7:$AP$46,MATCH(AN99,$AO$7:$AO$46,0)) ->  | AP99: =IF(AO99="Trees", INDEX(Lookup!$G$97:$G$365,MATCH(TRIM(CONCATENATE(AO99,V101)),Lookup!$F$97:$F$365,0)), IF(AO99="Residential Cistern", INDEX(Lookup!$G$97:$G$365,MATCH(TRIM(CONCATENATE(AO99,IF(V99<400,0,IF(V99>4200,4201,ROUNDDOWN(V99,-2))))),Lookup!$F$97:$F$365,0)), IF(AO99="Sidewalk/Trail Compost-Amended Strip", IF(H101="",NA(),IF(H101<10,Lookup!$G$99,Lookup!$G$98)), IF(AND(AO99="Non-Infiltrating Bioretention",V103="Sloped sides",V101=6),IF(V99<=2000,0.025,0.028), INDEX(Lookup!$G$97:$G$365,MATCH(TRIM(CONCATENATE(AO99,V101,V103,V105,V107)),Lookup!$F$97:$F$365,0)))))) ->  | AQ99: =IF(AP99<=0,NA(),IF(OR(AO99="Permeable Pavement Facility",AO99="Vegetated Roof System",AO99="Rainwater Harvesting - Category 1",AO99="Rainwater Harvesting - Category 4"),H101, IF(AO99="Sidewalk/Trail Compost-Amended Strip",MAX(V99/H101,AP99*V99), IF(OR(AO99="Infiltrating Soil Cell Bioretention with Tree",AO99="Non-Infiltrating Soil Cell Bioretention with Tree"),MAX(AP99*V99,AQ107), AP99*V99)))) ->  | AR99: =IF(AO99="Residential Cistern", "sf",INDEX(Lookup!$I$97:$I$365,MATCH(TRIM(CONCATENATE(AO99,V101,V103,V105,V107)),Lookup!$F$97:$F$365,0))) ->  | AS99: =IF(AO99="Trees", INDEX(Lookup!$H$97:$H$365,MATCH(TRIM(CONCATENATE(AO99,V101)),Lookup!$F$97:$F$365,0))*V103, IF(AO99="Residential Cistern", INDEX(Lookup!$H$97:$H$365,MATCH(TRIM(CONCATENATE(AO99,IF(V99<400,0,IF(V99>4200,4201,ROUNDDOWN(V99,-2))))),Lookup!$F$97:$F$365,0))*V99, IF(AND(AO99="Sidewalk/Trail Compost-Amended Strip",OR(H101="",InfRate=0)),NA(), INDEX(Lookup!$H$97:$H$365,MATCH(TRIM(CONCATENATE(AO99,V101,V103,V105,V107)),Lookup!$F$97:$F$365,0))*V99)))*7.48052 *IF(OR(AO99="Permeable Pavement Facility",AO99="Vegetated Roof System"),MIN(1,H101/(AP99*V99)),1) +IF(AO99="Permeable Pavement Facility",H101*2.1*7.48052,1) ->  | AT99: =IFERROR( IF(AO99="Residential Cistern",INDEX(Lookup!$I$97:$I$365,MATCH(TRIM(CONCATENATE(AO99,IF(V99<400,0,IF(V99>4200,4201,ROUNDDOWN(V99,-2))))),Lookup!$F$97:$F$365,0)), IF(AO99="Sidewalk/Trail Compost-Amended Strip",ROUND(AQ99/(V99/H101),1) &" ft wide x "& ROUND(V99/H101,0)&" ft long", IF(OR(AO99="Rainwater Harvesting - Category 1",AO99="Rainwater Harvesting - Category 4")," required minimum live storage", IF(AO99="Water Quality BMP in lieu of NIB","See Plan", IF(AND(V101="",V103="",V105=""),"",TRIM(V103&" "&AP103&" "&V101&" "&AP101&" "&V105&" "&AP105)))))),"") -> 
B101: =IFERROR( IF(AO99="Permeable Pavement Facility","Facility Area (sf)", IF(AO99="Vegetated Roof System","Vegetated Area (sf)", IF(AO99="Sidewalk/Trail Compost-Amended Strip","Sidewalk/Trail Width (ft)", IF(OR(AO99="Rainwater Harvesting - Category 1",AO99="Rainwater Harvesting - Category 4"),"Live Storage Volume (gal)", "")))),"") ->  | N101: =IFERROR(INDEX(Lookup!$C$70:$C$94,MATCH(AO99,Lookup!$A$70:$A$94,0)),"") ->  | AC101: =IFERROR(TEXT(AS99,"#,##0")&" gal managed/year",IFERROR(IF(AP99=0,"Infiltration rate too low.",""),"")) ->  | AO101: =TRIM(SUBSTITUTE(SUBSTITUTE(SUBSTITUTE(AO99," ",""),"-",""),"/","")&"List1") ->  | AP101: =IFERROR(INDEX(Lookup!$G$70:$G$94,MATCH(AO99,Lookup!$A$70:$A$94,0)),"") -> 
B103: =IFERROR( IF(OR(AO99="Permeable Pavement Facility",AO99="Vegetated Roof System"),"Minimum Facility Area "&TEXT((AP99*V99),"#,###")&" sf", IF(OR(AO99="Rainwater Harvesting - Category 1",AO99="Rainwater Harvesting - Category 4"),"Continuous runoff modeling required by", "")),"") ->  | N103: =IFERROR(INDEX(Lookup!$D$70:$D$94,MATCH(AO99,Lookup!$A$70:$A$94,0)),"") ->  | AC103: =IFERROR(IF(AO99="Sidewalk/Trail Compost-Amended Strip",ROUND(AQ99/(V99/H101),1) &" ft wide compost-amended strip", IF(OR(AO99="Infiltrating Soil Cell Bioretention with Tree",AO99="Non-Infiltrating Soil Cell Bioretention with Tree"),"BMP size excludes tree planting area", IF(AO99="Residential Cistern",IF(AQ99=-999,"",IF(V99<800,3,IF(V99<1300,4,5)))&" ft live storage", ""))),"") ->  | AO103: =TRIM(SUBSTITUTE(SUBSTITUTE(SUBSTITUTE(AO99," ",""),"-",""),"/","")&"List2") ->  | AP103: =IFERROR(INDEX(Lookup!$H$70:$H$94,MATCH(AO99,Lookup!$A$70:$A$94,0)),"") -> 
B105: =IFERROR(IF(OR(AO99="Rainwater Harvesting - Category 1",AO99="Rainwater Harvesting - Category 4"),"professional engineer.", ""),"") ->  | N105: =IFERROR(INDEX(Lookup!$E$70:$E$94,MATCH(AO99,Lookup!$A$70:$A$94,0)),"") ->  | AC105: =IFERROR(IF(AO99="Sidewalk/Trail Compost-Amended Strip",IF(AND(AC103="",H101<>""),"","along full "& ROUND(V99/H101,0) &" ft trail/sidewalk"),""),"") ->  | AO105: =TRIM(SUBSTITUTE(SUBSTITUTE(SUBSTITUTE(AO99," ",""),"-",""),"/","")&"List3") ->  | AP105: =IFERROR(INDEX(Lookup!$H$70:$H$94,MATCH(AO101,Lookup!$A$70:$A$94,0)),"") ->  | AQ105: =IF(OR(AO99="Infiltrating Soil Cell Bioretention with Tree",AO99="Non-Infiltrating Soil Cell Bioretention with Tree"),"min footprint to meet soil volume","") ->  | AR105: =IF(OR(AO99="Infiltrating Soil Cell Bioretention with Tree",AO99="Non-Infiltrating Soil Cell Bioretention with Tree"),"min soil volume","") -> 
N107: =IFERROR(INDEX(Lookup!$F$70:$F$94,MATCH(AO99,Lookup!$A$70:$A$94,0)),"") ->  | AO107: =TRIM(SUBSTITUTE(SUBSTITUTE(SUBSTITUTE(AO99," ",""),"-",""),"/","")&"List4") ->  | AQ107: =IF(AO99="Infiltrating Soil Cell Bioretention with Tree",AR107/(V107/12), IF(AO99="Non-Infiltrating Soil Cell Bioretention with Tree",AR107/(V105/12),"")) ->  | AR107: =IF(AO99="Infiltrating Soil Cell Bioretention with Tree",_xlfn.XLOOKUP(V105,InfiltratingSoilCellBioretentionwithTreeList3,Lookup!$U$51:$U$55), IF(AO99="Non-Infiltrating Soil Cell Bioretention with Tree",_xlfn.XLOOKUP(V103,NonInfiltratingSoilCellBioretentionwithTreeList2,Lookup!$U$51:$U$55,""))) -> 
B109: =IFERROR(IF(INDEX($K$7:$K$46,MATCH(AN109,$AO$7:$AO$46,0))="","",INDEX($K$7:$K$46,MATCH(AN109,$AO$7:$AO$46,0))),"") ->  | N109: =IF(B109="","",IF(AO109="Vegetated Roof System","Roof Area","Contributing Area (sf)")) ->  | V109: =IF(B109="","",SUMIF($AO$7:$AO$46,AN109,$F$7:$I$46)) ->  | AC109: =IFERROR(IF(AO109="Water Quality BMP in lieu of NIB","Submit sizing documentation separately.", IF(AP109=-999,"Configuration not allowed.",IF(AP109=0,"Configuration not allowed.",IF(AO109="Trees","As many as feasible.", IF(AP109="equation",TEXT(AQ109,"#,##0")&" "&AR109, TEXT(IF(OR(AO109="Permeable Pavement Facility",AO109="Vegetated Roof System",AO109="Rainwater Harvesting - Category 1", AO109="Rainwater Harvesting - Category 4"),H111, IF(AO109="Sidewalk/Trail Compost-Amended Strip",MAX(V109/H111,AP109*V109), IF(OR(AO109="Infiltrating Soil Cell Bioretention with Tree",AO109="Non-Infiltrating Soil Cell Bioretention with Tree"),MAX(AP109*V109,AQ117), AP109*V109))),"#,##0")&" "&AR109))))),"") ->  | AN109: 7 | AO109: =INDEX($AP$7:$AP$46,MATCH(AN109,$AO$7:$AO$46,0)) ->  | AP109: =IF(AO109="Trees", INDEX(Lookup!$G$97:$G$365,MATCH(TRIM(CONCATENATE(AO109,V111)),Lookup!$F$97:$F$365,0)), IF(AO109="Residential Cistern", INDEX(Lookup!$G$97:$G$365,MATCH(TRIM(CONCATENATE(AO109,IF(V109<400,0,IF(V109>4200,4201,ROUNDDOWN(V109,-2))))),Lookup!$F$97:$F$365,0)), IF(AO109="Sidewalk/Trail Compost-Amended Strip", IF(H111="",NA(),IF(H111<10,Lookup!$G$99,Lookup!$G$98)), IF(AND(AO109="Non-Infiltrating Bioretention",V113="Sloped sides",V111=6),IF(V109<=2000,0.025,0.028), INDEX(Lookup!$G$97:$G$365,MATCH(TRIM(CONCATENATE(AO109,V111,V113,V115,V117)),Lookup!$F$97:$F$365,0)))))) ->  | AQ109: =IF(AP109<=0,NA(),IF(OR(AO109="Permeable Pavement Facility",AO109="Vegetated Roof System",AO109="Rainwater Harvesting - Category 1",AO109="Rainwater Harvesting - Category 4"),H111, IF(AO109="Sidewalk/Trail Compost-Amended Strip",MAX(V109/H111,AP109*V109), IF(OR(AO109="Infiltrating Soil Cell Bioretention with Tree",AO109="Non-Infiltrating Soil Cell Bioretention with Tree"),MAX(AP109*V109,AQ117), AP109*V109)))) ->  | AR109: =IF(AO109="Residential Cistern", "sf",INDEX(Lookup!$I$97:$I$365,MATCH(TRIM(CONCATENATE(AO109,V111,V113,V115,V117)),Lookup!$F$97:$F$365,0))) ->  | AS109: =IF(AO109="Trees", INDEX(Lookup!$H$97:$H$365,MATCH(TRIM(CONCATENATE(AO109,V111)),Lookup!$F$97:$F$365,0))*V113, IF(AO109="Residential Cistern", INDEX(Lookup!$H$97:$H$365,MATCH(TRIM(CONCATENATE(AO109,IF(V109<400,0,IF(V109>4200,4201,ROUNDDOWN(V109,-2))))),Lookup!$F$97:$F$365,0))*V109, IF(AND(AO109="Sidewalk/Trail Compost-Amended Strip",OR(H111="",InfRate=0)),NA(), INDEX(Lookup!$H$97:$H$365,MATCH(TRIM(CONCATENATE(AO109,V111,V113,V115,V117)),Lookup!$F$97:$F$365,0))*V109)))*7.48052 *IF(OR(AO109="Permeable Pavement Facility",AO109="Vegetated Roof System"),MIN(1,H111/(AP109*V109)),1) +IF(AO109="Permeable Pavement Facility",H111*2.1*7.48052,1) ->  | AT109: =IFERROR( IF(AO109="Residential Cistern",INDEX(Lookup!$I$97:$I$365,MATCH(TRIM(CONCATENATE(AO109,IF(V109<400,0,IF(V109>4200,4201,ROUNDDOWN(V109,-2))))),Lookup!$F$97:$F$365,0)), IF(AO109="Sidewalk/Trail Compost-Amended Strip",ROUND(AQ109/(V109/H111),1) &" ft wide x "& ROUND(V109/H111,0)&" ft long", IF(OR(AO109="Rainwater Harvesting - Category 1",AO109="Rainwater Harvesting - Category 4")," required minimum live storage", IF(AO109="Water Quality BMP in lieu of NIB","See Plan", IF(AND(V111="",V113="",V115=""),"",TRIM(V113&" "&AP113&" "&V111&" "&AP111&" "&V115&" "&AP115)))))),"") -> 
B111: =IFERROR( IF(AO109="Permeable Pavement Facility","Facility Area (sf)", IF(AO109="Vegetated Roof System","Vegetated Area (sf)", IF(AO109="Sidewalk/Trail Compost-Amended Strip","Sidewalk/Trail Width (ft)", IF(OR(AO109="Rainwater Harvesting - Category 1",AO109="Rainwater Harvesting - Category 4"),"Live Storage Volume (gal)", "")))),"") ->  | N111: =IFERROR(INDEX(Lookup!$C$70:$C$94,MATCH(AO109,Lookup!$A$70:$A$94,0)),"") ->  | AC111: =IFERROR(TEXT(AS109,"#,##0")&" gal managed/year",IFERROR(IF(AP109=0,"Infiltration rate too low.",""),"")) ->  | AO111: =TRIM(SUBSTITUTE(SUBSTITUTE(SUBSTITUTE(AO109," ",""),"-",""),"/","")&"List1") ->  | AP111: =IFERROR(INDEX(Lookup!$G$70:$G$94,MATCH(AO109,Lookup!$A$70:$A$94,0)),"") -> 
B113: =IFERROR( IF(OR(AO109="Permeable Pavement Facility",AO109="Vegetated Roof System"),"Minimum Facility Area "&TEXT((AP109*V109),"#,###")&" sf", IF(OR(AO109="Rainwater Harvesting - Category 1",AO109="Rainwater Harvesting - Category 4"),"Continuous runoff modeling required by", "")),"") ->  | N113: =IFERROR(INDEX(Lookup!$D$70:$D$94,MATCH(AO109,Lookup!$A$70:$A$94,0)),"") ->  | AC113: =IFERROR(IF(AO109="Sidewalk/Trail Compost-Amended Strip",ROUND(AQ109/(V109/H111),1) &" ft wide compost-amended strip", IF(OR(AO109="Infiltrating Soil Cell Bioretention with Tree",AO109="Non-Infiltrating Soil Cell Bioretention with Tree"),"BMP size excludes tree planting area", IF(AO109="Residential Cistern",IF(AQ109=-999,"",IF(V109<800,3,IF(V109<1300,4,5)))&" ft live storage", ""))),"") ->  | AO113: =TRIM(SUBSTITUTE(SUBSTITUTE(SUBSTITUTE(AO109," ",""),"-",""),"/","")&"List2") ->  | AP113: =IFERROR(INDEX(Lookup!$H$70:$H$94,MATCH(AO109,Lookup!$A$70:$A$94,0)),"") -> 
B115: =IFERROR(IF(OR(AO109="Rainwater Harvesting - Category 1",AO109="Rainwater Harvesting - Category 4"),"professional engineer.", ""),"") ->  | N115: =IFERROR(INDEX(Lookup!$E$70:$E$94,MATCH(AO109,Lookup!$A$70:$A$94,0)),"") ->  | AC115: =IFERROR(IF(AO109="Sidewalk/Trail Compost-Amended Strip",IF(AND(AC113="",H111<>""),"","along full "& ROUND(V109/H111,0) &" ft trail/sidewalk"),""),"") ->  | AO115: =TRIM(SUBSTITUTE(SUBSTITUTE(SUBSTITUTE(AO109," ",""),"-",""),"/","")&"List3") ->  | AP115: =IFERROR(INDEX(Lookup!$H$70:$H$94,MATCH(AO111,Lookup!$A$70:$A$94,0)),"") ->  | AQ115: =IF(OR(AO109="Infiltrating Soil Cell Bioretention with Tree",AO109="Non-Infiltrating Soil Cell Bioretention with Tree"),"min footprint to meet soil volume","") ->  | AR115: =IF(OR(AO109="Infiltrating Soil Cell Bioretention with Tree",AO109="Non-Infiltrating Soil Cell Bioretention with Tree"),"min soil volume","") -> 
N117: =IFERROR(INDEX(Lookup!$F$70:$F$94,MATCH(AO109,Lookup!$A$70:$A$94,0)),"") ->  | AO117: =TRIM(SUBSTITUTE(SUBSTITUTE(SUBSTITUTE(AO109," ",""),"-",""),"/","")&"List4") ->  | AQ117: =IF(AO109="Infiltrating Soil Cell Bioretention with Tree",AR117/(V117/12), IF(AO109="Non-Infiltrating Soil Cell Bioretention with Tree",AR117/(V115/12),"")) ->  | AR117: =IF(AO109="Infiltrating Soil Cell Bioretention with Tree",_xlfn.XLOOKUP(V115,InfiltratingSoilCellBioretentionwithTreeList3,Lookup!$U$51:$U$55), IF(AO109="Non-Infiltrating Soil Cell Bioretention with Tree",_xlfn.XLOOKUP(V113,NonInfiltratingSoilCellBioretentionwithTreeList2,Lookup!$U$51:$U$55,""))) -> 
B119: =IFERROR(IF(INDEX($K$7:$K$46,MATCH(AN119,$AO$7:$AO$46,0))="","",INDEX($K$7:$K$46,MATCH(AN119,$AO$7:$AO$46,0))),"") ->  | N119: =IF(B119="","",IF(AO119="Vegetated Roof System","Roof Area","Contributing Area (sf)")) ->  | V119: =IF(B119="","",SUMIF($AO$7:$AO$46,AN119,$F$7:$I$46)) ->  | AC119: =IFERROR(IF(AO119="Water Quality BMP in lieu of NIB","Submit sizing documentation separately.", IF(AP119=-999,"Configuration not allowed.",IF(AP119=0,"Configuration not allowed.",IF(AO119="Trees","As many as feasible.", IF(AP119="equation",TEXT(AQ119,"#,##0")&" "&AR119, TEXT(IF(OR(AO119="Permeable Pavement Facility",AO119="Vegetated Roof System",AO119="Rainwater Harvesting - Category 1", AO119="Rainwater Harvesting - Category 4"),H121, IF(AO119="Sidewalk/Trail Compost-Amended Strip",MAX(V119/H121,AP119*V119), IF(OR(AO119="Infiltrating Soil Cell Bioretention with Tree",AO119="Non-Infiltrating Soil Cell Bioretention with Tree"),MAX(AP119*V119,AQ127), AP119*V119))),"#,##0")&" "&AR119))))),"") ->  | AN119: 8 | AO119: =INDEX($AP$7:$AP$46,MATCH(AN119,$AO$7:$AO$46,0)) ->  | AP119: =IF(AO119="Trees", INDEX(Lookup!$G$97:$G$365,MATCH(TRIM(CONCATENATE(AO119,V121)),Lookup!$F$97:$F$365,0)), IF(AO119="Residential Cistern", INDEX(Lookup!$G$97:$G$365,MATCH(TRIM(CONCATENATE(AO119,IF(V119<400,0,IF(V119>4200,4201,ROUNDDOWN(V119,-2))))),Lookup!$F$97:$F$365,0)), IF(AO119="Sidewalk/Trail Compost-Amended Strip", IF(H121="",NA(),IF(H121<10,Lookup!$G$99,Lookup!$G$98)), IF(AND(AO119="Non-Infiltrating Bioretention",V123="Sloped sides",V121=6),IF(V119<=2000,0.025,0.028), INDEX(Lookup!$G$97:$G$365,MATCH(TRIM(CONCATENATE(AO119,V121,V123,V125,V127)),Lookup!$F$97:$F$365,0)))))) ->  | AQ119: =IF(AP119<=0,NA(),IF(OR(AO119="Permeable Pavement Facility",AO119="Vegetated Roof System",AO119="Rainwater Harvesting - Category 1",AO119="Rainwater Harvesting - Category 4"),H121, IF(AO119="Sidewalk/Trail Compost-Amended Strip",MAX(V119/H121,AP119*V119), IF(OR(AO119="Infiltrating Soil Cell Bioretention with Tree",AO119="Non-Infiltrating Soil Cell Bioretention with Tree"),MAX(AP119*V119,AQ127), AP119*V119)))) ->  | AR119: =IF(AO119="Residential Cistern", "sf",INDEX(Lookup!$I$97:$I$365,MATCH(TRIM(CONCATENATE(AO119,V121,V123,V125,V127)),Lookup!$F$97:$F$365,0))) ->  | AS119: =IF(AO119="Trees", INDEX(Lookup!$H$97:$H$365,MATCH(TRIM(CONCATENATE(AO119,V121)),Lookup!$F$97:$F$365,0))*V123, IF(AO119="Residential Cistern", INDEX(Lookup!$H$97:$H$365,MATCH(TRIM(CONCATENATE(AO119,IF(V119<400,0,IF(V119>4200,4201,ROUNDDOWN(V119,-2))))),Lookup!$F$97:$F$365,0))*V119, IF(AND(AO119="Sidewalk/Trail Compost-Amended Strip",OR(H121="",InfRate=0)),NA(), INDEX(Lookup!$H$97:$H$365,MATCH(TRIM(CONCATENATE(AO119,V121,V123,V125,V127)),Lookup!$F$97:$F$365,0))*V119)))*7.48052 *IF(OR(AO119="Permeable Pavement Facility",AO119="Vegetated Roof System"),MIN(1,H121/(AP119*V119)),1) +IF(AO119="Permeable Pavement Facility",H121*2.1*7.48052,1) ->  | AT119: =IFERROR( IF(AO119="Residential Cistern",INDEX(Lookup!$I$97:$I$365,MATCH(TRIM(CONCATENATE(AO119,IF(V119<400,0,IF(V119>4200,4201,ROUNDDOWN(V119,-2))))),Lookup!$F$97:$F$365,0)), IF(AO119="Sidewalk/Trail Compost-Amended Strip",ROUND(AQ119/(V119/H121),1) &" ft wide x "& ROUND(V119/H121,0)&" ft long", IF(OR(AO119="Rainwater Harvesting - Category 1",AO119="Rainwater Harvesting - Category 4")," required minimum live storage", IF(AO119="Water Quality BMP in lieu of NIB","See Plan", IF(AND(V121="",V123="",V125=""),"",TRIM(V123&" "&AP123&" "&V121&" "&AP121&" "&V125&" "&AP125)))))),"") -> 
B121: =IFERROR( IF(AO119="Permeable Pavement Facility","Facility Area (sf)", IF(AO119="Vegetated Roof System","Vegetated Area (sf)", IF(AO119="Sidewalk/Trail Compost-Amended Strip","Sidewalk/Trail Width (ft)", IF(OR(AO119="Rainwater Harvesting - Category 1",AO119="Rainwater Harvesting - Category 4"),"Live Storage Volume (gal)", "")))),"") ->  | N121: =IFERROR(INDEX(Lookup!$C$70:$C$94,MATCH(AO119,Lookup!$A$70:$A$94,0)),"") ->  | AC121: =IFERROR(TEXT(AS119,"#,##0")&" gal managed/year",IFERROR(IF(AP119=0,"Infiltration rate too low.",""),"")) ->  | AO121: =TRIM(SUBSTITUTE(SUBSTITUTE(SUBSTITUTE(AO119," ",""),"-",""),"/","")&"List1") ->  | AP121: =IFERROR(INDEX(Lookup!$G$70:$G$94,MATCH(AO119,Lookup!$A$70:$A$94,0)),"") -> 
B123: =IFERROR( IF(OR(AO119="Permeable Pavement Facility",AO119="Vegetated Roof System"),"Minimum Facility Area "&TEXT((AP119*V119),"#,###")&" sf", IF(OR(AO119="Rainwater Harvesting - Category 1",AO119="Rainwater Harvesting - Category 4"),"Continuous runoff modeling required by", "")),"") ->  | N123: =IFERROR(INDEX(Lookup!$D$70:$D$94,MATCH(AO119,Lookup!$A$70:$A$94,0)),"") ->  | AC123: =IFERROR(IF(AO119="Sidewalk/Trail Compost-Amended Strip",ROUND(AQ119/(V119/H121),1) &" ft wide compost-amended strip", IF(OR(AO119="Infiltrating Soil Cell Bioretention with Tree",AO119="Non-Infiltrating Soil Cell Bioretention with Tree"),"BMP size excludes tree planting area", IF(AO119="Residential Cistern",IF(AQ119=-999,"",IF(V119<800,3,IF(V119<1300,4,5)))&" ft live storage", ""))),"") ->  | AO123: =TRIM(SUBSTITUTE(SUBSTITUTE(SUBSTITUTE(AO119," ",""),"-",""),"/","")&"List2") ->  | AP123: =IFERROR(INDEX(Lookup!$H$70:$H$94,MATCH(AO119,Lookup!$A$70:$A$94,0)),"") -> 
B125: =IFERROR(IF(OR(AO119="Rainwater Harvesting - Category 1",AO119="Rainwater Harvesting - Category 4"),"professional engineer.", ""),"") ->  | N125: =IFERROR(INDEX(Lookup!$E$70:$E$94,MATCH(AO119,Lookup!$A$70:$A$94,0)),"") ->  | AC125: =IFERROR(IF(AO119="Sidewalk/Trail Compost-Amended Strip",IF(AND(AC123="",H121<>""),"","along full "& ROUND(V119/H121,0) &" ft trail/sidewalk"),""),"") ->  | AO125: =TRIM(SUBSTITUTE(SUBSTITUTE(SUBSTITUTE(AO119," ",""),"-",""),"/","")&"List3") ->  | AP125: =IFERROR(INDEX(Lookup!$H$70:$H$94,MATCH(AO121,Lookup!$A$70:$A$94,0)),"") ->  | AQ125: =IF(OR(AO119="Infiltrating Soil Cell Bioretention with Tree",AO119="Non-Infiltrating Soil Cell Bioretention with Tree"),"min footprint to meet soil volume","") ->  | AR125: =IF(OR(AO119="Infiltrating Soil Cell Bioretention with Tree",AO119="Non-Infiltrating Soil Cell Bioretention with Tree"),"min soil volume","") -> 
N127: =IFERROR(INDEX(Lookup!$F$70:$F$94,MATCH(AO119,Lookup!$A$70:$A$94,0)),"") ->  | AO127: =TRIM(SUBSTITUTE(SUBSTITUTE(SUBSTITUTE(AO119," ",""),"-",""),"/","")&"List4") ->  | AQ127: =IF(AO119="Infiltrating Soil Cell Bioretention with Tree",AR127/(V127/12), IF(AO119="Non-Infiltrating Soil Cell Bioretention with Tree",AR127/(V125/12),"")) ->  | AR127: =IF(AO119="Infiltrating Soil Cell Bioretention with Tree",_xlfn.XLOOKUP(V125,InfiltratingSoilCellBioretentionwithTreeList3,Lookup!$U$51:$U$55), IF(AO119="Non-Infiltrating Soil Cell Bioretention with Tree",_xlfn.XLOOKUP(V123,NonInfiltratingSoilCellBioretentionwithTreeList2,Lookup!$U$51:$U$55,""))) -> 
B129: =IFERROR(IF(INDEX($K$7:$K$46,MATCH(AN129,$AO$7:$AO$46,0))="","",INDEX($K$7:$K$46,MATCH(AN129,$AO$7:$AO$46,0))),"") ->  | N129: =IF(B129="","",IF(AO129="Vegetated Roof System","Roof Area","Contributing Area (sf)")) ->  | V129: =IF(B129="","",SUMIF($AO$7:$AO$46,AN129,$F$7:$I$46)) ->  | AC129: =IFERROR(IF(AO129="Water Quality BMP in lieu of NIB","Submit sizing documentation separately.", IF(AP129=-999,"Configuration not allowed.",IF(AP129=0,"Configuration not allowed.",IF(AO129="Trees","As many as feasible.", IF(AP129="equation",TEXT(AQ129,"#,##0")&" "&AR129, TEXT(IF(OR(AO129="Permeable Pavement Facility",AO129="Vegetated Roof System",AO129="Rainwater Harvesting - Category 1", AO129="Rainwater Harvesting - Category 4"),H131, IF(AO129="Sidewalk/Trail Compost-Amended Strip",MAX(V129/H131,AP129*V129), IF(OR(AO129="Infiltrating Soil Cell Bioretention with Tree",AO129="Non-Infiltrating Soil Cell Bioretention with Tree"),MAX(AP129*V129,AQ137), AP129*V129))),"#,##0")&" "&AR129))))),"") ->  | AN129: 9 | AO129: =INDEX($AP$7:$AP$46,MATCH(AN129,$AO$7:$AO$46,0)) ->  | AP129: =IF(AO129="Trees", INDEX(Lookup!$G$97:$G$365,MATCH(TRIM(CONCATENATE(AO129,V131)),Lookup!$F$97:$F$365,0)), IF(AO129="Residential Cistern", INDEX(Lookup!$G$97:$G$365,MATCH(TRIM(CONCATENATE(AO129,IF(V129<400,0,IF(V129>4200,4201,ROUNDDOWN(V129,-2))))),Lookup!$F$97:$F$365,0)), IF(AO129="Sidewalk/Trail Compost-Amended Strip", IF(H131="",NA(),IF(H131<10,Lookup!$G$99,Lookup!$G$98)), IF(AND(AO129="Non-Infiltrating Bioretention",V133="Sloped sides",V131=6),IF(V129<=2000,0.025,0.028), INDEX(Lookup!$G$97:$G$365,MATCH(TRIM(CONCATENATE(AO129,V131,V133,V135,V137)),Lookup!$F$97:$F$365,0)))))) ->  | AQ129: =IF(AP129<=0,NA(),IF(OR(AO129="Permeable Pavement Facility",AO129="Vegetated Roof System",AO129="Rainwater Harvesting - Category 1",AO129="Rainwater Harvesting - Category 4"),H131, IF(AO129="Sidewalk/Trail Compost-Amended Strip",MAX(V129/H131,AP129*V129), IF(OR(AO129="Infiltrating Soil Cell Bioretention with Tree",AO129="Non-Infiltrating Soil Cell Bioretention with Tree"),MAX(AP129*V129,AQ137), AP129*V129)))) ->  | AR129: =IF(AO129="Residential Cistern", "sf",INDEX(Lookup!$I$97:$I$365,MATCH(TRIM(CONCATENATE(AO129,V131,V133,V135,V137)),Lookup!$F$97:$F$365,0))) ->  | AS129: =IF(AO129="Trees", INDEX(Lookup!$H$97:$H$365,MATCH(TRIM(CONCATENATE(AO129,V131)),Lookup!$F$97:$F$365,0))*V133, IF(AO129="Residential Cistern", INDEX(Lookup!$H$97:$H$365,MATCH(TRIM(CONCATENATE(AO129,IF(V129<400,0,IF(V129>4200,4201,ROUNDDOWN(V129,-2))))),Lookup!$F$97:$F$365,0))*V129, IF(AND(AO129="Sidewalk/Trail Compost-Amended Strip",OR(H131="",InfRate=0)),NA(), INDEX(Lookup!$H$97:$H$365,MATCH(TRIM(CONCATENATE(AO129,V131,V133,V135,V137)),Lookup!$F$97:$F$365,0))*V129)))*7.48052 *IF(OR(AO129="Permeable Pavement Facility",AO129="Vegetated Roof System"),MIN(1,H131/(AP129*V129)),1) +IF(AO129="Permeable Pavement Facility",H131*2.1*7.48052,1) ->  | AT129: =IFERROR( IF(AO129="Residential Cistern",INDEX(Lookup!$I$97:$I$365,MATCH(TRIM(CONCATENATE(AO129,IF(V129<400,0,IF(V129>4200,4201,ROUNDDOWN(V129,-2))))),Lookup!$F$97:$F$365,0)), IF(AO129="Sidewalk/Trail Compost-Amended Strip",ROUND(AQ129/(V129/H131),1) &" ft wide x "& ROUND(V129/H131,0)&" ft long", IF(OR(AO129="Rainwater Harvesting - Category 1",AO129="Rainwater Harvesting - Category 4")," required minimum live storage", IF(AO129="Water Quality BMP in lieu of NIB","See Plan", IF(AND(V131="",V133="",V135=""),"",TRIM(V133&" "&AP133&" "&V131&" "&AP131&" "&V135&" "&AP135)))))),"") -> 
B131: =IFERROR( IF(AO129="Permeable Pavement Facility","Facility Area (sf)", IF(AO129="Vegetated Roof System","Vegetated Area (sf)", IF(AO129="Sidewalk/Trail Compost-Amended Strip","Sidewalk/Trail Width (ft)", IF(OR(AO129="Rainwater Harvesting - Category 1",AO129="Rainwater Harvesting - Category 4"),"Live Storage Volume (gal)", "")))),"") ->  | N131: =IFERROR(INDEX(Lookup!$C$70:$C$94,MATCH(AO129,Lookup!$A$70:$A$94,0)),"") ->  | AC131: =IFERROR(TEXT(AS129,"#,##0")&" gal managed/year",IFERROR(IF(AP129=0,"Infiltration rate too low.",""),"")) ->  | AO131: =TRIM(SUBSTITUTE(SUBSTITUTE(SUBSTITUTE(AO129," ",""),"-",""),"/","")&"List1") ->  | AP131: =IFERROR(INDEX(Lookup!$G$70:$G$94,MATCH(AO129,Lookup!$A$70:$A$94,0)),"") -> 
B133: =IFERROR( IF(OR(AO129="Permeable Pavement Facility",AO129="Vegetated Roof System"),"Minimum Facility Area "&TEXT((AP129*V129),"#,###")&" sf", IF(OR(AO129="Rainwater Harvesting - Category 1",AO129="Rainwater Harvesting - Category 4"),"Continuous runoff modeling required by", "")),"") ->  | N133: =IFERROR(INDEX(Lookup!$D$70:$D$94,MATCH(AO129,Lookup!$A$70:$A$94,0)),"") ->  | AC133: =IFERROR(IF(AO129="Sidewalk/Trail Compost-Amended Strip",ROUND(AQ129/(V129/H131),1) &" ft wide compost-amended strip", IF(OR(AO129="Infiltrating Soil Cell Bioretention with Tree",AO129="Non-Infiltrating Soil Cell Bioretention with Tree"),"BMP size excludes tree planting area", IF(AO129="Residential Cistern",IF(AQ129=-999,"",IF(V129<800,3,IF(V129<1300,4,5)))&" ft live storage", ""))),"") ->  | AO133: =TRIM(SUBSTITUTE(SUBSTITUTE(SUBSTITUTE(AO129," ",""),"-",""),"/","")&"List2") ->  | AP133: =IFERROR(INDEX(Lookup!$H$70:$H$94,MATCH(AO129,Lookup!$A$70:$A$94,0)),"") -> 
B135: =IFERROR(IF(OR(AO129="Rainwater Harvesting - Category 1",AO129="Rainwater Harvesting - Category 4"),"professional engineer.", ""),"") ->  | N135: =IFERROR(INDEX(Lookup!$E$70:$E$94,MATCH(AO129,Lookup!$A$70:$A$94,0)),"") ->  | AC135: =IFERROR(IF(AO129="Sidewalk/Trail Compost-Amended Strip",IF(AND(AC133="",H131<>""),"","along full "& ROUND(V129/H131,0) &" ft trail/sidewalk"),""),"") ->  | AO135: =TRIM(SUBSTITUTE(SUBSTITUTE(SUBSTITUTE(AO129," ",""),"-",""),"/","")&"List3") ->  | AP135: =IFERROR(INDEX(Lookup!$H$70:$H$94,MATCH(AO131,Lookup!$A$70:$A$94,0)),"") ->  | AQ135: =IF(OR(AO129="Infiltrating Soil Cell Bioretention with Tree",AO129="Non-Infiltrating Soil Cell Bioretention with Tree"),"min footprint to meet soil volume","") ->  | AR135: =IF(OR(AO129="Infiltrating Soil Cell Bioretention with Tree",AO129="Non-Infiltrating Soil Cell Bioretention with Tree"),"min soil volume","") -> 
N137: =IFERROR(INDEX(Lookup!$F$70:$F$94,MATCH(AO129,Lookup!$A$70:$A$94,0)),"") ->  | AO137: =TRIM(SUBSTITUTE(SUBSTITUTE(SUBSTITUTE(AO129," ",""),"-",""),"/","")&"List4") ->  | AQ137: =IF(AO129="Infiltrating Soil Cell Bioretention with Tree",AR137/(V137/12), IF(AO129="Non-Infiltrating Soil Cell Bioretention with Tree",AR137/(V135/12),"")) ->  | AR137: =IF(AO129="Infiltrating Soil Cell Bioretention with Tree",_xlfn.XLOOKUP(V135,InfiltratingSoilCellBioretentionwithTreeList3,Lookup!$U$51:$U$55), IF(AO129="Non-Infiltrating Soil Cell Bioretention with Tree",_xlfn.XLOOKUP(V133,NonInfiltratingSoilCellBioretentionwithTreeList2,Lookup!$U$51:$U$55,""))) -> 
B139: =IFERROR(IF(INDEX($K$7:$K$46,MATCH(AN139,$AO$7:$AO$46,0))="","",INDEX($K$7:$K$46,MATCH(AN139,$AO$7:$AO$46,0))),"") ->  | N139: =IF(B139="","",IF(AO139="Vegetated Roof System","Roof Area","Contributing Area (sf)")) ->  | V139: =IF(B139="","",SUMIF($AO$7:$AO$46,AN139,$F$7:$I$46)) ->  | AC139: =IFERROR(IF(AO139="Water Quality BMP in lieu of NIB","Submit sizing documentation separately.", IF(AP139=-999,"Configuration not allowed.",IF(AP139=0,"Configuration not allowed.",IF(AO139="Trees","As many as feasible.", IF(AP139="equation",TEXT(AQ139,"#,##0")&" "&AR139, TEXT(IF(OR(AO139="Permeable Pavement Facility",AO139="Vegetated Roof System",AO139="Rainwater Harvesting - Category 1", AO139="Rainwater Harvesting - Category 4"),H141, IF(AO139="Sidewalk/Trail Compost-Amended Strip",MAX(V139/H141,AP139*V139), IF(OR(AO139="Infiltrating Soil Cell Bioretention with Tree",AO139="Non-Infiltrating Soil Cell Bioretention with Tree"),MAX(AP139*V139,AQ147), AP139*V139))),"#,##0")&" "&AR139))))),"") ->  | AN139: 10 | AO139: =INDEX($AP$7:$AP$46,MATCH(AN139,$AO$7:$AO$46,0)) ->  | AP139: =IF(AO139="Trees", INDEX(Lookup!$G$97:$G$365,MATCH(TRIM(CONCATENATE(AO139,V141)),Lookup!$F$97:$F$365,0)), IF(AO139="Residential Cistern", INDEX(Lookup!$G$97:$G$365,MATCH(TRIM(CONCATENATE(AO139,IF(V139<400,0,IF(V139>4200,4201,ROUNDDOWN(V139,-2))))),Lookup!$F$97:$F$365,0)), IF(AO139="Sidewalk/Trail Compost-Amended Strip", IF(H141="",NA(),IF(H141<10,Lookup!$G$99,Lookup!$G$98)), IF(AND(AO139="Non-Infiltrating Bioretention",V143="Sloped sides",V141=6),IF(V139<=2000,0.025,0.028), INDEX(Lookup!$G$97:$G$365,MATCH(TRIM(CONCATENATE(AO139,V141,V143,V145,V147)),Lookup!$F$97:$F$365,0)))))) ->  | AQ139: =IF(AP139<=0,NA(),IF(OR(AO139="Permeable Pavement Facility",AO139="Vegetated Roof System",AO139="Rainwater Harvesting - Category 1",AO139="Rainwater Harvesting - Category 4"),H141, IF(AO139="Sidewalk/Trail Compost-Amended Strip",MAX(V139/H141,AP139*V139), IF(OR(AO139="Infiltrating Soil Cell Bioretention with Tree",AO139="Non-Infiltrating Soil Cell Bioretention with Tree"),MAX(AP139*V139,AQ147), AP139*V139)))) ->  | AR139: =IF(AO139="Residential Cistern", "sf",INDEX(Lookup!$I$97:$I$365,MATCH(TRIM(CONCATENATE(AO139,V141,V143,V145,V147)),Lookup!$F$97:$F$365,0))) ->  | AS139: =IF(AO139="Trees", INDEX(Lookup!$H$97:$H$365,MATCH(TRIM(CONCATENATE(AO139,V141)),Lookup!$F$97:$F$365,0))*V143, IF(AO139="Residential Cistern", INDEX(Lookup!$H$97:$H$365,MATCH(TRIM(CONCATENATE(AO139,IF(V139<400,0,IF(V139>4200,4201,ROUNDDOWN(V139,-2))))),Lookup!$F$97:$F$365,0))*V139, IF(AND(AO139="Sidewalk/Trail Compost-Amended Strip",OR(H141="",InfRate=0)),NA(), INDEX(Lookup!$H$97:$H$365,MATCH(TRIM(CONCATENATE(AO139,V141,V143,V145,V147)),Lookup!$F$97:$F$365,0))*V139)))*7.48052 *IF(OR(AO139="Permeable Pavement Facility",AO139="Vegetated Roof System"),MIN(1,H141/(AP139*V139)),1) +IF(AO139="Permeable Pavement Facility",H141*2.1*7.48052,1) ->  | AT139: =IFERROR( IF(AO139="Residential Cistern",INDEX(Lookup!$I$97:$I$365,MATCH(TRIM(CONCATENATE(AO139,IF(V139<400,0,IF(V139>4200,4201,ROUNDDOWN(V139,-2))))),Lookup!$F$97:$F$365,0)), IF(AO139="Sidewalk/Trail Compost-Amended Strip",ROUND(AQ139/(V139/H141),1) &" ft wide x "& ROUND(V139/H141,0)&" ft long", IF(OR(AO139="Rainwater Harvesting - Category 1",AO139="Rainwater Harvesting - Category 4")," required minimum live storage", IF(AO139="Water Quality BMP in lieu of NIB","See Plan", IF(AND(V141="",V143="",V145=""),"",TRIM(V143&" "&AP143&" "&V141&" "&AP141&" "&V145&" "&AP145)))))),"") -> 
B141: =IFERROR( IF(AO139="Permeable Pavement Facility","Facility Area (sf)", IF(AO139="Vegetated Roof System","Vegetated Area (sf)", IF(AO139="Sidewalk/Trail Compost-Amended Strip","Sidewalk/Trail Width (ft)", IF(OR(AO139="Rainwater Harvesting - Category 1",AO139="Rainwater Harvesting - Category 4"),"Live Storage Volume (gal)", "")))),"") ->  | N141: =IFERROR(INDEX(Lookup!$C$70:$C$94,MATCH(AO139,Lookup!$A$70:$A$94,0)),"") ->  | AC141: =IFERROR(TEXT(AS139,"#,##0")&" gal managed/year",IFERROR(IF(AP139=0,"Infiltration rate too low.",""),"")) ->  | AO141: =TRIM(SUBSTITUTE(SUBSTITUTE(SUBSTITUTE(AO139," ",""),"-",""),"/","")&"List1") ->  | AP141: =IFERROR(INDEX(Lookup!$G$70:$G$94,MATCH(AO139,Lookup!$A$70:$A$94,0)),"") -> 
B143: =IFERROR( IF(OR(AO139="Permeable Pavement Facility",AO139="Vegetated Roof System"),"Minimum Facility Area "&TEXT((AP139*V139),"#,###")&" sf", IF(OR(AO139="Rainwater Harvesting - Category 1",AO139="Rainwater Harvesting - Category 4"),"Continuous runoff modeling required by", "")),"") ->  | N143: =IFERROR(INDEX(Lookup!$D$70:$D$94,MATCH(AO139,Lookup!$A$70:$A$94,0)),"") ->  | AC143: =IFERROR(IF(AO139="Sidewalk/Trail Compost-Amended Strip",ROUND(AQ139/(V139/H141),1) &" ft wide compost-amended strip", IF(OR(AO139="Infiltrating Soil Cell Bioretention with Tree",AO139="Non-Infiltrating Soil Cell Bioretention with Tree"),"BMP size excludes tree planting area", IF(AO139="Residential Cistern",IF(AQ139=-999,"",IF(V139<800,3,IF(V139<1300,4,5)))&" ft live storage", ""))),"") ->  | AO143: =TRIM(SUBSTITUTE(SUBSTITUTE(SUBSTITUTE(AO139," ",""),"-",""),"/","")&"List2") ->  | AP143: =IFERROR(INDEX(Lookup!$H$70:$H$94,MATCH(AO139,Lookup!$A$70:$A$94,0)),"") -> 
B145: =IFERROR(IF(OR(AO139="Rainwater Harvesting - Category 1",AO139="Rainwater Harvesting - Category 4"),"professional engineer.", ""),"") ->  | N145: =IFERROR(INDEX(Lookup!$E$70:$E$94,MATCH(AO139,Lookup!$A$70:$A$94,0)),"") ->  | AC145: =IFERROR(IF(AO139="Sidewalk/Trail Compost-Amended Strip",IF(AND(AC143="",H141<>""),"","along full "& ROUND(V139/H141,0) &" ft trail/sidewalk"),""),"") ->  | AO145: =TRIM(SUBSTITUTE(SUBSTITUTE(SUBSTITUTE(AO139," ",""),"-",""),"/","")&"List3") ->  | AP145: =IFERROR(INDEX(Lookup!$H$70:$H$94,MATCH(AO141,Lookup!$A$70:$A$94,0)),"") ->  | AQ145: =IF(OR(AO139="Infiltrating Soil Cell Bioretention with Tree",AO139="Non-Infiltrating Soil Cell Bioretention with Tree"),"min footprint to meet soil volume","") ->  | AR145: =IF(OR(AO139="Infiltrating Soil Cell Bioretention with Tree",AO139="Non-Infiltrating Soil Cell Bioretention with Tree"),"min soil volume","") -> 
N147: =IFERROR(INDEX(Lookup!$F$70:$F$94,MATCH(AO139,Lookup!$A$70:$A$94,0)),"") ->  | AO147: =TRIM(SUBSTITUTE(SUBSTITUTE(SUBSTITUTE(AO139," ",""),"-",""),"/","")&"List4") ->  | AQ147: =IF(AO139="Infiltrating Soil Cell Bioretention with Tree",AR147/(V147/12), IF(AO139="Non-Infiltrating Soil Cell Bioretention with Tree",AR147/(V145/12),"")) ->  | AR147: =IF(AO139="Infiltrating Soil Cell Bioretention with Tree",_xlfn.XLOOKUP(V145,InfiltratingSoilCellBioretentionwithTreeList3,Lookup!$U$51:$U$55), IF(AO139="Non-Infiltrating Soil Cell Bioretention with Tree",_xlfn.XLOOKUP(V143,NonInfiltratingSoilCellBioretentionwithTreeList2,Lookup!$U$51:$U$55,""))) -> 
B149: =IFERROR(IF(INDEX($K$7:$K$46,MATCH(AN149,$AO$7:$AO$46,0))="","",INDEX($K$7:$K$46,MATCH(AN149,$AO$7:$AO$46,0))),"") ->  | N149: =IF(B149="","",IF(AO149="Vegetated Roof System","Roof Area","Contributing Area (sf)")) ->  | V149: =IF(B149="","",SUMIF($AO$7:$AO$46,AN149,$F$7:$I$46)) ->  | AC149: =IFERROR(IF(AO149="Water Quality BMP in lieu of NIB","Submit sizing documentation separately.", IF(AP149=-999,"Configuration not allowed.",IF(AP149=0,"Configuration not allowed.",IF(AO149="Trees","As many as feasible.", IF(AP149="equation",TEXT(AQ149,"#,##0")&" "&AR149, TEXT(IF(OR(AO149="Permeable Pavement Facility",AO149="Vegetated Roof System",AO149="Rainwater Harvesting - Category 1", AO149="Rainwater Harvesting - Category 4"),H151, IF(AO149="Sidewalk/Trail Compost-Amended Strip",MAX(V149/H151,AP149*V149), IF(OR(AO149="Infiltrating Soil Cell Bioretention with Tree",AO149="Non-Infiltrating Soil Cell Bioretention with Tree"),MAX(AP149*V149,AQ157), AP149*V149))),"#,##0")&" "&AR149))))),"") ->  | AN149: 11 | AO149: =INDEX($AP$7:$AP$46,MATCH(AN149,$AO$7:$AO$46,0)) ->  | AP149: =IF(AO149="Trees", INDEX(Lookup!$G$97:$G$365,MATCH(TRIM(CONCATENATE(AO149,V151)),Lookup!$F$97:$F$365,0)), IF(AO149="Residential Cistern", INDEX(Lookup!$G$97:$G$365,MATCH(TRIM(CONCATENATE(AO149,IF(V149<400,0,IF(V149>4200,4201,ROUNDDOWN(V149,-2))))),Lookup!$F$97:$F$365,0)), IF(AO149="Sidewalk/Trail Compost-Amended Strip", IF(H151="",NA(),IF(H151<10,Lookup!$G$99,Lookup!$G$98)), IF(AND(AO149="Non-Infiltrating Bioretention",V153="Sloped sides",V151=6),IF(V149<=2000,0.025,0.028), INDEX(Lookup!$G$97:$G$365,MATCH(TRIM(CONCATENATE(AO149,V151,V153,V155,V157)),Lookup!$F$97:$F$365,0)))))) ->  | AQ149: =IF(AP149<=0,NA(),IF(OR(AO149="Permeable Pavement Facility",AO149="Vegetated Roof System",AO149="Rainwater Harvesting - Category 1",AO149="Rainwater Harvesting - Category 4"),H151, IF(AO149="Sidewalk/Trail Compost-Amended Strip",MAX(V149/H151,AP149*V149), IF(OR(AO149="Infiltrating Soil Cell Bioretention with Tree",AO149="Non-Infiltrating Soil Cell Bioretention with Tree"),MAX(AP149*V149,AQ157), AP149*V149)))) ->  | AR149: =IF(AO149="Residential Cistern", "sf",INDEX(Lookup!$I$97:$I$365,MATCH(TRIM(CONCATENATE(AO149,V151,V153,V155,V157)),Lookup!$F$97:$F$365,0))) ->  | AS149: =IF(AO149="Trees", INDEX(Lookup!$H$97:$H$365,MATCH(TRIM(CONCATENATE(AO149,V151)),Lookup!$F$97:$F$365,0))*V153, IF(AO149="Residential Cistern", INDEX(Lookup!$H$97:$H$365,MATCH(TRIM(CONCATENATE(AO149,IF(V149<400,0,IF(V149>4200,4201,ROUNDDOWN(V149,-2))))),Lookup!$F$97:$F$365,0))*V149, IF(AND(AO149="Sidewalk/Trail Compost-Amended Strip",OR(H151="",InfRate=0)),NA(), INDEX(Lookup!$H$97:$H$365,MATCH(TRIM(CONCATENATE(AO149,V151,V153,V155,V157)),Lookup!$F$97:$F$365,0))*V149)))*7.48052 *IF(OR(AO149="Permeable Pavement Facility",AO149="Vegetated Roof System"),MIN(1,H151/(AP149*V149)),1) +IF(AO149="Permeable Pavement Facility",H151*2.1*7.48052,1) ->  | AT149: =IFERROR( IF(AO149="Residential Cistern",INDEX(Lookup!$I$97:$I$365,MATCH(TRIM(CONCATENATE(AO149,IF(V149<400,0,IF(V149>4200,4201,ROUNDDOWN(V149,-2))))),Lookup!$F$97:$F$365,0)), IF(AO149="Sidewalk/Trail Compost-Amended Strip",ROUND(AQ149/(V149/H151),1) &" ft wide x "& ROUND(V149/H151,0)&" ft long", IF(OR(AO149="Rainwater Harvesting - Category 1",AO149="Rainwater Harvesting - Category 4")," required minimum live storage", IF(AO149="Water Quality BMP in lieu of NIB","See Plan", IF(AND(V151="",V153="",V155=""),"",TRIM(V153&" "&AP153&" "&V151&" "&AP151&" "&V155&" "&AP155)))))),"") -> 
B151: =IFERROR( IF(AO149="Permeable Pavement Facility","Facility Area (sf)", IF(AO149="Vegetated Roof System","Vegetated Area (sf)", IF(AO149="Sidewalk/Trail Compost-Amended Strip","Sidewalk/Trail Width (ft)", IF(OR(AO149="Rainwater Harvesting - Category 1",AO149="Rainwater Harvesting - Category 4"),"Live Storage Volume (gal)", "")))),"") ->  | N151: =IFERROR(INDEX(Lookup!$C$70:$C$94,MATCH(AO149,Lookup!$A$70:$A$94,0)),"") ->  | AC151: =IFERROR(TEXT(AS149,"#,##0")&" gal managed/year",IFERROR(IF(AP149=0,"Infiltration rate too low.",""),"")) ->  | AO151: =TRIM(SUBSTITUTE(SUBSTITUTE(SUBSTITUTE(AO149," ",""),"-",""),"/","")&"List1") ->  | AP151: =IFERROR(INDEX(Lookup!$G$70:$G$94,MATCH(AO149,Lookup!$A$70:$A$94,0)),"") -> 
B153: =IFERROR( IF(OR(AO149="Permeable Pavement Facility",AO149="Vegetated Roof System"),"Minimum Facility Area "&TEXT((AP149*V149),"#,###")&" sf", IF(OR(AO149="Rainwater Harvesting - Category 1",AO149="Rainwater Harvesting - Category 4"),"Continuous runoff modeling required by", "")),"") ->  | N153: =IFERROR(INDEX(Lookup!$D$70:$D$94,MATCH(AO149,Lookup!$A$70:$A$94,0)),"") ->  | AC153: =IFERROR(IF(AO149="Sidewalk/Trail Compost-Amended Strip",ROUND(AQ149/(V149/H151),1) &" ft wide compost-amended strip", IF(OR(AO149="Infiltrating Soil Cell Bioretention with Tree",AO149="Non-Infiltrating Soil Cell Bioretention with Tree"),"BMP size excludes tree planting area", IF(AO149="Residential Cistern",IF(AQ149=-999,"",IF(V149<800,3,IF(V149<1300,4,5)))&" ft live storage", ""))),"") ->  | AO153: =TRIM(SUBSTITUTE(SUBSTITUTE(SUBSTITUTE(AO149," ",""),"-",""),"/","")&"List2") ->  | AP153: =IFERROR(INDEX(Lookup!$H$70:$H$94,MATCH(AO149,Lookup!$A$70:$A$94,0)),"") -> 
B155: =IFERROR(IF(OR(AO149="Rainwater Harvesting - Category 1",AO149="Rainwater Harvesting - Category 4"),"professional engineer.", ""),"") ->  | N155: =IFERROR(INDEX(Lookup!$E$70:$E$94,MATCH(AO149,Lookup!$A$70:$A$94,0)),"") ->  | AC155: =IFERROR(IF(AO149="Sidewalk/Trail Compost-Amended Strip",IF(AND(AC153="",H151<>""),"","along full "& ROUND(V149/H151,0) &" ft trail/sidewalk"),""),"") ->  | AO155: =TRIM(SUBSTITUTE(SUBSTITUTE(SUBSTITUTE(AO149," ",""),"-",""),"/","")&"List3") ->  | AP155: =IFERROR(INDEX(Lookup!$H$70:$H$94,MATCH(AO151,Lookup!$A$70:$A$94,0)),"") ->  | AQ155: =IF(OR(AO149="Infiltrating Soil Cell Bioretention with Tree",AO149="Non-Infiltrating Soil Cell Bioretention with Tree"),"min footprint to meet soil volume","") ->  | AR155: =IF(OR(AO149="Infiltrating Soil Cell Bioretention with Tree",AO149="Non-Infiltrating Soil Cell Bioretention with Tree"),"min soil volume","") -> 
N157: =IFERROR(INDEX(Lookup!$F$70:$F$94,MATCH(AO149,Lookup!$A$70:$A$94,0)),"") ->  | AO157: =TRIM(SUBSTITUTE(SUBSTITUTE(SUBSTITUTE(AO149," ",""),"-",""),"/","")&"List4") ->  | AQ157: =IF(AO149="Infiltrating Soil Cell Bioretention with Tree",AR157/(V157/12), IF(AO149="Non-Infiltrating Soil Cell Bioretention with Tree",AR157/(V155/12),"")) ->  | AR157: =IF(AO149="Infiltrating Soil Cell Bioretention with Tree",_xlfn.XLOOKUP(V155,InfiltratingSoilCellBioretentionwithTreeList3,Lookup!$U$51:$U$55), IF(AO149="Non-Infiltrating Soil Cell Bioretention with Tree",_xlfn.XLOOKUP(V153,NonInfiltratingSoilCellBioretentionwithTreeList2,Lookup!$U$51:$U$55,""))) -> 
B159: =IFERROR(IF(INDEX($K$7:$K$46,MATCH(AN159,$AO$7:$AO$46,0))="","",INDEX($K$7:$K$46,MATCH(AN159,$AO$7:$AO$46,0))),"") ->  | N159: =IF(B159="","",IF(AO159="Vegetated Roof System","Roof Area","Contributing Area (sf)")) ->  | V159: =IF(B159="","",SUMIF($AO$7:$AO$46,AN159,$F$7:$I$46)) ->  | AC159: =IFERROR(IF(AO159="Water Quality BMP in lieu of NIB","Submit sizing documentation separately.", IF(AP159=-999,"Configuration not allowed.",IF(AP159=0,"Configuration not allowed.",IF(AO159="Trees","As many as feasible.", IF(AP159="equation",TEXT(AQ159,"#,##0")&" "&AR159, TEXT(IF(OR(AO159="Permeable Pavement Facility",AO159="Vegetated Roof System",AO159="Rainwater Harvesting - Category 1", AO159="Rainwater Harvesting - Category 4"),H161, IF(AO159="Sidewalk/Trail Compost-Amended Strip",MAX(V159/H161,AP159*V159), IF(OR(AO159="Infiltrating Soil Cell Bioretention with Tree",AO159="Non-Infiltrating Soil Cell Bioretention with Tree"),MAX(AP159*V159,AQ167), AP159*V159))),"#,##0")&" "&AR159))))),"") ->  | AN159: 12 | AO159: =INDEX($AP$7:$AP$46,MATCH(AN159,$AO$7:$AO$46,0)) ->  | AP159: =IF(AO159="Trees", INDEX(Lookup!$G$97:$G$365,MATCH(TRIM(CONCATENATE(AO159,V161)),Lookup!$F$97:$F$365,0)), IF(AO159="Residential Cistern", INDEX(Lookup!$G$97:$G$365,MATCH(TRIM(CONCATENATE(AO159,IF(V159<400,0,IF(V159>4200,4201,ROUNDDOWN(V159,-2))))),Lookup!$F$97:$F$365,0)), IF(AO159="Sidewalk/Trail Compost-Amended Strip", IF(H161="",NA(),IF(H161<10,Lookup!$G$99,Lookup!$G$98)), IF(AND(AO159="Non-Infiltrating Bioretention",V163="Sloped sides",V161=6),IF(V159<=2000,0.025,0.028), INDEX(Lookup!$G$97:$G$365,MATCH(TRIM(CONCATENATE(AO159,V161,V163,V165,V167)),Lookup!$F$97:$F$365,0)))))) ->  | AQ159: =IF(AP159<=0,NA(),IF(OR(AO159="Permeable Pavement Facility",AO159="Vegetated Roof System",AO159="Rainwater Harvesting - Category 1",AO159="Rainwater Harvesting - Category 4"),H161, IF(AO159="Sidewalk/Trail Compost-Amended Strip",MAX(V159/H161,AP159*V159), IF(OR(AO159="Infiltrating Soil Cell Bioretention with Tree",AO159="Non-Infiltrating Soil Cell Bioretention with Tree"),MAX(AP159*V159,AQ167), AP159*V159)))) ->  | AR159: =IF(AO159="Residential Cistern", "sf",INDEX(Lookup!$I$97:$I$365,MATCH(TRIM(CONCATENATE(AO159,V161,V163,V165,V167)),Lookup!$F$97:$F$365,0))) ->  | AS159: =IF(AO159="Trees", INDEX(Lookup!$H$97:$H$365,MATCH(TRIM(CONCATENATE(AO159,V161)),Lookup!$F$97:$F$365,0))*V163, IF(AO159="Residential Cistern", INDEX(Lookup!$H$97:$H$365,MATCH(TRIM(CONCATENATE(AO159,IF(V159<400,0,IF(V159>4200,4201,ROUNDDOWN(V159,-2))))),Lookup!$F$97:$F$365,0))*V159, IF(AND(AO159="Sidewalk/Trail Compost-Amended Strip",OR(H161="",InfRate=0)),NA(), INDEX(Lookup!$H$97:$H$365,MATCH(TRIM(CONCATENATE(AO159,V161,V163,V165,V167)),Lookup!$F$97:$F$365,0))*V159)))*7.48052 *IF(OR(AO159="Permeable Pavement Facility",AO159="Vegetated Roof System"),MIN(1,H161/(AP159*V159)),1) +IF(AO159="Permeable Pavement Facility",H161*2.1*7.48052,1) ->  | AT159: =IFERROR( IF(AO159="Residential Cistern",INDEX(Lookup!$I$97:$I$365,MATCH(TRIM(CONCATENATE(AO159,IF(V159<400,0,IF(V159>4200,4201,ROUNDDOWN(V159,-2))))),Lookup!$F$97:$F$365,0)), IF(AO159="Sidewalk/Trail Compost-Amended Strip",ROUND(AQ159/(V159/H161),1) &" ft wide x "& ROUND(V159/H161,0)&" ft long", IF(OR(AO159="Rainwater Harvesting - Category 1",AO159="Rainwater Harvesting - Category 4")," required minimum live storage", IF(AO159="Water Quality BMP in lieu of NIB","See Plan", IF(AND(V161="",V163="",V165=""),"",TRIM(V163&" "&AP163&" "&V161&" "&AP161&" "&V165&" "&AP165)))))),"") -> 
B161: =IFERROR( IF(AO159="Permeable Pavement Facility","Facility Area (sf)", IF(AO159="Vegetated Roof System","Vegetated Area (sf)", IF(AO159="Sidewalk/Trail Compost-Amended Strip","Sidewalk/Trail Width (ft)", IF(OR(AO159="Rainwater Harvesting - Category 1",AO159="Rainwater Harvesting - Category 4"),"Live Storage Volume (gal)", "")))),"") ->  | N161: =IFERROR(INDEX(Lookup!$C$70:$C$94,MATCH(AO159,Lookup!$A$70:$A$94,0)),"") ->  | AC161: =IFERROR(TEXT(AS159,"#,##0")&" gal managed/year",IFERROR(IF(AP159=0,"Infiltration rate too low.",""),"")) ->  | AO161: =TRIM(SUBSTITUTE(SUBSTITUTE(SUBSTITUTE(AO159," ",""),"-",""),"/","")&"List1") ->  | AP161: =IFERROR(INDEX(Lookup!$G$70:$G$94,MATCH(AO159,Lookup!$A$70:$A$94,0)),"") -> 
B163: =IFERROR( IF(OR(AO159="Permeable Pavement Facility",AO159="Vegetated Roof System"),"Minimum Facility Area "&TEXT((AP159*V159),"#,###")&" sf", IF(OR(AO159="Rainwater Harvesting - Category 1",AO159="Rainwater Harvesting - Category 4"),"Continuous runoff modeling required by", "")),"") ->  | N163: =IFERROR(INDEX(Lookup!$D$70:$D$94,MATCH(AO159,Lookup!$A$70:$A$94,0)),"") ->  | AC163: =IFERROR(IF(AO159="Sidewalk/Trail Compost-Amended Strip",ROUND(AQ159/(V159/H161),1) &" ft wide compost-amended strip", IF(OR(AO159="Infiltrating Soil Cell Bioretention with Tree",AO159="Non-Infiltrating Soil Cell Bioretention with Tree"),"BMP size excludes tree planting area", IF(AO159="Residential Cistern",IF(AQ159=-999,"",IF(V159<800,3,IF(V159<1300,4,5)))&" ft live storage", ""))),"") ->  | AO163: =TRIM(SUBSTITUTE(SUBSTITUTE(SUBSTITUTE(AO159," ",""),"-",""),"/","")&"List2") ->  | AP163: =IFERROR(INDEX(Lookup!$H$70:$H$94,MATCH(AO159,Lookup!$A$70:$A$94,0)),"") -> 
B165: =IFERROR(IF(OR(AO159="Rainwater Harvesting - Category 1",AO159="Rainwater Harvesting - Category 4"),"professional engineer.", ""),"") ->  | N165: =IFERROR(INDEX(Lookup!$E$70:$E$94,MATCH(AO159,Lookup!$A$70:$A$94,0)),"") ->  | AC165: =IFERROR(IF(AO159="Sidewalk/Trail Compost-Amended Strip",IF(AND(AC163="",H161<>""),"","along full "& ROUND(V159/H161,0) &" ft trail/sidewalk"),""),"") ->  | AO165: =TRIM(SUBSTITUTE(SUBSTITUTE(SUBSTITUTE(AO159," ",""),"-",""),"/","")&"List3") ->  | AP165: =IFERROR(INDEX(Lookup!$H$70:$H$94,MATCH(AO161,Lookup!$A$70:$A$94,0)),"") ->  | AQ165: =IF(OR(AO159="Infiltrating Soil Cell Bioretention with Tree",AO159="Non-Infiltrating Soil Cell Bioretention with Tree"),"min footprint to meet soil volume","") ->  | AR165: =IF(OR(AO159="Infiltrating Soil Cell Bioretention with Tree",AO159="Non-Infiltrating Soil Cell Bioretention with Tree"),"min soil volume","") -> 
N167: =IFERROR(INDEX(Lookup!$F$70:$F$94,MATCH(AO159,Lookup!$A$70:$A$94,0)),"") ->  | AO167: =TRIM(SUBSTITUTE(SUBSTITUTE(SUBSTITUTE(AO159," ",""),"-",""),"/","")&"List4") ->  | AQ167: =IF(AO159="Infiltrating Soil Cell Bioretention with Tree",AR167/(V167/12), IF(AO159="Non-Infiltrating Soil Cell Bioretention with Tree",AR167/(V165/12),"")) ->  | AR167: =IF(AO159="Infiltrating Soil Cell Bioretention with Tree",_xlfn.XLOOKUP(V165,InfiltratingSoilCellBioretentionwithTreeList3,Lookup!$U$51:$U$55), IF(AO159="Non-Infiltrating Soil Cell Bioretention with Tree",_xlfn.XLOOKUP(V163,NonInfiltratingSoilCellBioretentionwithTreeList2,Lookup!$U$51:$U$55,""))) -> 
B169: =IFERROR(IF(INDEX($K$7:$K$46,MATCH(AN169,$AO$7:$AO$46,0))="","",INDEX($K$7:$K$46,MATCH(AN169,$AO$7:$AO$46,0))),"") ->  | N169: =IF(B169="","",IF(AO169="Vegetated Roof System","Roof Area","Contributing Area (sf)")) ->  | V169: =IF(B169="","",SUMIF($AO$7:$AO$46,AN169,$F$7:$I$46)) ->  | AC169: =IFERROR(IF(AO169="Water Quality BMP in lieu of NIB","Submit sizing documentation separately.", IF(AP169=-999,"Configuration not allowed.",IF(AP169=0,"Configuration not allowed.",IF(AO169="Trees","As many as feasible.", IF(AP169="equation",TEXT(AQ169,"#,##0")&" "&AR169, TEXT(IF(OR(AO169="Permeable Pavement Facility",AO169="Vegetated Roof System",AO169="Rainwater Harvesting - Category 1", AO169="Rainwater Harvesting - Category 4"),H171, IF(AO169="Sidewalk/Trail Compost-Amended Strip",MAX(V169/H171,AP169*V169), IF(OR(AO169="Infiltrating Soil Cell Bioretention with Tree",AO169="Non-Infiltrating Soil Cell Bioretention with Tree"),MAX(AP169*V169,AQ177), AP169*V169))),"#,##0")&" "&AR169))))),"") ->  | AN169: 13 | AO169: =INDEX($AP$7:$AP$46,MATCH(AN169,$AO$7:$AO$46,0)) ->  | AP169: =IF(AO169="Trees", INDEX(Lookup!$G$97:$G$365,MATCH(TRIM(CONCATENATE(AO169,V171)),Lookup!$F$97:$F$365,0)), IF(AO169="Residential Cistern", INDEX(Lookup!$G$97:$G$365,MATCH(TRIM(CONCATENATE(AO169,IF(V169<400,0,IF(V169>4200,4201,ROUNDDOWN(V169,-2))))),Lookup!$F$97:$F$365,0)), IF(AO169="Sidewalk/Trail Compost-Amended Strip", IF(H171="",NA(),IF(H171<10,Lookup!$G$99,Lookup!$G$98)), IF(AND(AO169="Non-Infiltrating Bioretention",V173="Sloped sides",V171=6),IF(V169<=2000,0.025,0.028), INDEX(Lookup!$G$97:$G$365,MATCH(TRIM(CONCATENATE(AO169,V171,V173,V175,V177)),Lookup!$F$97:$F$365,0)))))) ->  | AQ169: =IF(AP169<=0,NA(),IF(OR(AO169="Permeable Pavement Facility",AO169="Vegetated Roof System",AO169="Rainwater Harvesting - Category 1",AO169="Rainwater Harvesting - Category 4"),H171, IF(AO169="Sidewalk/Trail Compost-Amended Strip",MAX(V169/H171,AP169*V169), IF(OR(AO169="Infiltrating Soil Cell Bioretention with Tree",AO169="Non-Infiltrating Soil Cell Bioretention with Tree"),MAX(AP169*V169,AQ177), AP169*V169)))) ->  | AR169: =IF(AO169="Residential Cistern", "sf",INDEX(Lookup!$I$97:$I$365,MATCH(TRIM(CONCATENATE(AO169,V171,V173,V175,V177)),Lookup!$F$97:$F$365,0))) ->  | AS169: =IF(AO169="Trees", INDEX(Lookup!$H$97:$H$365,MATCH(TRIM(CONCATENATE(AO169,V171)),Lookup!$F$97:$F$365,0))*V173, IF(AO169="Residential Cistern", INDEX(Lookup!$H$97:$H$365,MATCH(TRIM(CONCATENATE(AO169,IF(V169<400,0,IF(V169>4200,4201,ROUNDDOWN(V169,-2))))),Lookup!$F$97:$F$365,0))*V169, IF(AND(AO169="Sidewalk/Trail Compost-Amended Strip",OR(H171="",InfRate=0)),NA(), INDEX(Lookup!$H$97:$H$365,MATCH(TRIM(CONCATENATE(AO169,V171,V173,V175,V177)),Lookup!$F$97:$F$365,0))*V169)))*7.48052 *IF(OR(AO169="Permeable Pavement Facility",AO169="Vegetated Roof System"),MIN(1,H171/(AP169*V169)),1) +IF(AO169="Permeable Pavement Facility",H171*2.1*7.48052,1) ->  | AT169: =IFERROR( IF(AO169="Residential Cistern",INDEX(Lookup!$I$97:$I$365,MATCH(TRIM(CONCATENATE(AO169,IF(V169<400,0,IF(V169>4200,4201,ROUNDDOWN(V169,-2))))),Lookup!$F$97:$F$365,0)), IF(AO169="Sidewalk/Trail Compost-Amended Strip",ROUND(AQ169/(V169/H171),1) &" ft wide x "& ROUND(V169/H171,0)&" ft long", IF(OR(AO169="Rainwater Harvesting - Category 1",AO169="Rainwater Harvesting - Category 4")," required minimum live storage", IF(AO169="Water Quality BMP in lieu of NIB","See Plan", IF(AND(V171="",V173="",V175=""),"",TRIM(V173&" "&AP173&" "&V171&" "&AP171&" "&V175&" "&AP175)))))),"") -> 
B171: =IFERROR( IF(AO169="Permeable Pavement Facility","Facility Area (sf)", IF(AO169="Vegetated Roof System","Vegetated Area (sf)", IF(AO169="Sidewalk/Trail Compost-Amended Strip","Sidewalk/Trail Width (ft)", IF(OR(AO169="Rainwater Harvesting - Category 1",AO169="Rainwater Harvesting - Category 4"),"Live Storage Volume (gal)", "")))),"") ->  | N171: =IFERROR(INDEX(Lookup!$C$70:$C$94,MATCH(AO169,Lookup!$A$70:$A$94,0)),"") ->  | AC171: =IFERROR(TEXT(AS169,"#,##0")&" gal managed/year",IFERROR(IF(AP169=0,"Infiltration rate too low.",""),"")) ->  | AO171: =TRIM(SUBSTITUTE(SUBSTITUTE(SUBSTITUTE(AO169," ",""),"-",""),"/","")&"List1") ->  | AP171: =IFERROR(INDEX(Lookup!$G$70:$G$94,MATCH(AO169,Lookup!$A$70:$A$94,0)),"") -> 
B173: =IFERROR( IF(OR(AO169="Permeable Pavement Facility",AO169="Vegetated Roof System"),"Minimum Facility Area "&TEXT((AP169*V169),"#,###")&" sf", IF(OR(AO169="Rainwater Harvesting - Category 1",AO169="Rainwater Harvesting - Category 4"),"Continuous runoff modeling required by", "")),"") ->  | N173: =IFERROR(INDEX(Lookup!$D$70:$D$94,MATCH(AO169,Lookup!$A$70:$A$94,0)),"") ->  | AC173: =IFERROR(IF(AO169="Sidewalk/Trail Compost-Amended Strip",ROUND(AQ169/(V169/H171),1) &" ft wide compost-amended strip", IF(OR(AO169="Infiltrating Soil Cell Bioretention with Tree",AO169="Non-Infiltrating Soil Cell Bioretention with Tree"),"BMP size excludes tree planting area", IF(AO169="Residential Cistern",IF(AQ169=-999,"",IF(V169<800,3,IF(V169<1300,4,5)))&" ft live storage", ""))),"") ->  | AO173: =TRIM(SUBSTITUTE(SUBSTITUTE(SUBSTITUTE(AO169," ",""),"-",""),"/","")&"List2") ->  | AP173: =IFERROR(INDEX(Lookup!$H$70:$H$94,MATCH(AO169,Lookup!$A$70:$A$94,0)),"") -> 
B175: =IFERROR(IF(OR(AO169="Rainwater Harvesting - Category 1",AO169="Rainwater Harvesting - Category 4"),"professional engineer.", ""),"") ->  | N175: =IFERROR(INDEX(Lookup!$E$70:$E$94,MATCH(AO169,Lookup!$A$70:$A$94,0)),"") ->  | AC175: =IFERROR(IF(AO169="Sidewalk/Trail Compost-Amended Strip",IF(AND(AC173="",H171<>""),"","along full "& ROUND(V169/H171,0) &" ft trail/sidewalk"),""),"") ->  | AO175: =TRIM(SUBSTITUTE(SUBSTITUTE(SUBSTITUTE(AO169," ",""),"-",""),"/","")&"List3") ->  | AP175: =IFERROR(INDEX(Lookup!$H$70:$H$94,MATCH(AO171,Lookup!$A$70:$A$94,0)),"") ->  | AQ175: =IF(OR(AO169="Infiltrating Soil Cell Bioretention with Tree",AO169="Non-Infiltrating Soil Cell Bioretention with Tree"),"min footprint to meet soil volume","") ->  | AR175: =IF(OR(AO169="Infiltrating Soil Cell Bioretention with Tree",AO169="Non-Infiltrating Soil Cell Bioretention with Tree"),"min soil volume","") -> 
N177: =IFERROR(INDEX(Lookup!$F$70:$F$94,MATCH(AO169,Lookup!$A$70:$A$94,0)),"") ->  | AO177: =TRIM(SUBSTITUTE(SUBSTITUTE(SUBSTITUTE(AO169," ",""),"-",""),"/","")&"List4") ->  | AQ177: =IF(AO169="Infiltrating Soil Cell Bioretention with Tree",AR177/(V177/12), IF(AO169="Non-Infiltrating Soil Cell Bioretention with Tree",AR177/(V175/12),"")) ->  | AR177: =IF(AO169="Infiltrating Soil Cell Bioretention with Tree",_xlfn.XLOOKUP(V175,InfiltratingSoilCellBioretentionwithTreeList3,Lookup!$U$51:$U$55), IF(AO169="Non-Infiltrating Soil Cell Bioretention with Tree",_xlfn.XLOOKUP(V173,NonInfiltratingSoilCellBioretentionwithTreeList2,Lookup!$U$51:$U$55,""))) -> 
B179: =IFERROR(IF(INDEX($K$7:$K$46,MATCH(AN179,$AO$7:$AO$46,0))="","",INDEX($K$7:$K$46,MATCH(AN179,$AO$7:$AO$46,0))),"") ->  | N179: =IF(B179="","",IF(AO179="Vegetated Roof System","Roof Area","Contributing Area (sf)")) ->  | V179: =IF(B179="","",SUMIF($AO$7:$AO$46,AN179,$F$7:$I$46)) ->  | AC179: =IFERROR(IF(AO179="Water Quality BMP in lieu of NIB","Submit sizing documentation separately.", IF(AP179=-999,"Configuration not allowed.",IF(AP179=0,"Configuration not allowed.",IF(AO179="Trees","As many as feasible.", IF(AP179="equation",TEXT(AQ179,"#,##0")&" "&AR179, TEXT(IF(OR(AO179="Permeable Pavement Facility",AO179="Vegetated Roof System",AO179="Rainwater Harvesting - Category 1", AO179="Rainwater Harvesting - Category 4"),H181, IF(AO179="Sidewalk/Trail Compost-Amended Strip",MAX(V179/H181,AP179*V179), IF(OR(AO179="Infiltrating Soil Cell Bioretention with Tree",AO179="Non-Infiltrating Soil Cell Bioretention with Tree"),MAX(AP179*V179,AQ187), AP179*V179))),"#,##0")&" "&AR179))))),"") ->  | AN179: 14 | AO179: =INDEX($AP$7:$AP$46,MATCH(AN179,$AO$7:$AO$46,0)) ->  | AP179: =IF(AO179="Trees", INDEX(Lookup!$G$97:$G$365,MATCH(TRIM(CONCATENATE(AO179,V181)),Lookup!$F$97:$F$365,0)), IF(AO179="Residential Cistern", INDEX(Lookup!$G$97:$G$365,MATCH(TRIM(CONCATENATE(AO179,IF(V179<400,0,IF(V179>4200,4201,ROUNDDOWN(V179,-2))))),Lookup!$F$97:$F$365,0)), IF(AO179="Sidewalk/Trail Compost-Amended Strip", IF(H181="",NA(),IF(H181<10,Lookup!$G$99,Lookup!$G$98)), IF(AND(AO179="Non-Infiltrating Bioretention",V183="Sloped sides",V181=6),IF(V179<=2000,0.025,0.028), INDEX(Lookup!$G$97:$G$365,MATCH(TRIM(CONCATENATE(AO179,V181,V183,V185,V187)),Lookup!$F$97:$F$365,0)))))) ->  | AQ179: =IF(AP179<=0,NA(),IF(OR(AO179="Permeable Pavement Facility",AO179="Vegetated Roof System",AO179="Rainwater Harvesting - Category 1",AO179="Rainwater Harvesting - Category 4"),H181, IF(AO179="Sidewalk/Trail Compost-Amended Strip",MAX(V179/H181,AP179*V179), IF(OR(AO179="Infiltrating Soil Cell Bioretention with Tree",AO179="Non-Infiltrating Soil Cell Bioretention with Tree"),MAX(AP179*V179,AQ187), AP179*V179)))) ->  | AR179: =IF(AO179="Residential Cistern", "sf",INDEX(Lookup!$I$97:$I$365,MATCH(TRIM(CONCATENATE(AO179,V181,V183,V185,V187)),Lookup!$F$97:$F$365,0))) ->  | AS179: =IF(AO179="Trees", INDEX(Lookup!$H$97:$H$365,MATCH(TRIM(CONCATENATE(AO179,V181)),Lookup!$F$97:$F$365,0))*V183, IF(AO179="Residential Cistern", INDEX(Lookup!$H$97:$H$365,MATCH(TRIM(CONCATENATE(AO179,IF(V179<400,0,IF(V179>4200,4201,ROUNDDOWN(V179,-2))))),Lookup!$F$97:$F$365,0))*V179, IF(AND(AO179="Sidewalk/Trail Compost-Amended Strip",OR(H181="",InfRate=0)),NA(), INDEX(Lookup!$H$97:$H$365,MATCH(TRIM(CONCATENATE(AO179,V181,V183,V185,V187)),Lookup!$F$97:$F$365,0))*V179)))*7.48052 *IF(OR(AO179="Permeable Pavement Facility",AO179="Vegetated Roof System"),MIN(1,H181/(AP179*V179)),1) +IF(AO179="Permeable Pavement Facility",H181*2.1*7.48052,1) ->  | AT179: =IFERROR( IF(AO179="Residential Cistern",INDEX(Lookup!$I$97:$I$365,MATCH(TRIM(CONCATENATE(AO179,IF(V179<400,0,IF(V179>4200,4201,ROUNDDOWN(V179,-2))))),Lookup!$F$97:$F$365,0)), IF(AO179="Sidewalk/Trail Compost-Amended Strip",ROUND(AQ179/(V179/H181),1) &" ft wide x "& ROUND(V179/H181,0)&" ft long", IF(OR(AO179="Rainwater Harvesting - Category 1",AO179="Rainwater Harvesting - Category 4")," required minimum live storage", IF(AO179="Water Quality BMP in lieu of NIB","See Plan", IF(AND(V181="",V183="",V185=""),"",TRIM(V183&" "&AP183&" "&V181&" "&AP181&" "&V185&" "&AP185)))))),"") -> 
B181: =IFERROR( IF(AO179="Permeable Pavement Facility","Facility Area (sf)", IF(AO179="Vegetated Roof System","Vegetated Area (sf)", IF(AO179="Sidewalk/Trail Compost-Amended Strip","Sidewalk/Trail Width (ft)", IF(OR(AO179="Rainwater Harvesting - Category 1",AO179="Rainwater Harvesting - Category 4"),"Live Storage Volume (gal)", "")))),"") ->  | N181: =IFERROR(INDEX(Lookup!$C$70:$C$94,MATCH(AO179,Lookup!$A$70:$A$94,0)),"") ->  | AC181: =IFERROR(TEXT(AS179,"#,##0")&" gal managed/year",IFERROR(IF(AP179=0,"Infiltration rate too low.",""),"")) ->  | AO181: =TRIM(SUBSTITUTE(SUBSTITUTE(SUBSTITUTE(AO179," ",""),"-",""),"/","")&"List1") ->  | AP181: =IFERROR(INDEX(Lookup!$G$70:$G$94,MATCH(AO179,Lookup!$A$70:$A$94,0)),"") -> 
B183: =IFERROR( IF(OR(AO179="Permeable Pavement Facility",AO179="Vegetated Roof System"),"Minimum Facility Area "&TEXT((AP179*V179),"#,###")&" sf", IF(OR(AO179="Rainwater Harvesting - Category 1",AO179="Rainwater Harvesting - Category 4"),"Continuous runoff modeling required by", "")),"") ->  | N183: =IFERROR(INDEX(Lookup!$D$70:$D$94,MATCH(AO179,Lookup!$A$70:$A$94,0)),"") ->  | AC183: =IFERROR(IF(AO179="Sidewalk/Trail Compost-Amended Strip",ROUND(AQ179/(V179/H181),1) &" ft wide compost-amended strip", IF(OR(AO179="Infiltrating Soil Cell Bioretention with Tree",AO179="Non-Infiltrating Soil Cell Bioretention with Tree"),"BMP size excludes tree planting area", IF(AO179="Residential Cistern",IF(AQ179=-999,"",IF(V179<800,3,IF(V179<1300,4,5)))&" ft live storage", ""))),"") ->  | AO183: =TRIM(SUBSTITUTE(SUBSTITUTE(SUBSTITUTE(AO179," ",""),"-",""),"/","")&"List2") ->  | AP183: =IFERROR(INDEX(Lookup!$H$70:$H$94,MATCH(AO179,Lookup!$A$70:$A$94,0)),"") -> 
B185: =IFERROR(IF(OR(AO179="Rainwater Harvesting - Category 1",AO179="Rainwater Harvesting - Category 4"),"professional engineer.", ""),"") ->  | N185: =IFERROR(INDEX(Lookup!$E$70:$E$94,MATCH(AO179,Lookup!$A$70:$A$94,0)),"") ->  | AC185: =IFERROR(IF(AO179="Sidewalk/Trail Compost-Amended Strip",IF(AND(AC183="",H181<>""),"","along full "& ROUND(V179/H181,0) &" ft trail/sidewalk"),""),"") ->  | AO185: =TRIM(SUBSTITUTE(SUBSTITUTE(SUBSTITUTE(AO179," ",""),"-",""),"/","")&"List3") ->  | AP185: =IFERROR(INDEX(Lookup!$H$70:$H$94,MATCH(AO181,Lookup!$A$70:$A$94,0)),"") ->  | AQ185: =IF(OR(AO179="Infiltrating Soil Cell Bioretention with Tree",AO179="Non-Infiltrating Soil Cell Bioretention with Tree"),"min footprint to meet soil volume","") ->  | AR185: =IF(OR(AO179="Infiltrating Soil Cell Bioretention with Tree",AO179="Non-Infiltrating Soil Cell Bioretention with Tree"),"min soil volume","") -> 
N187: =IFERROR(INDEX(Lookup!$F$70:$F$94,MATCH(AO179,Lookup!$A$70:$A$94,0)),"") ->  | AO187: =TRIM(SUBSTITUTE(SUBSTITUTE(SUBSTITUTE(AO179," ",""),"-",""),"/","")&"List4") ->  | AQ187: =IF(AO179="Infiltrating Soil Cell Bioretention with Tree",AR187/(V187/12), IF(AO179="Non-Infiltrating Soil Cell Bioretention with Tree",AR187/(V185/12),"")) ->  | AR187: =IF(AO179="Infiltrating Soil Cell Bioretention with Tree",_xlfn.XLOOKUP(V185,InfiltratingSoilCellBioretentionwithTreeList3,Lookup!$U$51:$U$55), IF(AO179="Non-Infiltrating Soil Cell Bioretention with Tree",_xlfn.XLOOKUP(V183,NonInfiltratingSoilCellBioretentionwithTreeList2,Lookup!$U$51:$U$55,""))) -> 
B189: =IFERROR(IF(INDEX($K$7:$K$46,MATCH(AN189,$AO$7:$AO$46,0))="","",INDEX($K$7:$K$46,MATCH(AN189,$AO$7:$AO$46,0))),"") ->  | N189: =IF(B189="","",IF(AO189="Vegetated Roof System","Roof Area","Contributing Area (sf)")) ->  | V189: =IF(B189="","",SUMIF($AO$7:$AO$46,AN189,$F$7:$I$46)) ->  | AC189: =IFERROR(IF(AO189="Water Quality BMP in lieu of NIB","Submit sizing documentation separately.", IF(AP189=-999,"Configuration not allowed.",IF(AP189=0,"Configuration not allowed.",IF(AO189="Trees","As many as feasible.", IF(AP189="equation",TEXT(AQ189,"#,##0")&" "&AR189, TEXT(IF(OR(AO189="Permeable Pavement Facility",AO189="Vegetated Roof System",AO189="Rainwater Harvesting - Category 1", AO189="Rainwater Harvesting - Category 4"),H191, IF(AO189="Sidewalk/Trail Compost-Amended Strip",MAX(V189/H191,AP189*V189), IF(OR(AO189="Infiltrating Soil Cell Bioretention with Tree",AO189="Non-Infiltrating Soil Cell Bioretention with Tree"),MAX(AP189*V189,AQ197), AP189*V189))),"#,##0")&" "&AR189))))),"") ->  | AN189: 15 | AO189: =INDEX($AP$7:$AP$46,MATCH(AN189,$AO$7:$AO$46,0)) ->  | AP189: =IF(AO189="Trees", INDEX(Lookup!$G$97:$G$365,MATCH(TRIM(CONCATENATE(AO189,V191)),Lookup!$F$97:$F$365,0)), IF(AO189="Residential Cistern", INDEX(Lookup!$G$97:$G$365,MATCH(TRIM(CONCATENATE(AO189,IF(V189<400,0,IF(V189>4200,4201,ROUNDDOWN(V189,-2))))),Lookup!$F$97:$F$365,0)), IF(AO189="Sidewalk/Trail Compost-Amended Strip", IF(H191="",NA(),IF(H191<10,Lookup!$G$99,Lookup!$G$98)), IF(AND(AO189="Non-Infiltrating Bioretention",V193="Sloped sides",V191=6),IF(V189<=2000,0.025,0.028), INDEX(Lookup!$G$97:$G$365,MATCH(TRIM(CONCATENATE(AO189,V191,V193,V195,V197)),Lookup!$F$97:$F$365,0)))))) ->  | AQ189: =IF(AP189<=0,NA(),IF(OR(AO189="Permeable Pavement Facility",AO189="Vegetated Roof System",AO189="Rainwater Harvesting - Category 1",AO189="Rainwater Harvesting - Category 4"),H191, IF(AO189="Sidewalk/Trail Compost-Amended Strip",MAX(V189/H191,AP189*V189), IF(OR(AO189="Infiltrating Soil Cell Bioretention with Tree",AO189="Non-Infiltrating Soil Cell Bioretention with Tree"),MAX(AP189*V189,AQ197), AP189*V189)))) ->  | AR189: =IF(AO189="Residential Cistern", "sf",INDEX(Lookup!$I$97:$I$365,MATCH(TRIM(CONCATENATE(AO189,V191,V193,V195,V197)),Lookup!$F$97:$F$365,0))) ->  | AS189: =IF(AO189="Trees", INDEX(Lookup!$H$97:$H$365,MATCH(TRIM(CONCATENATE(AO189,V191)),Lookup!$F$97:$F$365,0))*V193, IF(AO189="Residential Cistern", INDEX(Lookup!$H$97:$H$365,MATCH(TRIM(CONCATENATE(AO189,IF(V189<400,0,IF(V189>4200,4201,ROUNDDOWN(V189,-2))))),Lookup!$F$97:$F$365,0))*V189, IF(AND(AO189="Sidewalk/Trail Compost-Amended Strip",OR(H191="",InfRate=0)),NA(), INDEX(Lookup!$H$97:$H$365,MATCH(TRIM(CONCATENATE(AO189,V191,V193,V195,V197)),Lookup!$F$97:$F$365,0))*V189)))*7.48052 *IF(OR(AO189="Permeable Pavement Facility",AO189="Vegetated Roof System"),MIN(1,H191/(AP189*V189)),1) +IF(AO189="Permeable Pavement Facility",H191*2.1*7.48052,1) ->  | AT189: =IFERROR( IF(AO189="Residential Cistern",INDEX(Lookup!$I$97:$I$365,MATCH(TRIM(CONCATENATE(AO189,IF(V189<400,0,IF(V189>4200,4201,ROUNDDOWN(V189,-2))))),Lookup!$F$97:$F$365,0)), IF(AO189="Sidewalk/Trail Compost-Amended Strip",ROUND(AQ189/(V189/H191),1) &" ft wide x "& ROUND(V189/H191,0)&" ft long", IF(OR(AO189="Rainwater Harvesting - Category 1",AO189="Rainwater Harvesting - Category 4")," required minimum live storage", IF(AO189="Water Quality BMP in lieu of NIB","See Plan", IF(AND(V191="",V193="",V195=""),"",TRIM(V193&" "&AP193&" "&V191&" "&AP191&" "&V195&" "&AP195)))))),"") -> 
B191: =IFERROR( IF(AO189="Permeable Pavement Facility","Facility Area (sf)", IF(AO189="Vegetated Roof System","Vegetated Area (sf)", IF(AO189="Sidewalk/Trail Compost-Amended Strip","Sidewalk/Trail Width (ft)", IF(OR(AO189="Rainwater Harvesting - Category 1",AO189="Rainwater Harvesting - Category 4"),"Live Storage Volume (gal)", "")))),"") ->  | N191: =IFERROR(INDEX(Lookup!$C$70:$C$94,MATCH(AO189,Lookup!$A$70:$A$94,0)),"") ->  | AC191: =IFERROR(TEXT(AS189,"#,##0")&" gal managed/year",IFERROR(IF(AP189=0,"Infiltration rate too low.",""),"")) ->  | AO191: =TRIM(SUBSTITUTE(SUBSTITUTE(SUBSTITUTE(AO189," ",""),"-",""),"/","")&"List1") ->  | AP191: =IFERROR(INDEX(Lookup!$G$70:$G$94,MATCH(AO189,Lookup!$A$70:$A$94,0)),"") -> 
B193: =IFERROR( IF(OR(AO189="Permeable Pavement Facility",AO189="Vegetated Roof System"),"Minimum Facility Area "&TEXT((AP189*V189),"#,###")&" sf", IF(OR(AO189="Rainwater Harvesting - Category 1",AO189="Rainwater Harvesting - Category 4"),"Continuous runoff modeling required by", "")),"") ->  | N193: =IFERROR(INDEX(Lookup!$D$70:$D$94,MATCH(AO189,Lookup!$A$70:$A$94,0)),"") ->  | AC193: =IFERROR(IF(AO189="Sidewalk/Trail Compost-Amended Strip",ROUND(AQ189/(V189/H191),1) &" ft wide compost-amended strip", IF(OR(AO189="Infiltrating Soil Cell Bioretention with Tree",AO189="Non-Infiltrating Soil Cell Bioretention with Tree"),"BMP size excludes tree planting area", IF(AO189="Residential Cistern",IF(AQ189=-999,"",IF(V189<800,3,IF(V189<1300,4,5)))&" ft live storage", ""))),"") ->  | AO193: =TRIM(SUBSTITUTE(SUBSTITUTE(SUBSTITUTE(AO189," ",""),"-",""),"/","")&"List2") ->  | AP193: =IFERROR(INDEX(Lookup!$H$70:$H$94,MATCH(AO189,Lookup!$A$70:$A$94,0)),"") -> 
B195: =IFERROR(IF(OR(AO189="Rainwater Harvesting - Category 1",AO189="Rainwater Harvesting - Category 4"),"professional engineer.", ""),"") ->  | N195: =IFERROR(INDEX(Lookup!$E$70:$E$94,MATCH(AO189,Lookup!$A$70:$A$94,0)),"") ->  | AC195: =IFERROR(IF(AO189="Sidewalk/Trail Compost-Amended Strip",IF(AND(AC193="",H191<>""),"","along full "& ROUND(V189/H191,0) &" ft trail/sidewalk"),""),"") ->  | AO195: =TRIM(SUBSTITUTE(SUBSTITUTE(SUBSTITUTE(AO189," ",""),"-",""),"/","")&"List3") ->  | AP195: =IFERROR(INDEX(Lookup!$H$70:$H$94,MATCH(AO191,Lookup!$A$70:$A$94,0)),"") ->  | AQ195: =IF(OR(AO189="Infiltrating Soil Cell Bioretention with Tree",AO189="Non-Infiltrating Soil Cell Bioretention with Tree"),"min footprint to meet soil volume","") ->  | AR195: =IF(OR(AO189="Infiltrating Soil Cell Bioretention with Tree",AO189="Non-Infiltrating Soil Cell Bioretention with Tree"),"min soil volume","") -> 
N197: =IFERROR(INDEX(Lookup!$F$70:$F$94,MATCH(AO189,Lookup!$A$70:$A$94,0)),"") ->  | AO197: =TRIM(SUBSTITUTE(SUBSTITUTE(SUBSTITUTE(AO189," ",""),"-",""),"/","")&"List4") ->  | AQ197: =IF(AO189="Infiltrating Soil Cell Bioretention with Tree",AR197/(V197/12), IF(AO189="Non-Infiltrating Soil Cell Bioretention with Tree",AR197/(V195/12),"")) ->  | AR197: =IF(AO189="Infiltrating Soil Cell Bioretention with Tree",_xlfn.XLOOKUP(V195,InfiltratingSoilCellBioretentionwithTreeList3,Lookup!$U$51:$U$55), IF(AO189="Non-Infiltrating Soil Cell Bioretention with Tree",_xlfn.XLOOKUP(V193,NonInfiltratingSoilCellBioretentionwithTreeList2,Lookup!$U$51:$U$55,""))) -> 
B199: =IFERROR(IF(INDEX($K$7:$K$46,MATCH(AN199,$AO$7:$AO$46,0))="","",INDEX($K$7:$K$46,MATCH(AN199,$AO$7:$AO$46,0))),"") ->  | N199: =IF(B199="","",IF(AO199="Vegetated Roof System","Roof Area","Contributing Area (sf)")) ->  | V199: =IF(B199="","",SUMIF($AO$7:$AO$46,AN199,$F$7:$I$46)) ->  | AC199: =IFERROR(IF(AO199="Water Quality BMP in lieu of NIB","Submit sizing documentation separately.", IF(AP199=-999,"Configuration not allowed.",IF(AP199=0,"Configuration not allowed.",IF(AO199="Trees","As many as feasible.", IF(AP199="equation",TEXT(AQ199,"#,##0")&" "&AR199, TEXT(IF(OR(AO199="Permeable Pavement Facility",AO199="Vegetated Roof System",AO199="Rainwater Harvesting - Category 1", AO199="Rainwater Harvesting - Category 4"),H201, IF(AO199="Sidewalk/Trail Compost-Amended Strip",MAX(V199/H201,AP199*V199), IF(OR(AO199="Infiltrating Soil Cell Bioretention with Tree",AO199="Non-Infiltrating Soil Cell Bioretention with Tree"),MAX(AP199*V199,AQ207), AP199*V199))),"#,##0")&" "&AR199))))),"") ->  | AN199: 16 | AO199: =INDEX($AP$7:$AP$46,MATCH(AN199,$AO$7:$AO$46,0)) ->  | AP199: =IF(AO199="Trees", INDEX(Lookup!$G$97:$G$365,MATCH(TRIM(CONCATENATE(AO199,V201)),Lookup!$F$97:$F$365,0)), IF(AO199="Residential Cistern", INDEX(Lookup!$G$97:$G$365,MATCH(TRIM(CONCATENATE(AO199,IF(V199<400,0,IF(V199>4200,4201,ROUNDDOWN(V199,-2))))),Lookup!$F$97:$F$365,0)), IF(AO199="Sidewalk/Trail Compost-Amended Strip", IF(H201="",NA(),IF(H201<10,Lookup!$G$99,Lookup!$G$98)), IF(AND(AO199="Non-Infiltrating Bioretention",V203="Sloped sides",V201=6),IF(V199<=2000,0.025,0.028), INDEX(Lookup!$G$97:$G$365,MATCH(TRIM(CONCATENATE(AO199,V201,V203,V205,V207)),Lookup!$F$97:$F$365,0)))))) ->  | AQ199: =IF(AP199<=0,NA(),IF(OR(AO199="Permeable Pavement Facility",AO199="Vegetated Roof System",AO199="Rainwater Harvesting - Category 1",AO199="Rainwater Harvesting - Category 4"),H201, IF(AO199="Sidewalk/Trail Compost-Amended Strip",MAX(V199/H201,AP199*V199), IF(OR(AO199="Infiltrating Soil Cell Bioretention with Tree",AO199="Non-Infiltrating Soil Cell Bioretention with Tree"),MAX(AP199*V199,AQ207), AP199*V199)))) ->  | AR199: =IF(AO199="Residential Cistern", "sf",INDEX(Lookup!$I$97:$I$365,MATCH(TRIM(CONCATENATE(AO199,V201,V203,V205,V207)),Lookup!$F$97:$F$365,0))) ->  | AS199: =IF(AO199="Trees", INDEX(Lookup!$H$97:$H$365,MATCH(TRIM(CONCATENATE(AO199,V201)),Lookup!$F$97:$F$365,0))*V203, IF(AO199="Residential Cistern", INDEX(Lookup!$H$97:$H$365,MATCH(TRIM(CONCATENATE(AO199,IF(V199<400,0,IF(V199>4200,4201,ROUNDDOWN(V199,-2))))),Lookup!$F$97:$F$365,0))*V199, IF(AND(AO199="Sidewalk/Trail Compost-Amended Strip",OR(H201="",InfRate=0)),NA(), INDEX(Lookup!$H$97:$H$365,MATCH(TRIM(CONCATENATE(AO199,V201,V203,V205,V207)),Lookup!$F$97:$F$365,0))*V199)))*7.48052 *IF(OR(AO199="Permeable Pavement Facility",AO199="Vegetated Roof System"),MIN(1,H201/(AP199*V199)),1) +IF(AO199="Permeable Pavement Facility",H201*2.1*7.48052,1) ->  | AT199: =IFERROR( IF(AO199="Residential Cistern",INDEX(Lookup!$I$97:$I$365,MATCH(TRIM(CONCATENATE(AO199,IF(V199<400,0,IF(V199>4200,4201,ROUNDDOWN(V199,-2))))),Lookup!$F$97:$F$365,0)), IF(AO199="Sidewalk/Trail Compost-Amended Strip",ROUND(AQ199/(V199/H201),1) &" ft wide x "& ROUND(V199/H201,0)&" ft long", IF(OR(AO199="Rainwater Harvesting - Category 1",AO199="Rainwater Harvesting - Category 4")," required minimum live storage", IF(AO199="Water Quality BMP in lieu of NIB","See Plan", IF(AND(V201="",V203="",V205=""),"",TRIM(V203&" "&AP203&" "&V201&" "&AP201&" "&V205&" "&AP205)))))),"") -> 
B201: =IFERROR( IF(AO199="Permeable Pavement Facility","Facility Area (sf)", IF(AO199="Vegetated Roof System","Vegetated Area (sf)", IF(AO199="Sidewalk/Trail Compost-Amended Strip","Sidewalk/Trail Width (ft)", IF(OR(AO199="Rainwater Harvesting - Category 1",AO199="Rainwater Harvesting - Category 4"),"Live Storage Volume (gal)", "")))),"") ->  | N201: =IFERROR(INDEX(Lookup!$C$70:$C$94,MATCH(AO199,Lookup!$A$70:$A$94,0)),"") ->  | AC201: =IFERROR(TEXT(AS199,"#,##0")&" gal managed/year",IFERROR(IF(AP199=0,"Infiltration rate too low.",""),"")) ->  | AO201: =TRIM(SUBSTITUTE(SUBSTITUTE(SUBSTITUTE(AO199," ",""),"-",""),"/","")&"List1") ->  | AP201: =IFERROR(INDEX(Lookup!$G$70:$G$94,MATCH(AO199,Lookup!$A$70:$A$94,0)),"") -> 
B203: =IFERROR( IF(OR(AO199="Permeable Pavement Facility",AO199="Vegetated Roof System"),"Minimum Facility Area "&TEXT((AP199*V199),"#,###")&" sf", IF(OR(AO199="Rainwater Harvesting - Category 1",AO199="Rainwater Harvesting - Category 4"),"Continuous runoff modeling required by", "")),"") ->  | N203: =IFERROR(INDEX(Lookup!$D$70:$D$94,MATCH(AO199,Lookup!$A$70:$A$94,0)),"") ->  | AC203: =IFERROR(IF(AO199="Sidewalk/Trail Compost-Amended Strip",ROUND(AQ199/(V199/H201),1) &" ft wide compost-amended strip", IF(OR(AO199="Infiltrating Soil Cell Bioretention with Tree",AO199="Non-Infiltrating Soil Cell Bioretention with Tree"),"BMP size excludes tree planting area", IF(AO199="Residential Cistern",IF(AQ199=-999,"",IF(V199<800,3,IF(V199<1300,4,5)))&" ft live storage", ""))),"") ->  | AO203: =TRIM(SUBSTITUTE(SUBSTITUTE(SUBSTITUTE(AO199," ",""),"-",""),"/","")&"List2") ->  | AP203: =IFERROR(INDEX(Lookup!$H$70:$H$94,MATCH(AO199,Lookup!$A$70:$A$94,0)),"") -> 
B205: =IFERROR(IF(OR(AO199="Rainwater Harvesting - Category 1",AO199="Rainwater Harvesting - Category 4"),"professional engineer.", ""),"") ->  | N205: =IFERROR(INDEX(Lookup!$E$70:$E$94,MATCH(AO199,Lookup!$A$70:$A$94,0)),"") ->  | AC205: =IFERROR(IF(AO199="Sidewalk/Trail Compost-Amended Strip",IF(AND(AC203="",H201<>""),"","along full "& ROUND(V199/H201,0) &" ft trail/sidewalk"),""),"") ->  | AO205: =TRIM(SUBSTITUTE(SUBSTITUTE(SUBSTITUTE(AO199," ",""),"-",""),"/","")&"List3") ->  | AP205: =IFERROR(INDEX(Lookup!$H$70:$H$94,MATCH(AO201,Lookup!$A$70:$A$94,0)),"") ->  | AQ205: =IF(OR(AO199="Infiltrating Soil Cell Bioretention with Tree",AO199="Non-Infiltrating Soil Cell Bioretention with Tree"),"min footprint to meet soil volume","") ->  | AR205: =IF(OR(AO199="Infiltrating Soil Cell Bioretention with Tree",AO199="Non-Infiltrating Soil Cell Bioretention with Tree"),"min soil volume","") -> 
N207: =IFERROR(INDEX(Lookup!$F$70:$F$94,MATCH(AO199,Lookup!$A$70:$A$94,0)),"") ->  | AO207: =TRIM(SUBSTITUTE(SUBSTITUTE(SUBSTITUTE(AO199," ",""),"-",""),"/","")&"List4") ->  | AQ207: =IF(AO199="Infiltrating Soil Cell Bioretention with Tree",AR207/(V207/12), IF(AO199="Non-Infiltrating Soil Cell Bioretention with Tree",AR207/(V205/12),"")) ->  | AR207: =IF(AO199="Infiltrating Soil Cell Bioretention with Tree",_xlfn.XLOOKUP(V205,InfiltratingSoilCellBioretentionwithTreeList3,Lookup!$U$51:$U$55), IF(AO199="Non-Infiltrating Soil Cell Bioretention with Tree",_xlfn.XLOOKUP(V203,NonInfiltratingSoilCellBioretentionwithTreeList2,Lookup!$U$51:$U$55,""))) -> 
B209: =IFERROR(IF(INDEX($K$7:$K$46,MATCH(AN209,$AO$7:$AO$46,0))="","",INDEX($K$7:$K$46,MATCH(AN209,$AO$7:$AO$46,0))),"") ->  | N209: =IF(B209="","",IF(AO209="Vegetated Roof System","Roof Area","Contributing Area (sf)")) ->  | V209: =IF(B209="","",SUMIF($AO$7:$AO$46,AN209,$F$7:$I$46)) ->  | AC209: =IFERROR(IF(AO209="Water Quality BMP in lieu of NIB","Submit sizing documentation separately.", IF(AP209=-999,"Configuration not allowed.",IF(AP209=0,"Configuration not allowed.",IF(AO209="Trees","As many as feasible.", IF(AP209="equation",TEXT(AQ209,"#,##0")&" "&AR209, TEXT(IF(OR(AO209="Permeable Pavement Facility",AO209="Vegetated Roof System",AO209="Rainwater Harvesting - Category 1", AO209="Rainwater Harvesting - Category 4"),H211, IF(AO209="Sidewalk/Trail Compost-Amended Strip",MAX(V209/H211,AP209*V209), IF(OR(AO209="Infiltrating Soil Cell Bioretention with Tree",AO209="Non-Infiltrating Soil Cell Bioretention with Tree"),MAX(AP209*V209,AQ217), AP209*V209))),"#,##0")&" "&AR209))))),"") ->  | AN209: 17 | AO209: =INDEX($AP$7:$AP$46,MATCH(AN209,$AO$7:$AO$46,0)) ->  | AP209: =IF(AO209="Trees", INDEX(Lookup!$G$97:$G$365,MATCH(TRIM(CONCATENATE(AO209,V211)),Lookup!$F$97:$F$365,0)), IF(AO209="Residential Cistern", INDEX(Lookup!$G$97:$G$365,MATCH(TRIM(CONCATENATE(AO209,IF(V209<400,0,IF(V209>4200,4201,ROUNDDOWN(V209,-2))))),Lookup!$F$97:$F$365,0)), IF(AO209="Sidewalk/Trail Compost-Amended Strip", IF(H211="",NA(),IF(H211<10,Lookup!$G$99,Lookup!$G$98)), IF(AND(AO209="Non-Infiltrating Bioretention",V213="Sloped sides",V211=6),IF(V209<=2000,0.025,0.028), INDEX(Lookup!$G$97:$G$365,MATCH(TRIM(CONCATENATE(AO209,V211,V213,V215,V217)),Lookup!$F$97:$F$365,0)))))) ->  | AQ209: =IF(AP209<=0,NA(),IF(OR(AO209="Permeable Pavement Facility",AO209="Vegetated Roof System",AO209="Rainwater Harvesting - Category 1",AO209="Rainwater Harvesting - Category 4"),H211, IF(AO209="Sidewalk/Trail Compost-Amended Strip",MAX(V209/H211,AP209*V209), IF(OR(AO209="Infiltrating Soil Cell Bioretention with Tree",AO209="Non-Infiltrating Soil Cell Bioretention with Tree"),MAX(AP209*V209,AQ217), AP209*V209)))) ->  | AR209: =IF(AO209="Residential Cistern", "sf",INDEX(Lookup!$I$97:$I$365,MATCH(TRIM(CONCATENATE(AO209,V211,V213,V215,V217)),Lookup!$F$97:$F$365,0))) ->  | AS209: =IF(AO209="Trees", INDEX(Lookup!$H$97:$H$365,MATCH(TRIM(CONCATENATE(AO209,V211)),Lookup!$F$97:$F$365,0))*V213, IF(AO209="Residential Cistern", INDEX(Lookup!$H$97:$H$365,MATCH(TRIM(CONCATENATE(AO209,IF(V209<400,0,IF(V209>4200,4201,ROUNDDOWN(V209,-2))))),Lookup!$F$97:$F$365,0))*V209, IF(AND(AO209="Sidewalk/Trail Compost-Amended Strip",OR(H211="",InfRate=0)),NA(), INDEX(Lookup!$H$97:$H$365,MATCH(TRIM(CONCATENATE(AO209,V211,V213,V215,V217)),Lookup!$F$97:$F$365,0))*V209)))*7.48052 *IF(OR(AO209="Permeable Pavement Facility",AO209="Vegetated Roof System"),MIN(1,H211/(AP209*V209)),1) +IF(AO209="Permeable Pavement Facility",H211*2.1*7.48052,1) ->  | AT209: =IFERROR( IF(AO209="Residential Cistern",INDEX(Lookup!$I$97:$I$365,MATCH(TRIM(CONCATENATE(AO209,IF(V209<400,0,IF(V209>4200,4201,ROUNDDOWN(V209,-2))))),Lookup!$F$97:$F$365,0)), IF(AO209="Sidewalk/Trail Compost-Amended Strip",ROUND(AQ209/(V209/H211),1) &" ft wide x "& ROUND(V209/H211,0)&" ft long", IF(OR(AO209="Rainwater Harvesting - Category 1",AO209="Rainwater Harvesting - Category 4")," required minimum live storage", IF(AO209="Water Quality BMP in lieu of NIB","See Plan", IF(AND(V211="",V213="",V215=""),"",TRIM(V213&" "&AP213&" "&V211&" "&AP211&" "&V215&" "&AP215)))))),"") -> 
B211: =IFERROR( IF(AO209="Permeable Pavement Facility","Facility Area (sf)", IF(AO209="Vegetated Roof System","Vegetated Area (sf)", IF(AO209="Sidewalk/Trail Compost-Amended Strip","Sidewalk/Trail Width (ft)", IF(OR(AO209="Rainwater Harvesting - Category 1",AO209="Rainwater Harvesting - Category 4"),"Live Storage Volume (gal)", "")))),"") ->  | N211: =IFERROR(INDEX(Lookup!$C$70:$C$94,MATCH(AO209,Lookup!$A$70:$A$94,0)),"") ->  | AC211: =IFERROR(TEXT(AS209,"#,##0")&" gal managed/year",IFERROR(IF(AP209=0,"Infiltration rate too low.",""),"")) ->  | AO211: =TRIM(SUBSTITUTE(SUBSTITUTE(SUBSTITUTE(AO209," ",""),"-",""),"/","")&"List1") ->  | AP211: =IFERROR(INDEX(Lookup!$G$70:$G$94,MATCH(AO209,Lookup!$A$70:$A$94,0)),"") -> 
B213: =IFERROR( IF(OR(AO209="Permeable Pavement Facility",AO209="Vegetated Roof System"),"Minimum Facility Area "&TEXT((AP209*V209),"#,###")&" sf", IF(OR(AO209="Rainwater Harvesting - Category 1",AO209="Rainwater Harvesting - Category 4"),"Continuous runoff modeling required by", "")),"") ->  | N213: =IFERROR(INDEX(Lookup!$D$70:$D$94,MATCH(AO209,Lookup!$A$70:$A$94,0)),"") ->  | AC213: =IFERROR(IF(AO209="Sidewalk/Trail Compost-Amended Strip",ROUND(AQ209/(V209/H211),1) &" ft wide compost-amended strip", IF(OR(AO209="Infiltrating Soil Cell Bioretention with Tree",AO209="Non-Infiltrating Soil Cell Bioretention with Tree"),"BMP size excludes tree planting area", IF(AO209="Residential Cistern",IF(AQ209=-999,"",IF(V209<800,3,IF(V209<1300,4,5)))&" ft live storage", ""))),"") ->  | AO213: =TRIM(SUBSTITUTE(SUBSTITUTE(SUBSTITUTE(AO209," ",""),"-",""),"/","")&"List2") ->  | AP213: =IFERROR(INDEX(Lookup!$H$70:$H$94,MATCH(AO209,Lookup!$A$70:$A$94,0)),"") -> 
B215: =IFERROR(IF(OR(AO209="Rainwater Harvesting - Category 1",AO209="Rainwater Harvesting - Category 4"),"professional engineer.", ""),"") ->  | N215: =IFERROR(INDEX(Lookup!$E$70:$E$94,MATCH(AO209,Lookup!$A$70:$A$94,0)),"") ->  | AC215: =IFERROR(IF(AO209="Sidewalk/Trail Compost-Amended Strip",IF(AND(AC213="",H211<>""),"","along full "& ROUND(V209/H211,0) &" ft trail/sidewalk"),""),"") ->  | AO215: =TRIM(SUBSTITUTE(SUBSTITUTE(SUBSTITUTE(AO209," ",""),"-",""),"/","")&"List3") ->  | AP215: =IFERROR(INDEX(Lookup!$H$70:$H$94,MATCH(AO211,Lookup!$A$70:$A$94,0)),"") ->  | AQ215: =IF(OR(AO209="Infiltrating Soil Cell Bioretention with Tree",AO209="Non-Infiltrating Soil Cell Bioretention with Tree"),"min footprint to meet soil volume","") ->  | AR215: =IF(OR(AO209="Infiltrating Soil Cell Bioretention with Tree",AO209="Non-Infiltrating Soil Cell Bioretention with Tree"),"min soil volume","") -> 
N217: =IFERROR(INDEX(Lookup!$F$70:$F$94,MATCH(AO209,Lookup!$A$70:$A$94,0)),"") ->  | AO217: =TRIM(SUBSTITUTE(SUBSTITUTE(SUBSTITUTE(AO209," ",""),"-",""),"/","")&"List4") ->  | AQ217: =IF(AO209="Infiltrating Soil Cell Bioretention with Tree",AR217/(V217/12), IF(AO209="Non-Infiltrating Soil Cell Bioretention with Tree",AR217/(V215/12),"")) ->  | AR217: =IF(AO209="Infiltrating Soil Cell Bioretention with Tree",_xlfn.XLOOKUP(V215,InfiltratingSoilCellBioretentionwithTreeList3,Lookup!$U$51:$U$55), IF(AO209="Non-Infiltrating Soil Cell Bioretention with Tree",_xlfn.XLOOKUP(V213,NonInfiltratingSoilCellBioretentionwithTreeList2,Lookup!$U$51:$U$55,""))) -> 
B219: =IFERROR(IF(INDEX($K$7:$K$46,MATCH(AN219,$AO$7:$AO$46,0))="","",INDEX($K$7:$K$46,MATCH(AN219,$AO$7:$AO$46,0))),"") ->  | N219: =IF(B219="","",IF(AO219="Vegetated Roof System","Roof Area","Contributing Area (sf)")) ->  | V219: =IF(B219="","",SUMIF($AO$7:$AO$46,AN219,$F$7:$I$46)) ->  | AC219: =IFERROR(IF(AO219="Water Quality BMP in lieu of NIB","Submit sizing documentation separately.", IF(AP219=-999,"Configuration not allowed.",IF(AP219=0,"Configuration not allowed.",IF(AO219="Trees","As many as feasible.", IF(AP219="equation",TEXT(AQ219,"#,##0")&" "&AR219, TEXT(IF(OR(AO219="Permeable Pavement Facility",AO219="Vegetated Roof System",AO219="Rainwater Harvesting - Category 1", AO219="Rainwater Harvesting - Category 4"),H221, IF(AO219="Sidewalk/Trail Compost-Amended Strip",MAX(V219/H221,AP219*V219), IF(OR(AO219="Infiltrating Soil Cell Bioretention with Tree",AO219="Non-Infiltrating Soil Cell Bioretention with Tree"),MAX(AP219*V219,AQ227), AP219*V219))),"#,##0")&" "&AR219))))),"") ->  | AN219: 18 | AO219: =INDEX($AP$7:$AP$46,MATCH(AN219,$AO$7:$AO$46,0)) ->  | AP219: =IF(AO219="Trees", INDEX(Lookup!$G$97:$G$365,MATCH(TRIM(CONCATENATE(AO219,V221)),Lookup!$F$97:$F$365,0)), IF(AO219="Residential Cistern", INDEX(Lookup!$G$97:$G$365,MATCH(TRIM(CONCATENATE(AO219,IF(V219<400,0,IF(V219>4200,4201,ROUNDDOWN(V219,-2))))),Lookup!$F$97:$F$365,0)), IF(AO219="Sidewalk/Trail Compost-Amended Strip", IF(H221="",NA(),IF(H221<10,Lookup!$G$99,Lookup!$G$98)), IF(AND(AO219="Non-Infiltrating Bioretention",V223="Sloped sides",V221=6),IF(V219<=2000,0.025,0.028), INDEX(Lookup!$G$97:$G$365,MATCH(TRIM(CONCATENATE(AO219,V221,V223,V225,V227)),Lookup!$F$97:$F$365,0)))))) ->  | AQ219: =IF(AP219<=0,NA(),IF(OR(AO219="Permeable Pavement Facility",AO219="Vegetated Roof System",AO219="Rainwater Harvesting - Category 1",AO219="Rainwater Harvesting - Category 4"),H221, IF(AO219="Sidewalk/Trail Compost-Amended Strip",MAX(V219/H221,AP219*V219), IF(OR(AO219="Infiltrating Soil Cell Bioretention with Tree",AO219="Non-Infiltrating Soil Cell Bioretention with Tree"),MAX(AP219*V219,AQ227), AP219*V219)))) ->  | AR219: =IF(AO219="Residential Cistern", "sf",INDEX(Lookup!$I$97:$I$365,MATCH(TRIM(CONCATENATE(AO219,V221,V223,V225,V227)),Lookup!$F$97:$F$365,0))) ->  | AS219: =IF(AO219="Trees", INDEX(Lookup!$H$97:$H$365,MATCH(TRIM(CONCATENATE(AO219,V221)),Lookup!$F$97:$F$365,0))*V223, IF(AO219="Residential Cistern", INDEX(Lookup!$H$97:$H$365,MATCH(TRIM(CONCATENATE(AO219,IF(V219<400,0,IF(V219>4200,4201,ROUNDDOWN(V219,-2))))),Lookup!$F$97:$F$365,0))*V219, IF(AND(AO219="Sidewalk/Trail Compost-Amended Strip",OR(H221="",InfRate=0)),NA(), INDEX(Lookup!$H$97:$H$365,MATCH(TRIM(CONCATENATE(AO219,V221,V223,V225,V227)),Lookup!$F$97:$F$365,0))*V219)))*7.48052 *IF(OR(AO219="Permeable Pavement Facility",AO219="Vegetated Roof System"),MIN(1,H221/(AP219*V219)),1) +IF(AO219="Permeable Pavement Facility",H221*2.1*7.48052,1) ->  | AT219: =IFERROR( IF(AO219="Residential Cistern",INDEX(Lookup!$I$97:$I$365,MATCH(TRIM(CONCATENATE(AO219,IF(V219<400,0,IF(V219>4200,4201,ROUNDDOWN(V219,-2))))),Lookup!$F$97:$F$365,0)), IF(AO219="Sidewalk/Trail Compost-Amended Strip",ROUND(AQ219/(V219/H221),1) &" ft wide x "& ROUND(V219/H221,0)&" ft long", IF(OR(AO219="Rainwater Harvesting - Category 1",AO219="Rainwater Harvesting - Category 4")," required minimum live storage", IF(AO219="Water Quality BMP in lieu of NIB","See Plan", IF(AND(V221="",V223="",V225=""),"",TRIM(V223&" "&AP223&" "&V221&" "&AP221&" "&V225&" "&AP225)))))),"") -> 
B221: =IFERROR( IF(AO219="Permeable Pavement Facility","Facility Area (sf)", IF(AO219="Vegetated Roof System","Vegetated Area (sf)", IF(AO219="Sidewalk/Trail Compost-Amended Strip","Sidewalk/Trail Width (ft)", IF(OR(AO219="Rainwater Harvesting - Category 1",AO219="Rainwater Harvesting - Category 4"),"Live Storage Volume (gal)", "")))),"") ->  | N221: =IFERROR(INDEX(Lookup!$C$70:$C$94,MATCH(AO219,Lookup!$A$70:$A$94,0)),"") ->  | AC221: =IFERROR(TEXT(AS219,"#,##0")&" gal managed/year",IFERROR(IF(AP219=0,"Infiltration rate too low.",""),"")) ->  | AO221: =TRIM(SUBSTITUTE(SUBSTITUTE(SUBSTITUTE(AO219," ",""),"-",""),"/","")&"List1") ->  | AP221: =IFERROR(INDEX(Lookup!$G$70:$G$94,MATCH(AO219,Lookup!$A$70:$A$94,0)),"") -> 
B223: =IFERROR( IF(OR(AO219="Permeable Pavement Facility",AO219="Vegetated Roof System"),"Minimum Facility Area "&TEXT((AP219*V219),"#,###")&" sf", IF(OR(AO219="Rainwater Harvesting - Category 1",AO219="Rainwater Harvesting - Category 4"),"Continuous runoff modeling required by", "")),"") ->  | N223: =IFERROR(INDEX(Lookup!$D$70:$D$94,MATCH(AO219,Lookup!$A$70:$A$94,0)),"") ->  | AC223: =IFERROR(IF(AO219="Sidewalk/Trail Compost-Amended Strip",ROUND(AQ219/(V219/H221),1) &" ft wide compost-amended strip", IF(OR(AO219="Infiltrating Soil Cell Bioretention with Tree",AO219="Non-Infiltrating Soil Cell Bioretention with Tree"),"BMP size excludes tree planting area", IF(AO219="Residential Cistern",IF(AQ219=-999,"",IF(V219<800,3,IF(V219<1300,4,5)))&" ft live storage", ""))),"") ->  | AO223: =TRIM(SUBSTITUTE(SUBSTITUTE(SUBSTITUTE(AO219," ",""),"-",""),"/","")&"List2") ->  | AP223: =IFERROR(INDEX(Lookup!$H$70:$H$94,MATCH(AO219,Lookup!$A$70:$A$94,0)),"") -> 
B225: =IFERROR(IF(OR(AO219="Rainwater Harvesting - Category 1",AO219="Rainwater Harvesting - Category 4"),"professional engineer.", ""),"") ->  | N225: =IFERROR(INDEX(Lookup!$E$70:$E$94,MATCH(AO219,Lookup!$A$70:$A$94,0)),"") ->  | AC225: =IFERROR(IF(AO219="Sidewalk/Trail Compost-Amended Strip",IF(AND(AC223="",H221<>""),"","along full "& ROUND(V219/H221,0) &" ft trail/sidewalk"),""),"") ->  | AO225: =TRIM(SUBSTITUTE(SUBSTITUTE(SUBSTITUTE(AO219," ",""),"-",""),"/","")&"List3") ->  | AP225: =IFERROR(INDEX(Lookup!$H$70:$H$94,MATCH(AO221,Lookup!$A$70:$A$94,0)),"") ->  | AQ225: =IF(OR(AO219="Infiltrating Soil Cell Bioretention with Tree",AO219="Non-Infiltrating Soil Cell Bioretention with Tree"),"min footprint to meet soil volume","") ->  | AR225: =IF(OR(AO219="Infiltrating Soil Cell Bioretention with Tree",AO219="Non-Infiltrating Soil Cell Bioretention with Tree"),"min soil volume","") -> 
N227: =IFERROR(INDEX(Lookup!$F$70:$F$94,MATCH(AO219,Lookup!$A$70:$A$94,0)),"") ->  | AO227: =TRIM(SUBSTITUTE(SUBSTITUTE(SUBSTITUTE(AO219," ",""),"-",""),"/","")&"List4") ->  | AQ227: =IF(AO219="Infiltrating Soil Cell Bioretention with Tree",AR227/(V227/12), IF(AO219="Non-Infiltrating Soil Cell Bioretention with Tree",AR227/(V225/12),"")) ->  | AR227: =IF(AO219="Infiltrating Soil Cell Bioretention with Tree",_xlfn.XLOOKUP(V225,InfiltratingSoilCellBioretentionwithTreeList3,Lookup!$U$51:$U$55), IF(AO219="Non-Infiltrating Soil Cell Bioretention with Tree",_xlfn.XLOOKUP(V223,NonInfiltratingSoilCellBioretentionwithTreeList2,Lookup!$U$51:$U$55,""))) -> 
B229: =IFERROR(IF(INDEX($K$7:$K$46,MATCH(AN229,$AO$7:$AO$46,0))="","",INDEX($K$7:$K$46,MATCH(AN229,$AO$7:$AO$46,0))),"") ->  | N229: =IF(B229="","",IF(AO229="Vegetated Roof System","Roof Area","Contributing Area (sf)")) ->  | V229: =IF(B229="","",SUMIF($AO$7:$AO$46,AN229,$F$7:$I$46)) ->  | AC229: =IFERROR(IF(AO229="Water Quality BMP in lieu of NIB","Submit sizing documentation separately.", IF(AP229=-999,"Configuration not allowed.",IF(AP229=0,"Configuration not allowed.",IF(AO229="Trees","As many as feasible.", IF(AP229="equation",TEXT(AQ229,"#,##0")&" "&AR229, TEXT(IF(OR(AO229="Permeable Pavement Facility",AO229="Vegetated Roof System",AO229="Rainwater Harvesting - Category 1", AO229="Rainwater Harvesting - Category 4"),H231, IF(AO229="Sidewalk/Trail Compost-Amended Strip",MAX(V229/H231,AP229*V229), IF(OR(AO229="Infiltrating Soil Cell Bioretention with Tree",AO229="Non-Infiltrating Soil Cell Bioretention with Tree"),MAX(AP229*V229,AQ237), AP229*V229))),"#,##0")&" "&AR229))))),"") ->  | AN229: 19 | AO229: =INDEX($AP$7:$AP$46,MATCH(AN229,$AO$7:$AO$46,0)) ->  | AP229: =IF(AO229="Trees", INDEX(Lookup!$G$97:$G$365,MATCH(TRIM(CONCATENATE(AO229,V231)),Lookup!$F$97:$F$365,0)), IF(AO229="Residential Cistern", INDEX(Lookup!$G$97:$G$365,MATCH(TRIM(CONCATENATE(AO229,IF(V229<400,0,IF(V229>4200,4201,ROUNDDOWN(V229,-2))))),Lookup!$F$97:$F$365,0)), IF(AO229="Sidewalk/Trail Compost-Amended Strip", IF(H231="",NA(),IF(H231<10,Lookup!$G$99,Lookup!$G$98)), IF(AND(AO229="Non-Infiltrating Bioretention",V233="Sloped sides",V231=6),IF(V229<=2000,0.025,0.028), INDEX(Lookup!$G$97:$G$365,MATCH(TRIM(CONCATENATE(AO229,V231,V233,V235,V237)),Lookup!$F$97:$F$365,0)))))) ->  | AQ229: =IF(AP229<=0,NA(),IF(OR(AO229="Permeable Pavement Facility",AO229="Vegetated Roof System",AO229="Rainwater Harvesting - Category 1",AO229="Rainwater Harvesting - Category 4"),H231, IF(AO229="Sidewalk/Trail Compost-Amended Strip",MAX(V229/H231,AP229*V229), IF(OR(AO229="Infiltrating Soil Cell Bioretention with Tree",AO229="Non-Infiltrating Soil Cell Bioretention with Tree"),MAX(AP229*V229,AQ237), AP229*V229)))) ->  | AR229: =IF(AO229="Residential Cistern", "sf",INDEX(Lookup!$I$97:$I$365,MATCH(TRIM(CONCATENATE(AO229,V231,V233,V235,V237)),Lookup!$F$97:$F$365,0))) ->  | AS229: =IF(AO229="Trees", INDEX(Lookup!$H$97:$H$365,MATCH(TRIM(CONCATENATE(AO229,V231)),Lookup!$F$97:$F$365,0))*V233, IF(AO229="Residential Cistern", INDEX(Lookup!$H$97:$H$365,MATCH(TRIM(CONCATENATE(AO229,IF(V229<400,0,IF(V229>4200,4201,ROUNDDOWN(V229,-2))))),Lookup!$F$97:$F$365,0))*V229, IF(AND(AO229="Sidewalk/Trail Compost-Amended Strip",OR(H231="",InfRate=0)),NA(), INDEX(Lookup!$H$97:$H$365,MATCH(TRIM(CONCATENATE(AO229,V231,V233,V235,V237)),Lookup!$F$97:$F$365,0))*V229)))*7.48052 *IF(OR(AO229="Permeable Pavement Facility",AO229="Vegetated Roof System"),MIN(1,H231/(AP229*V229)),1) +IF(AO229="Permeable Pavement Facility",H231*2.1*7.48052,1) ->  | AT229: =IFERROR( IF(AO229="Residential Cistern",INDEX(Lookup!$I$97:$I$365,MATCH(TRIM(CONCATENATE(AO229,IF(V229<400,0,IF(V229>4200,4201,ROUNDDOWN(V229,-2))))),Lookup!$F$97:$F$365,0)), IF(AO229="Sidewalk/Trail Compost-Amended Strip",ROUND(AQ229/(V229/H231),1) &" ft wide x "& ROUND(V229/H231,0)&" ft long", IF(OR(AO229="Rainwater Harvesting - Category 1",AO229="Rainwater Harvesting - Category 4")," required minimum live storage", IF(AO229="Water Quality BMP in lieu of NIB","See Plan", IF(AND(V231="",V233="",V235=""),"",TRIM(V233&" "&AP233&" "&V231&" "&AP231&" "&V235&" "&AP235)))))),"") -> 
B231: =IFERROR( IF(AO229="Permeable Pavement Facility","Facility Area (sf)", IF(AO229="Vegetated Roof System","Vegetated Area (sf)", IF(AO229="Sidewalk/Trail Compost-Amended Strip","Sidewalk/Trail Width (ft)", IF(OR(AO229="Rainwater Harvesting - Category 1",AO229="Rainwater Harvesting - Category 4"),"Live Storage Volume (gal)", "")))),"") ->  | N231: =IFERROR(INDEX(Lookup!$C$70:$C$94,MATCH(AO229,Lookup!$A$70:$A$94,0)),"") ->  | AC231: =IFERROR(TEXT(AS229,"#,##0")&" gal managed/year",IFERROR(IF(AP229=0,"Infiltration rate too low.",""),"")) ->  | AO231: =TRIM(SUBSTITUTE(SUBSTITUTE(SUBSTITUTE(AO229," ",""),"-",""),"/","")&"List1") ->  | AP231: =IFERROR(INDEX(Lookup!$G$70:$G$94,MATCH(AO229,Lookup!$A$70:$A$94,0)),"") -> 
B233: =IFERROR( IF(OR(AO229="Permeable Pavement Facility",AO229="Vegetated Roof System"),"Minimum Facility Area "&TEXT((AP229*V229),"#,###")&" sf", IF(OR(AO229="Rainwater Harvesting - Category 1",AO229="Rainwater Harvesting - Category 4"),"Continuous runoff modeling required by", "")),"") ->  | N233: =IFERROR(INDEX(Lookup!$D$70:$D$94,MATCH(AO229,Lookup!$A$70:$A$94,0)),"") ->  | AC233: =IFERROR(IF(AO229="Sidewalk/Trail Compost-Amended Strip",ROUND(AQ229/(V229/H231),1) &" ft wide compost-amended strip", IF(OR(AO229="Infiltrating Soil Cell Bioretention with Tree",AO229="Non-Infiltrating Soil Cell Bioretention with Tree"),"BMP size excludes tree planting area", IF(AO229="Residential Cistern",IF(AQ229=-999,"",IF(V229<800,3,IF(V229<1300,4,5)))&" ft live storage", ""))),"") ->  | AO233: =TRIM(SUBSTITUTE(SUBSTITUTE(SUBSTITUTE(AO229," ",""),"-",""),"/","")&"List2") ->  | AP233: =IFERROR(INDEX(Lookup!$H$70:$H$94,MATCH(AO229,Lookup!$A$70:$A$94,0)),"") -> 
B235: =IFERROR(IF(OR(AO229="Rainwater Harvesting - Category 1",AO229="Rainwater Harvesting - Category 4"),"professional engineer.", ""),"") ->  | N235: =IFERROR(INDEX(Lookup!$E$70:$E$94,MATCH(AO229,Lookup!$A$70:$A$94,0)),"") ->  | AC235: =IFERROR(IF(AO229="Sidewalk/Trail Compost-Amended Strip",IF(AND(AC233="",H231<>""),"","along full "& ROUND(V229/H231,0) &" ft trail/sidewalk"),""),"") ->  | AO235: =TRIM(SUBSTITUTE(SUBSTITUTE(SUBSTITUTE(AO229," ",""),"-",""),"/","")&"List3") ->  | AP235: =IFERROR(INDEX(Lookup!$H$70:$H$94,MATCH(AO231,Lookup!$A$70:$A$94,0)),"") ->  | AQ235: =IF(OR(AO229="Infiltrating Soil Cell Bioretention with Tree",AO229="Non-Infiltrating Soil Cell Bioretention with Tree"),"min footprint to meet soil volume","") ->  | AR235: =IF(OR(AO229="Infiltrating Soil Cell Bioretention with Tree",AO229="Non-Infiltrating Soil Cell Bioretention with Tree"),"min soil volume","") -> 
N237: =IFERROR(INDEX(Lookup!$F$70:$F$94,MATCH(AO229,Lookup!$A$70:$A$94,0)),"") ->  | AO237: =TRIM(SUBSTITUTE(SUBSTITUTE(SUBSTITUTE(AO229," ",""),"-",""),"/","")&"List4") ->  | AQ237: =IF(AO229="Infiltrating Soil Cell Bioretention with Tree",AR237/(V237/12), IF(AO229="Non-Infiltrating Soil Cell Bioretention with Tree",AR237/(V235/12),"")) ->  | AR237: =IF(AO229="Infiltrating Soil Cell Bioretention with Tree",_xlfn.XLOOKUP(V235,InfiltratingSoilCellBioretentionwithTreeList3,Lookup!$U$51:$U$55), IF(AO229="Non-Infiltrating Soil Cell Bioretention with Tree",_xlfn.XLOOKUP(V233,NonInfiltratingSoilCellBioretentionwithTreeList2,Lookup!$U$51:$U$55,""))) -> 
B239: =IFERROR(IF(INDEX($K$7:$K$46,MATCH(AN239,$AO$7:$AO$46,0))="","",INDEX($K$7:$K$46,MATCH(AN239,$AO$7:$AO$46,0))),"") ->  | N239: =IF(B239="","",IF(AO239="Vegetated Roof System","Roof Area","Contributing Area (sf)")) ->  | V239: =IF(B239="","",SUMIF($AO$7:$AO$46,AN239,$F$7:$I$46)) ->  | AC239: =IFERROR(IF(AO239="Water Quality BMP in lieu of NIB","Submit sizing documentation separately.", IF(AP239=-999,"Configuration not allowed.",IF(AP239=0,"Configuration not allowed.",IF(AO239="Trees","As many as feasible.", IF(AP239="equation",TEXT(AQ239,"#,##0")&" "&AR239, TEXT(IF(OR(AO239="Permeable Pavement Facility",AO239="Vegetated Roof System",AO239="Rainwater Harvesting - Category 1", AO239="Rainwater Harvesting - Category 4"),H241, IF(AO239="Sidewalk/Trail Compost-Amended Strip",MAX(V239/H241,AP239*V239), IF(OR(AO239="Infiltrating Soil Cell Bioretention with Tree",AO239="Non-Infiltrating Soil Cell Bioretention with Tree"),MAX(AP239*V239,AQ247), AP239*V239))),"#,##0")&" "&AR239))))),"") ->  | AN239: 20 | AO239: =INDEX($AP$7:$AP$46,MATCH(AN239,$AO$7:$AO$46,0)) ->  | AP239: =IF(AO239="Trees", INDEX(Lookup!$G$97:$G$365,MATCH(TRIM(CONCATENATE(AO239,V241)),Lookup!$F$97:$F$365,0)), IF(AO239="Residential Cistern", INDEX(Lookup!$G$97:$G$365,MATCH(TRIM(CONCATENATE(AO239,IF(V239<400,0,IF(V239>4200,4201,ROUNDDOWN(V239,-2))))),Lookup!$F$97:$F$365,0)), IF(AO239="Sidewalk/Trail Compost-Amended Strip", IF(H241="",NA(),IF(H241<10,Lookup!$G$99,Lookup!$G$98)), IF(AND(AO239="Non-Infiltrating Bioretention",V243="Sloped sides",V241=6),IF(V239<=2000,0.025,0.028), INDEX(Lookup!$G$97:$G$365,MATCH(TRIM(CONCATENATE(AO239,V241,V243,V245,V247)),Lookup!$F$97:$F$365,0)))))) ->  | AQ239: =IF(AP239<=0,NA(),IF(OR(AO239="Permeable Pavement Facility",AO239="Vegetated Roof System",AO239="Rainwater Harvesting - Category 1",AO239="Rainwater Harvesting - Category 4"),H241, IF(AO239="Sidewalk/Trail Compost-Amended Strip",MAX(V239/H241,AP239*V239), IF(OR(AO239="Infiltrating Soil Cell Bioretention with Tree",AO239="Non-Infiltrating Soil Cell Bioretention with Tree"),MAX(AP239*V239,AQ247), AP239*V239)))) ->  | AR239: =IF(AO239="Residential Cistern", "sf",INDEX(Lookup!$I$97:$I$365,MATCH(TRIM(CONCATENATE(AO239,V241,V243,V245,V247)),Lookup!$F$97:$F$365,0))) ->  | AS239: =IF(AO239="Trees", INDEX(Lookup!$H$97:$H$365,MATCH(TRIM(CONCATENATE(AO239,V241)),Lookup!$F$97:$F$365,0))*V243, IF(AO239="Residential Cistern", INDEX(Lookup!$H$97:$H$365,MATCH(TRIM(CONCATENATE(AO239,IF(V239<400,0,IF(V239>4200,4201,ROUNDDOWN(V239,-2))))),Lookup!$F$97:$F$365,0))*V239, IF(AND(AO239="Sidewalk/Trail Compost-Amended Strip",OR(H241="",InfRate=0)),NA(), INDEX(Lookup!$H$97:$H$365,MATCH(TRIM(CONCATENATE(AO239,V241,V243,V245,V247)),Lookup!$F$97:$F$365,0))*V239)))*7.48052 *IF(OR(AO239="Permeable Pavement Facility",AO239="Vegetated Roof System"),MIN(1,H241/(AP239*V239)),1) +IF(AO239="Permeable Pavement Facility",H241*2.1*7.48052,1) ->  | AT239: =IFERROR( IF(AO239="Residential Cistern",INDEX(Lookup!$I$97:$I$365,MATCH(TRIM(CONCATENATE(AO239,IF(V239<400,0,IF(V239>4200,4201,ROUNDDOWN(V239,-2))))),Lookup!$F$97:$F$365,0)), IF(AO239="Sidewalk/Trail Compost-Amended Strip",ROUND(AQ239/(V239/H241),1) &" ft wide x "& ROUND(V239/H241,0)&" ft long", IF(OR(AO239="Rainwater Harvesting - Category 1",AO239="Rainwater Harvesting - Category 4")," required minimum live storage", IF(AO239="Water Quality BMP in lieu of NIB","See Plan", IF(AND(V241="",V243="",V245=""),"",TRIM(V243&" "&AP243&" "&V241&" "&AP241&" "&V245&" "&AP245)))))),"") -> 
B241: =IFERROR( IF(AO239="Permeable Pavement Facility","Facility Area (sf)", IF(AO239="Vegetated Roof System","Vegetated Area (sf)", IF(AO239="Sidewalk/Trail Compost-Amended Strip","Sidewalk/Trail Width (ft)", IF(OR(AO239="Rainwater Harvesting - Category 1",AO239="Rainwater Harvesting - Category 4"),"Live Storage Volume (gal)", "")))),"") ->  | N241: =IFERROR(INDEX(Lookup!$C$70:$C$94,MATCH(AO239,Lookup!$A$70:$A$94,0)),"") ->  | AC241: =IFERROR(TEXT(AS239,"#,##0")&" gal managed/year",IFERROR(IF(AP239=0,"Infiltration rate too low.",""),"")) ->  | AO241: =TRIM(SUBSTITUTE(SUBSTITUTE(SUBSTITUTE(AO239," ",""),"-",""),"/","")&"List1") ->  | AP241: =IFERROR(INDEX(Lookup!$G$70:$G$94,MATCH(AO239,Lookup!$A$70:$A$94,0)),"") -> 
B243: =IFERROR( IF(OR(AO239="Permeable Pavement Facility",AO239="Vegetated Roof System"),"Minimum Facility Area "&TEXT((AP239*V239),"#,###")&" sf", IF(OR(AO239="Rainwater Harvesting - Category 1",AO239="Rainwater Harvesting - Category 4"),"Continuous runoff modeling required by", "")),"") ->  | N243: =IFERROR(INDEX(Lookup!$D$70:$D$94,MATCH(AO239,Lookup!$A$70:$A$94,0)),"") ->  | AC243: =IFERROR(IF(AO239="Sidewalk/Trail Compost-Amended Strip",ROUND(AQ239/(V239/H241),1) &" ft wide compost-amended strip", IF(OR(AO239="Infiltrating Soil Cell Bioretention with Tree",AO239="Non-Infiltrating Soil Cell Bioretention with Tree"),"BMP size excludes tree planting area", IF(AO239="Residential Cistern",IF(AQ239=-999,"",IF(V239<800,3,IF(V239<1300,4,5)))&" ft live storage", ""))),"") ->  | AO243: =TRIM(SUBSTITUTE(SUBSTITUTE(SUBSTITUTE(AO239," ",""),"-",""),"/","")&"List2") ->  | AP243: =IFERROR(INDEX(Lookup!$H$70:$H$94,MATCH(AO239,Lookup!$A$70:$A$94,0)),"") -> 
B245: =IFERROR(IF(OR(AO239="Rainwater Harvesting - Category 1",AO239="Rainwater Harvesting - Category 4"),"professional engineer.", ""),"") ->  | N245: =IFERROR(INDEX(Lookup!$E$70:$E$94,MATCH(AO239,Lookup!$A$70:$A$94,0)),"") ->  | AC245: =IFERROR(IF(AO239="Sidewalk/Trail Compost-Amended Strip",IF(AND(AC243="",H241<>""),"","along full "& ROUND(V239/H241,0) &" ft trail/sidewalk"),""),"") ->  | AO245: =TRIM(SUBSTITUTE(SUBSTITUTE(SUBSTITUTE(AO239," ",""),"-",""),"/","")&"List3") ->  | AP245: =IFERROR(INDEX(Lookup!$H$70:$H$94,MATCH(AO241,Lookup!$A$70:$A$94,0)),"") ->  | AQ245: =IF(OR(AO239="Infiltrating Soil Cell Bioretention with Tree",AO239="Non-Infiltrating Soil Cell Bioretention with Tree"),"min footprint to meet soil volume","") ->  | AR245: =IF(OR(AO239="Infiltrating Soil Cell Bioretention with Tree",AO239="Non-Infiltrating Soil Cell Bioretention with Tree"),"min soil volume","") -> 
N247: =IFERROR(INDEX(Lookup!$F$70:$F$94,MATCH(AO239,Lookup!$A$70:$A$94,0)),"") ->  | AO247: =TRIM(SUBSTITUTE(SUBSTITUTE(SUBSTITUTE(AO239," ",""),"-",""),"/","")&"List4") ->  | AQ247: =IF(AO239="Infiltrating Soil Cell Bioretention with Tree",AR247/(V247/12), IF(AO239="Non-Infiltrating Soil Cell Bioretention with Tree",AR247/(V245/12),"")) ->  | AR247: =IF(AO239="Infiltrating Soil Cell Bioretention with Tree",_xlfn.XLOOKUP(V245,InfiltratingSoilCellBioretentionwithTreeList3,Lookup!$U$51:$U$55), IF(AO239="Non-Infiltrating Soil Cell Bioretention with Tree",_xlfn.XLOOKUP(V243,NonInfiltratingSoilCellBioretentionwithTreeList2,Lookup!$U$51:$U$55,""))) -> 
B249: *If Flow Control or Water Quality Treatment are required, check the sizing below with the sizing from the Flow Control and Water Quality calculations (i.e. other calculator or engineering calculations)

Sheet Infeasibility Criteria
A1: On-site Stormwater Management Calculator
C2: Infeasibility Criteria
A3: =Version -> Version 05-22-2026
A5: Infeasibility Criteria
B6: Full Dispersion
B7: 1 | C7: The site has less than a 65 to 10 ratio of the native vegetation area to the impervious area.
B8: 2 | C8: The minimum native vegetation flowpath length is less than 100 feet.
B9: 3 | C9: A licensed professional recommends dispersion not be used anywhere within project site due to reasonable concerns of erosion, slope failure, or flooding.
B10: 4 | C10: The dispersion flow path area does not provide positive drainage.
B11: 5 | C11: The dispersion flowpath area is within a landslide-prone area (SMC, Section 25.09.080).
B12: 6 | C12: The dispersion flowpath area is within 100 feet of a contaminated site or landfill (active or closed).
B13: 7 | C13: The dispersion flowpath area is in a steep slope area (SMC, Section 25.09.020) or within a setback to a steep slope area (calculated as 10 times the height of the steep slope to a 500 foot maximum setback).
B14: 8 | C14: The dispersion flowpath area is within 10 feet of a proposed or existing septic system or drainfield.
B15: 9 | C15: Installation requires removal of an existing tree.
B16: 10 | C16: Installation is prohibited per Regulations for Environmentally Critical Areas (SMC Chapter 25.09).
B17: 11 | C17: Installation would require pumping to a designated point of discharge, but failure of the pump may destabilize a steep slope.
B18: 12 | C18: Unable to maintain a desired access of 36 inches in a required building setback from a property line.
B19: 13 | C19: Unable to maintain clearance for required ingress, egress, or ADA pathways.
B20: 14 | C20: Installation would require a pump when a pump is not already required to provide site storm drainage.
B21: Infiltration Trench
B22: 1 | C22: Field testing indicates potential infiltration trench site(s) have a measured underlying soil infiltration rate less than 2 inches per hour (Volume 3, Section 5.4.2).
B23: 2 | C23: Evaluation of infiltration is not required per the “Infiltration Investigation Map”.
B24: 3 | C24: The area available for siting does not allow for overflow conveyance to an approved point of discharge per Volume 3, Section 4.3.2.
B25: 4 | C25: The area available for siting is within an ECA steep slope area or land-slide prone area (or setback) (refer to Volume 3, Section 3.2).
B26: 5 | C26: The area available for siting does not meet the minimum horizontal setback requirements (refer to Volume 3, Section 3.2).
B27: 6 | C27: The area available for siting does not meet the minimum vertical setback requirements (refer to Volume 3, Section 3.2, and Appendix D).
B28: 7 | C28: The minimum vertical separation from groundwater or a hydraulically restrictive soil per Appendix D, Section D-2.2.4, or solid rock, cannot be met.
B29: 8 | C29: Infiltration is restricted due to contaminated soil or groundwater (refer to Volume 3, Section 3.2).
B30: 9 | C30: Installation requires removal of an existing tree.
B31: 10 | C31: Where BMP installation is prohibited per Regulations for Environmentally Critical Areas (SMC Chapter 25.09).
B32: 11 | C32: Installation would require pumping to a designated point of discharge, but failure of the pump may destabilize a steep slope.
B33: 12 | C33: Installation would require a pump when a pump is not already required to provide site storm drainage.
B34: 13 | C34: Infiltration is not recommended due to reasonable concerns about erosion, slope failure, or flooding. (Requires site-specific evaluation and documentation by a licensed professional.)
B35: 14 | C35: The area available for siting would threaten the safety or reliability of pre-existing underground utilities, pre-existing underground storage tanks, pre-existing structures, or pre-existing road or parking lot surfaces or subgrades. (Requires site-specific evaluation and documentation by a licensed professional.)
B36: 15 | C36: The area available for siting would threaten shoreline structures such as bulkheads. (Requires site-specific evaluation and documentation by a licensed professional.)
B37: 16 | C37: The area available for siting would threaten existing or proposed buildings or structures. (Requires site-specific evaluation and documentation by a licensed professional.)
B38: 17 | C38: Infiltration is not recommended based on the results of a Groundwater Mounding analysis or a Characterization of Infiltration Receptor analysis per Appendix D, Sections D-5 and D-6. (Requires site-specific evaluation and documentation by a licensed professional.)
B39: 18 | C39: Where the site cannot be reasonably designed to locate a catch basin between the infiltration trench and point of connection to the public system.
B40: Drywell
B41: 1 | C41: Field testing indicates potential drywell site(s) have a measured underlying soil infiltration rate less than 5 inches per hour (Volume 3, Section 5.4.3).
B42: 2 | C42: Evaluation of infiltration is not required per the “Infiltration Investigation Map”.
B43: 3 | C43: The area available for siting does not allow for overflow conveyance to an approved point of discharge per Volume 3, Section 4.3.2.
B44: 4 | C44: The area available for siting is within an ECA steep slope area or land-slide prone area (or setback) (refer to Volume 3, Section 3.2).
B45: 5 | C45: The area available for siting does not meet the minimum horizontal setback requirements (refer to Volume 3, Section 3.2).
B46: 6 | C46: The area available for siting does not meet the minimum vertical setback requirements (refer to Volume 3, Section 3.2, and Appendix D).
B47: 7 | C47: The minimum vertical separation from groundwater or a hydraulically restrictive soil per Appendix D, Section D-2.2.4, or solid rock, cannot be met.
B48: 8 | C48: Infiltration is restricted due to contaminated soil or groundwater (refer to Volume 3, Section 3.2).
B49: 9 | C49: Installation requires removal of an existing tree.
B50: 10 | C50: Where BMP installation is prohibited per Regulations for Environmentally Critical Areas (SMC Chapter 25.09).
B51: 11 | C51: Installation would require pumping to a designated point of discharge, but failure of the pump may destabilize a steep slope.
B52: 12 | C52: Installation would require a pump when a pump is not already required to provide site storm drainage.
B53: 13 | C53: Infiltration is not recommended due to reasonable concerns about erosion, slope failure, or flooding. (Requires site-specific evaluation and documentation by a licensed professional.)
B54: 14 | C54: The area available for siting would threaten the safety or reliability of pre-existing underground utilities, pre-existing underground storage tanks, pre-existing structures, or pre-existing road or parking lot surfaces or subgrades. (Requires site-specific evaluation and documentation by a licensed professional.)
B55: 15 | C55: The area available for siting would threaten shoreline structures such as bulkheads. (Requires site-specific evaluation and documentation by a licensed professional.)
B56: 16 | C56: The area available for siting would threaten existing or proposed buildings or structures. (Requires site-specific evaluation and documentation by a licensed professional.)
B57: 17 | C57: Infiltration is not recommended based on the results of a Groundwater Mounding analysis or a Characterization of Infiltration Receptor analysis per Appendix D, Sections D-5 and D-6. (Requires site-specific evaluation and documentation by a licensed professional.)
B58: 18 | C58: Where the site cannot be reasonably designed to locate a catch basin between the drywell and point of connection to the public system.
B59: Rain Garden
B60: 1 | C60: Field testing indicates soils have a measured underlying soil infiltration rate less than 0.3 inches per hour.
B61: 2 | C61: Evaluation of infiltration is not required per the “Infiltration Investigation Map”.
B62: 3 | C62: The facility is located within a 1/4 mile of Green Lake (nutrient critical water body), unless the optional HPBSM and polishing layer are used.
B63: 4 | C63: The area available for siting does not allow for overflow conveyance to an approved point of discharge per Volume 3, Section 4.3.2.
B64: 5 | C64: The area available for siting is within an ECA steep slope area or land-slide prone area (or setback) (refer to Volume 3, Section 3.2).
B65: 6 | C65: The area available for siting does not meet the minimum horizontal setback requirements (refer to Volume 3, Section 3.2).
B66: 7 | C66: The area available for siting does not meet the minimum vertical setback requirements (refer to Volume 3, Section 3.2, and Appendix D).
B67: 8 | C67: The minimum vertical separation from groundwater or a hydraulically restrictive soil per Appendix D, Section D-2.2.4, or solid rock, cannot be met.
B68: 9 | C68: Infiltration is restricted due to contaminated soil or groundwater (refer to Volume 3, Section 3.2).
B69: 10 | C69: In the right-of-way, the longitudinal road slope exceeds 8 percent.
B70: 11 | C70: The rain garden would have a linear geometry with a longitudinal slope greater than 8 percent.
B71: 12 | C71: The minimum bottom width (12-inch average) or side slopes of the rain garden cannot be met due to, but not limited to: encroachment within the critical root zone of an existing tree(s) or minimum setbacks to structures, utilities, or property lines.
B72: 13 | C72: The infiltration area is within the minimum vertical or horizontal clearance from utilities, according to clearances required by the utility owner.
B73: 14 | C73: For projects in the right-of-way, the total rain garden top area would be less than 500 square feet and the project discharges to: A designated receiving water body or, A combined system, or A capacity constrained system which does not drain to a creek wetland or small lake.
B74: 15 | C74: Installation requires removal of an existing tree.
B75: 16 | C75: Where BMP installation is prohibited per Regulations for Environmentally Critical Areas (SMC Chapter 25.09).
B76: 17 | C76: Installation would require pumping to a designated point of discharge, but failure of the pump may destabilize a steep slope.
B77: 18 | C77: Unable to maintain a desired access of 36 inches in a required building setback from a property line.
B78: 19 | C78: Unable to maintain clearance for required ingress, egress, or ADA pathways.
B79: 20 | C79: Installation would require a pump when a pump is not already required to provide site storm drainage.
B80: 21 | C80: Infiltration is not recommended due to reasonable concerns about erosion, slope failure, or flooding. (Requires site-specific evaluation and documentation by a licensed professional.)
B81: 22 | C81: The area available for siting would threaten the safety or reliability of pre-existing underground utilities, pre-existing underground storage tanks, pre-existing structures, or pre-existing road or parking lot surfaces or subgrades. (Requires site-specific evaluation and documentation by a licensed professional.)
B82: 23 | C82: The area available for siting would threaten shoreline structures such as bulkheads. (Requires site-specific evaluation and documentation by a licensed professional.)
B83: 24 | C83: The area available for siting would threaten existing or proposed buildings or structures. (Requires site-specific evaluation and documentation by a licensed professional.)
B84: 25 | C84: Infiltration is not recommended based on the results of a Groundwater Mounding analysis or a Characterization of Infiltration Receptor analysis per Appendix D, Sections D-5 and D-6. (Requires site-specific evaluation and documentation by a licensed professional.)
B85: Infiltrating Bioretention
B86: 1 | C86: Evaluation of infiltration is not required per the “Infiltration Investigation Map”.
B87: 2 | C87: Field testing indicates soils have a measured underlying soil infiltration rate less than 0.3 inches per hour.
B88: 3 | C88: Field testing indicates soils have a measured underlying soil infiltration rate less than 0.6 inches per hour and an underdrain cannot be installed per the design criteria.
B89: 4 | C89: The facility is located within a 1/4 mile of Green Lake (nutrient critical water body), unless the optional HPBSM and polishing layer are used.
B90: 5 | C90: The area available for siting does not allow for overflow conveyance to an approved point of discharge per Volume 3, Section 4.3.2.
B91: 6 | C91: The area available for siting is within an ECA steep slope area or land-slide prone area (or setback) (refer to Volume 3, Section 3.2).
B92: 7 | C92: The area available for siting does not meet the minimum horizontal setback requirements (refer to Volume 3, Section 3.2).
B93: 8 | C93: The area available for siting does not meet the minimum vertical setback requirements (refer to Volume 3, Section 3.2, and Appendix D).
B94: 9 | C94: The minimum vertical separation from groundwater or a hydraulically restrictive soil per Appendix D, Section D-2.2.4, or solid rock, cannot be met.
B95: 10 | C95: Infiltration is restricted due to contaminated soil or groundwater (refer to Volume 3, Section 3.2).
B96: 11 | C96: In the right-of-way the infiltrating bioretention facility would have a linear geometry with a longitudinal slope greater than 8 percent.
B97: 12 | C97: The minimum bottom width of the infiltrating bioretention facility (2 feet for facilities with vertical sides and 18 inch average for facilities with sloped sides) cannot be met due to, but not limited to: encroachment within the critical root zone of an existing tree(s) or minimum setbacks to structures, utilities, or property lines.
B98: 13 | C98: The infiltration area is within the minimum vertical and horizontal clearance from utilities, according to clearances required by the utility owner.
B99: 14 | C99: The facility with an underdrain would route underdrained water to Green Lake (nutrient-critical receiving water) unless the optional HPBSM and polishing layer are used.
B100: 15 | C100: In the right-of-way, installation requires a vertical walled facility.
B101: 16 | C101: A vertical wall facility is required to provide sufficient bottom area and the depth to the bottom of the ponding area from the surrounding grade would need to be 22 inches or more.
B102: 17 | C102: Installation requires removal of an existing tree.
B103: 18 | C103: Where BMP installation is prohibited per Regulations for Environmentally Critical Areas (SMC Chapter 25.09).
B104: 19 | C104: Installation would require pumping to a designated point of discharge, but failure of the pump may destabilize a steep slope.
B105: 20 | C105: Unable to maintain a desired access of 36 inches in a required building setback from a property line.
B106: 21 | C106: Unable to maintain clearance for required ingress, egress, or ADA pathways.
B107: 22 | C107: Installation would require a pump when a pump is not already required to provide site storm drainage.
B108: 23 | C108: Infiltration is not recommended due to reasonable concerns about erosion, slope failure, or flooding. (Requires site-specific evaluation and documentation by a licensed professional.)
B109: 24 | C109: The area available for siting would threaten the safety or reliability of pre-existing underground utilities, pre-existing underground storage tanks, pre-existing structures, or pre-existing road or parking lot surfaces or subgrades. (Requires site-specific evaluation and documentation by a licensed professional.)
B110: 25 | C110: The area available for siting would threaten shoreline structures such as bulkheads. (Requires site-specific evaluation and documentation by a licensed professional.)
B111: 26 | C111: The area available for siting would threaten existing or proposed buildings or structures. (Requires site-specific evaluation and documentation by a licensed professional.)
B112: 27 | C112: Infiltration is not recommended based on the results of a Groundwater Mounding analysis or a Characterization of Infiltration Receptor analysis per Appendix D, Sections D-5 and D-6. (Requires site-specific evaluation and documentation by a licensed professional.)
B113: Rainwater Harvesting
B114: 1 | C114: Installation requires removal of an existing tree.
B115: 2 | C115: Installation is prohibited per Regulations for Environmentally Critical Areas (SMC Chapter 25.09).
B116: 3 | C116: Installation would require pumping to a designated point of discharge, but failure of the pump may destabilize a steep slope.
B117: 4 | C117: Unable to maintain a desired access of 36 inches in a required building setback from a property line.
B118: 5 | C118: Unable to maintain clearance for required ingress, egress, or ADA pathways.
B119: 6 | C119: Installation would require a pump when a pump is not already required to provide site storm drainage. (Requiring a pump as the result of using the Rainwater Harvesting BMP does not make this BMP infeasible.)
B120: 7 | C120: Project lacks non-pollution-generating roof from which to harvest rainwater.
B121: 8 | C121: Non-potable water demand is insufficient to meet the On-site Performance Standard per modeling conducted in accordance with Volume 3, Section 5.5.1.6.
B122: 9 | C122: Installation is not economically feasible based on reasonable consideration of financial cost (e.g., roof area is less than 20,000 sf or the ratio of roof area to average daily rainwater demand is less than 10,000 square feet/gpm) (refer to Appendix H). Documentation is required.
B123: Permeable Pavement Facility
B124: 1 | C124: Evaluation of infiltration is not required per the “Infiltration Investigation Map”.
B125: 2 | C125: Field testing indicates soils have a measured underlying soil infiltration rate less than 0.3 inches per hour.
B126: 3 | C126: The area available for siting does not allow for overflow conveyance to an approved point of discharge per Volume 3, Section 4.3.2.
B127: 4 | C127: The area available for siting is within a steep slope area or land-slide prone area (or setback) (refer to Volume 3, Section 3.2).
B128: 5 | C128: The area available for siting does not meet the minimum horizontal setback requirements (refer to Volume 3, Section 3.2).
B129: 6 | C129: The area available for siting does not meet the minimum vertical setback requirements (refer to Volume 3, Section 3.2, and Appendix D).
B130: 7 | C130: Infiltration is restricted due to contaminated soil or groundwater (refer to Volume 3, Section 3.2).
B131: 8 | C131: The minimum vertical separation from groundwater or a hydraulically restrictive soil per Appendix D, Section D-2.2.4, or solid rock, cannot be met.
B132: 9 | C132: The subgrade slope exceeds 6 percent after reasonable efforts to grade.
B133: 10 | C133: The permeable pavement wearing course slope exceeds 6 percent after reasonable efforts to grade.
B134: 11 | C134: For projects in the right-of-way, the permeable pavement surface area would be less than 2,000 square feet of contiguous pavement and the project discharges to: a designated receiving water body, a combined system, or a capacity constrained system which does not drain to a creek wetland or small lake.
B135: 12 | C135: The anticipated mature tree spread (based on tree species) would overhang more than 50 percent of permeable pavement area.
B136: 13 | C136: The pavement is over a structure, such as, but not limited to: parking garages, box culverts, and bridges.
B137: 14 | C137: The pavement is subject to long-term excessive sediment deposition (e.g., construction and landscaping material yards).
B138: 15 | C138: Underlying soils are unsuitable for supporting traffic loads when saturated (e.g., a residential access road has a California Bearing Ratio of 5 percent or less).
B139: 16 | C139: Pavement is replacing an existing pollution-generating hard surface in the right-of-way.
B140: 17 | C140: The street type is classified as arterial or collector rather than local access. Refer to RCW 35.78.010, RCW 36.86.070, and RCW 47.05.021. Note: This infeasibility criterion does not extend to sidewalks and other non-traffic bearing surfaces associated with the collector or arterial.
B141: 18 | C141: Streets that receive more than very low traffic volumes, and areas having more than very low truck traffic. Streets with a projected average daily traffic volume of 400 vehicles or less are very low volume roads (AASHTO, 2001)(U.S. Dept. of Transportation, 2013). Areas with very low truck traffic volumes are streets and other areas not subject to through truck traffic but may receive up to weekly use by utility trucks (e.g., garbage, recycling), daily school bus use, and multiple daily use by pick-up trucks, mail/parcel delivery trucks, and maintenance vehicles. Note: This infeasibility criterion does not extend to sidewalks and other non-traffic bearing surfaces.
B142: 19 | C142: The pavement area is defined as a “high use site” in SMC, Section 22.801.090.
B143: 20 | C143: In areas with “industrial activity” as identified in 40 CFR 122.26(b)(14).
B144: 21 | C144: Where the risk of concentrated pollutant spills is more likely, including, but not limited to, gas stations, truck stops, and industrial chemical storage sites.
B145: 22 | C145: In areas where routine, heavy roadway applications of sand occur in frequent snow zones to maintain traction during weeks of snow and ice accumulation, including sidewalks within 7 feet of roadways with sand application.
B146: 23 | C146: Where run-on from unstabilized erodible areas would occur without presettling.
B147: 24 | C147: The areas contributing runoff to the permeable pavement facilities exceed the maximum run-on limits: Pollution-generating impervious surfaces (e.g., roadways, parking lots) exceed the maximum run-on area ratio of 2:1, Non-pollution generating impervious surfaces (e.g., roofs, sidewalks) and stabilized pervious surfaces exceed the maximum run-on area ratio of 5:1
B148: 25 | C148: The Director has determined that permeable pavement in active zones of a skate park, bike park, or sport court violates safety standards.
B149: 26 | C149: Installation requires removal of an existing tree.
B150: 27 | C150: Where BMP installation is prohibited per Regulations for Environmentally Critical Areas (SMC Chapter 25.09).
B151: 28 | C151: Installation would require pumping to a designated point of discharge, but failure of the pump may destabilize a steep slope.
B152: 29 | C152: Installation would require a pump when a pump is not already required to provide site storm drainage.
B153: 30 | C153: Infiltrating or ponding water below pavement area would compromise adjacent pavements. (Requires site-specific evaluation and documentation by a licensed professional.)
B154: 31 | C154: Fill soils are used that can become unstable when saturated. (Requires site-specific evaluation and documentation by a licensed professional.)
B155: 32 | C155: The permeable pavement design does not provide sufficient strength to support heavy loads in areas with “industrial activity” as identified in 40 CFR 122.26(b)(14). (Requires site-specific evaluation and documentation by a licensed professional.)
B156: 33 | C156: Infiltration is not recommended due to reasonable concerns about erosion, slope failure, or flooding. (Requires site-specific evaluation and documentation by a licensed professional.)
B157: 34 | C157: The area available for siting would threaten the safety or reliability of pre-existing underground utilities, pre-existing underground storage tanks, pre-existing structures, or pre-existing road or parking lot surfaces or subgrades. (Requires site-specific evaluation and documentation by a licensed professional.)
B158: 35 | C158: The area available for siting would threaten shoreline structures such as bulkheads. (Requires site-specific evaluation and documentation by a licensed professional.)
B159: 36 | C159: The area available for siting would threaten existing or proposed buildings or structures. (Requires site-specific evaluation and documentation by a licensed professional.)
B160: 37 | C160: Infiltration is not recommended based on the results of a Groundwater Mounding analysis or a Characterization of Infiltration Receptor analysis per Appendix D, Sections D-5 and D-6. (Requires site-specific evaluation and documentation by a licensed professional.)
B161: Permeable Pavement Surface
B162: 1 | C162: Field testing indicates soils have a measured underlying soil infiltration rate less than 0.3 inches per hour (Note: field infiltration tests are not required for permeable pavement surfaces, but must be used to demonstrate infeasibility).
B163: 2 | C163: Subsurface investigation demonstrate groundwater or hydraulically-restrictive layer is too shallow per the Minimum Vertical Separation table in Appendix C.
B164: 3 | C164: The subgrade slope exceeds 6 percent after reasonable efforts to grade.
B165: 4 | C165: The permeable pavement wearing course slope exceeds 6 percent after reasonable efforts to grade.
B166: 5 | C166: For projects in the right-of-way, the permeable pavement surface area would be less than 2,000 square feet of contiguous pavement and the project discharges to: a designated receiving water body, a combined system, or a capacity constrained system which does not drain to a creek wetland or small lake.
B167: 6 | C167: The anticipated mature tree spread (based on tree species) would overhang more than 50 percent of permeable pavement area.
B168: 7 | C168: The pavement is over a structure, such as, but not limited to: parking garages, box culverts, and bridges.
B169: 8 | C169: The pavement is subject to long-term excessive sediment deposition (e.g., construction and landscaping material yards).
B170: 9 | C170: Underlying soils are unsuitable for supporting traffic loads when saturated (e.g., a residential access road has a California Bearing Ratio of 5 percent or less).
B171: 10 | C171: Pavement is replacing an existing pollution-generating hard surface in the right-of-way.
B172: 11 | C172: The street type is classified as arterial or collector rather than local access. Refer to RCW 35.78.010, RCW 36.86.070, and RCW 47.05.021. Note: This infeasibility criterion does not extend to sidewalks and other non-traffic bearing surfaces associated with the collector or arterial.
B173: 12 | C173: Streets that receive more than very low traffic volumes, and areas having more than very low truck traffic. Streets with a projected average daily traffic volume of 400 vehicles or less are very low volume roads (AASHTO, 2001)(U.S. Dept. of Transportation, 2013). Areas with very low truck traffic volumes are streets and other areas not subject to through truck traffic but may receive up to weekly use by utility trucks (e.g., garbage, recycling), daily school bus use, and multiple daily use by pick-up trucks, mail/parcel delivery trucks, and maintenance vehicles. Note: This infeasibility criterion does not extend to sidewalks and other non-traffic bearing surfaces.
B174: 13 | C174: The pavement area is defined as a “high use site” in SMC, Section 22.801.090.
B175: 14 | C175: In areas with “industrial activity” as identified in 40 CFR 122.26(b)(14).
B176: 15 | C176: Where the risk of concentrated pollutant spills is more likely, including, but not limited to, gas stations, truck stops, and industrial chemical storage sites.
B177: 16 | C177: In areas where routine, heavy roadway applications of sand occur in frequent snow zones to maintain traction during weeks of snow and ice accumulation, including sidewalks within 7 feet of roadways with sand application.
B178: 17 | C178: Where runon from unstabilized erodible areas would occur without presettling.
B179: 18 | C179: The site is a contaminated site or abandoned landfill.
B180: 19 | C180: Installation is within 10 feet of a petroleum, chemical, or liquid hazardous waste storage tank or connecting underground pipes.
B181: 20 | C181: Run-on from an adjacent impervious area is greater than 10 percent of the permeable pavement surface area.
B182: 21 | C182: A licensed professional (as defined in Appendix D, Section D-1) recommends permeable pavement not be used anywhere within the project site due to reasonable concerns of erosion, slope failure, or flooding (requires a signed and stamped written determination based on site-specific conditions from a licensed professional).
B183: 22 | C183: The Director has determined that permeable pavement in active zones of a skate park, bike park, or sport court violates safety standards.
B184: 23 | C184: The hard surface in question is a set of stairs or a 6 foot long or less landing between sets of stairs.
B185: 24 | C185: Installation requires removal of an existing tree.
B186: 25 | C186: Where BMP installation is prohibited per Regulations for Environmentally Critical Areas (SMC Chapter 25.09).
B187: 26 | C187: Installation would require pumping to a designated point of discharge, but failure of the pump may destabilize a steep slope.
B188: 27 | C188: Infiltrating or ponding water below pavement area would compromise adjacent pavements. (Requires site-specific evaluation and documentation by a licensed professional.)
B189: 28 | C189: Fill soils are used that can become unstable when saturated. (Requires site-specific evaluation and documentation by a licensed professional.)
B190: 29 | C190: The permeable pavement design does not provide sufficient strength to support heavy loads in areas with “industrial activity” as identified in 40 CFR 122.26(b)(14). (Requires site-specific evaluation and documentation by a licensed professional.)
B191: Sidewalk/Trail Compost-Amended Strip
B192: 1 | C192: A licensed professional recommends dispersion not be used anywhere within project site due to reasonable concerns of erosion, slope failure, or flooding. (Requires site-specific evaluation and documentation by a licensed professional.)
B193: 2 | C193: The dispersion flow path area does not provide positive drainage.
B194: 3 | C194: The dispersion flowpath area is within a landslide-prone area (SMC, Section 25.09.080).
B195: 4 | C195: The dispersion flowpath area is within 100 feet of a contaminated site or landfill (active or closed).
B196: 5 | C196: The dispersion flowpath area is in a steep slope area (SMC, Section 25.09.020) or within a setback to a steep slope area (calculated as 10 times the height of the steep slope to a 500 foot maximum setback).
B197: 6 | C197: The dispersion flowpath area is within 30 feet of a proposed or existing septic system drainfield or reserve area or within 10 feet of sewage septic tanks and distribution boxes.
B198: 7 | C198: The sidewalk or trail to be dispersed exceeds a lateral slope of 5 percent or a longitudinal slope of 8 percent.
B199: 8 | C199: The sidewalk or trail to be dispersed has a lateral slope of less than 1 percent.
B200: 9 | C200: Field testing indicates underlying soils have a design soil infiltration rate less than 0.15 inch per hour. Note that field infiltration tests are not required for Sidewalk/Trail Compost-Amended Strip, but must be used to demonstrate infeasibility.
B201: 10 | C201: The minimum Sidewalk/Trail Compost-Amended Strip design criteria cannot be met.
... 155 more rows
